Transaction Date,Local Authority Department,BENEFICIARY,Purpose,Amount,Non Recoverable,Merchant Category
01-07-2023,oneSource,Personal Information - Redacted,Legal Fees,7500,0,INDIVIDUALS
01-07-2023,Marketing,Personal Information - Redacted,Events,300,0,COMMERCIAL SUPPLIER
01-07-2023,Dedicated Schools Budget,Personal Information - Redacted,Professional Services - General,1490,0,COMMERCIAL SUPPLIER
01-07-2023,Dedicated Schools Budget,Personal Information - Redacted,Professional Services - General,1500,0,COMMERCIAL SUPPLIER
01-07-2023,Dedicated Schools Budget,Personal Information - Redacted,Professional Services - General,1490,0,COMMERCIAL SUPPLIER
01-07-2023,Children and Young People,Personal Information - Redacted,Private Contractors Payment - Other,760,0,INDIVIDUALS
01-07-2023,Marketing,Rights & Equalities In Newham (Rein),Private Contractors Payment - Other,7500,0,VENDOR
01-07-2023,oneSource - Non Shared,Daisy Corporate Services Trading Ltd,Mobile Phone Costs,2829.44,0,COMMERCIAL SUPPLIER
01-07-2023,oneSource - Non Shared,Daisy Corporate Services Trading Ltd,Mobile Phone Costs,23336.35,0,COMMERCIAL SUPPLIER
01-07-2023,Housing Revenue Account,Daisy Corporate Services Trading Ltd,Land Line Telephone Costs,2767.77,0,COMMERCIAL SUPPLIER
01-07-2023,Marketing,Beckton Ward Panel,Events,833.66,0,VOLUNTARY ORGANISATION
01-07-2023,Marketing,Beckton Ward Panel,Events,833.66,0,VOLUNTARY ORGANISATION
01-07-2023,Adults & Health,Guy's And St Thomas' Nhs Foundation Trust,Professional Services - General,9953.54,0,VENDOR
01-07-2023,RMS,Travis Perkins Trading Company Ltd,Building Alterations And Materials,56.82,0,COMMERCIAL SUPPLIER
01-07-2023,RMS,Travis Perkins Trading Company Ltd,Building Alterations And Materials,2823.83,0,COMMERCIAL SUPPLIER
01-07-2023,RMS,Travis Perkins Trading Company Ltd,Building Alterations And Materials,420.32,0,COMMERCIAL SUPPLIER
01-07-2023,RMS,Travis Perkins Trading Company Ltd,Building Alterations And Materials,56.82,0,COMMERCIAL SUPPLIER
01-07-2023,RMS,Travis Perkins Trading Company Ltd,Building Alterations And Materials,187.44,0,COMMERCIAL SUPPLIER
01-07-2023,RMS,Travis Perkins Trading Company Ltd,Building Alterations And Materials,90.01,0,COMMERCIAL SUPPLIER
01-07-2023,RMS,Travis Perkins Trading Company Ltd,Building Alterations And Materials,2264.69,0,COMMERCIAL SUPPLIER
01-07-2023,RMS,Travis Perkins Trading Company Ltd,Building Alterations And Materials,422.1,0,COMMERCIAL SUPPLIER
01-07-2023,RMS,Travis Perkins Trading Company Ltd,Building Alterations And Materials,44.8,0,COMMERCIAL SUPPLIER
01-07-2023,RMS,Travis Perkins Trading Company Ltd,Building Alterations And Materials,111,0,COMMERCIAL SUPPLIER
01-07-2023,RMS,Travis Perkins Trading Company Ltd,Building Alterations And Materials,135.6,0,COMMERCIAL SUPPLIER
01-07-2023,RMS,Travis Perkins Trading Company Ltd,Building Alterations And Materials,25,0,COMMERCIAL SUPPLIER
01-07-2023,RMS,Travis Perkins Trading Company Ltd,Building Alterations And Materials,77.35,0,COMMERCIAL SUPPLIER
01-07-2023,RMS,Travis Perkins Trading Company Ltd,Building Alterations And Materials,77.35,0,COMMERCIAL SUPPLIER
01-07-2023,RMS,Travis Perkins Trading Company Ltd,Building Alterations And Materials,76.58,0,COMMERCIAL SUPPLIER
01-07-2023,RMS,Travis Perkins Trading Company Ltd,Building Alterations And Materials,233.4,0,COMMERCIAL SUPPLIER
01-07-2023,RMS,Travis Perkins Trading Company Ltd,Building Alterations And Materials,0,0,COMMERCIAL SUPPLIER
01-07-2023,RMS,Travis Perkins Trading Company Ltd,Building Alterations And Materials,312,0,COMMERCIAL SUPPLIER
01-07-2023,RMS,Travis Perkins Trading Company Ltd,Building Alterations And Materials,82.4,0,COMMERCIAL SUPPLIER
01-07-2023,RMS,Travis Perkins Trading Company Ltd,Building Alterations And Materials,104.5,0,COMMERCIAL SUPPLIER
01-07-2023,RMS,Travis Perkins Trading Company Ltd,Building Alterations And Materials,76.58,0,COMMERCIAL SUPPLIER
01-07-2023,RMS,Travis Perkins Trading Company Ltd,Building Alterations And Materials,77.35,0,COMMERCIAL SUPPLIER
01-07-2023,RMS,Travis Perkins Trading Company Ltd,Building Alterations And Materials,77.35,0,COMMERCIAL SUPPLIER
01-07-2023,Inclusive Economy & Housing,J.A. Steel & Son Ltd,Private Contractors Payment - Other,250,0,COMMERCIAL SUPPLIER
01-07-2023,Inclusive Economy & Housing,J.A. Steel & Son Ltd,Private Contractors Payment - Other,250,0,COMMERCIAL SUPPLIER
01-07-2023,Inclusive Economy & Housing,J.A. Steel & Son Ltd,Private Contractors Payment - Other,250,0,COMMERCIAL SUPPLIER
01-07-2023,Inclusive Economy & Housing,J.A. Steel & Son Ltd,Private Contractors Payment - Other,224,0,COMMERCIAL SUPPLIER
01-07-2023,Inclusive Economy & Housing,J.A. Steel & Son Ltd,Private Contractors Payment - Other,284,0,COMMERCIAL SUPPLIER
01-07-2023,Inclusive Economy & Housing,J.A. Steel & Son Ltd,Private Contractors Payment - Other,250,0,COMMERCIAL SUPPLIER
01-07-2023,Environment and Sustainable Transport,Portakabin Ltd,Premises Hire - Facilities,2373.33,0,COMMERCIAL SUPPLIER
01-07-2023,Children and Young People,West Silvertown Village Community Foundation,Premises Hire - Facilities,4279,0,VENDOR
01-07-2023,Children and Young People,West Silvertown Village Community Foundation,Premises Hire - Facilities,3008.5,0,VENDOR
01-07-2023,Children and Young People,Early Start Group Ltd,Private Contractors Payment - Other,69030,0,COMMERCIAL SUPPLIER
01-07-2023,Environment and Sustainable Transport,Chipside Ltd,Private Contractors Payment - Other,660,0,COMMERCIAL SUPPLIER
01-07-2023,oneSource,Graham Langley Limited,Printing,300,0,VENDOR
01-07-2023,oneSource,Graham Langley Limited,Printing,280,0,VENDOR
01-07-2023,RMS,Travis Perkins Trading Company Ltd,"Purchase - Equipment, Furniture And Materials",16.16,0,COMMERCIAL SUPPLIER
01-07-2023,RMS,Travis Perkins Trading Company Ltd,"Purchase - Equipment, Furniture And Materials",561.3,0,COMMERCIAL SUPPLIER
01-07-2023,RMS,Travis Perkins Trading Company Ltd,"Purchase - Equipment, Furniture And Materials",707.4,0,COMMERCIAL SUPPLIER
01-07-2023,RMS,Travis Perkins Trading Company Ltd,"Purchase - Equipment, Furniture And Materials",1454.6,0,COMMERCIAL SUPPLIER
01-07-2023,RMS,Travis Perkins Trading Company Ltd,"Purchase - Equipment, Furniture And Materials",941.55,0,COMMERCIAL SUPPLIER
01-07-2023,RMS,Travis Perkins Trading Company Ltd,"Purchase - Equipment, Furniture And Materials",355.45,0,COMMERCIAL SUPPLIER
01-07-2023,RMS,Travis Perkins Trading Company Ltd,"Purchase - Equipment, Furniture And Materials",24546.9,0,COMMERCIAL SUPPLIER
01-07-2023,RMS,Travis Perkins Trading Company Ltd,"Purchase - Equipment, Furniture And Materials",1839.59,0,COMMERCIAL SUPPLIER
02-07-2023,Dedicated Schools Budget,Personal Information - Redacted,Professional Services - General,1950,0,COMMERCIAL SUPPLIER
02-07-2023,Adults & Health,Personal Information - Redacted,Day Care Income,-35.83,0,NON COMMERCIAL SUPPLIER
02-07-2023,Adults & Health,Personal Information - Redacted,Day Care Income,-35.83,0,NON COMMERCIAL SUPPLIER
02-07-2023,Adults & Health,Personal Information - Redacted,Day Care Income,-20.4,0,FOSTER CARERS
02-07-2023,Adults & Health,Personal Information - Redacted,Day Care Income,-20.4,0,FOSTER CARERS
02-07-2023,Adults & Health,Personal Information - Redacted,Day Care Income,-20.4,0,FOSTER CARERS
02-07-2023,Adults & Health,Personal Information - Redacted,Day Care Income,-20.4,0,FOSTER CARERS
02-07-2023,Adults & Health,Personal Information - Redacted,Day Care Income,-20.4,0,FOSTER CARERS
02-07-2023,Adults & Health,Personal Information - Redacted,Day Care Income,-20.4,0,FOSTER CARERS
02-07-2023,Adults & Health,Personal Information - Redacted,Day Care Income,-35.83,0,NON COMMERCIAL SUPPLIER
02-07-2023,Adults & Health,Personal Information - Redacted,Day Care Income,-20.4,0,FOSTER CARERS
02-07-2023,Adults & Health,Personal Information - Redacted,Day Care Income,-20.4,0,FOSTER CARERS
02-07-2023,Adults & Health,Personal Information - Redacted,Day Care Income,-35.83,0,NON COMMERCIAL SUPPLIER
02-07-2023,Adults & Health,Personal Information - Redacted,Day Care Income,-20.23,0,FOSTER CARERS
02-07-2023,Adults & Health,Personal Information - Redacted,Day Care Income,-20.23,0,FOSTER CARERS
02-07-2023,Adults & Health,Personal Information - Redacted,Day Care Income,-20.23,0,FOSTER CARERS
02-07-2023,Adults & Health,Personal Information - Redacted,Day Care Income,-20.23,0,FOSTER CARERS
02-07-2023,Adults & Health,Personal Information - Redacted,Day Care Income,-11.39,0,FOSTER CARERS
02-07-2023,Adults & Health,Personal Information - Redacted,Day Care Income,-11.39,0,FOSTER CARERS
02-07-2023,Adults & Health,Personal Information - Redacted,Day Care Income,-11.39,0,FOSTER CARERS
02-07-2023,Adults & Health,Personal Information - Redacted,Day Care Income,-11.39,0,FOSTER CARERS
02-07-2023,Adults & Health,Personal Information - Redacted,Day Care Income,-3.6,0,FOSTER CARERS
02-07-2023,Adults & Health,Personal Information - Redacted,Day Care Income,-3.6,0,FOSTER CARERS
02-07-2023,Adults & Health,Personal Information - Redacted,Day Care Income,-3.6,0,FOSTER CARERS
02-07-2023,Adults & Health,Personal Information - Redacted,Day Care Income,-3.6,0,FOSTER CARERS
02-07-2023,Adults & Health,Personal Information - Redacted,Day Care Income,-20.4,0,NON COMMERCIAL SUPPLIER
02-07-2023,Adults & Health,Personal Information - Redacted,Day Care Income,-20.4,0,NON COMMERCIAL SUPPLIER
02-07-2023,Adults & Health,Personal Information - Redacted,Day Care Income,-67.41,0,FOSTER CARERS
02-07-2023,Adults & Health,Personal Information - Redacted,Day Care Income,-67.41,0,FOSTER CARERS
02-07-2023,Adults & Health,Personal Information - Redacted,Day Care Income,-67.41,0,FOSTER CARERS
02-07-2023,Adults & Health,Personal Information - Redacted,Day Care Income,-67.41,0,FOSTER CARERS
02-07-2023,Adults & Health,Personal Information - Redacted,Day Care Income,-20.4,0,NON COMMERCIAL SUPPLIER
02-07-2023,Adults & Health,Personal Information - Redacted,Day Care Income,-20.4,0,NON COMMERCIAL SUPPLIER
02-07-2023,Adults & Health,Personal Information - Redacted,Day Care Income,-45.37,0,FOSTER CARERS
02-07-2023,Adults & Health,Personal Information - Redacted,Day Care Income,-45.37,0,FOSTER CARERS
02-07-2023,Adults & Health,Personal Information - Redacted,Day Care Income,-45.37,0,FOSTER CARERS
02-07-2023,Adults & Health,Personal Information - Redacted,Day Care Income,-45.37,0,FOSTER CARERS
02-07-2023,Adults & Health,Personal Information - Redacted,Day Care Income,-74.28,0,FOSTER CARERS
02-07-2023,Adults & Health,Personal Information - Redacted,Day Care Income,-74.28,0,FOSTER CARERS
02-07-2023,Adults & Health,Personal Information - Redacted,Day Care Income,-74.28,0,FOSTER CARERS
02-07-2023,Adults & Health,Personal Information - Redacted,Day Care Income,-74.28,0,FOSTER CARERS
02-07-2023,Adults & Health,Personal Information - Redacted,Day Care Income,-55.22,0,FOSTER CARERS
02-07-2023,Adults & Health,Personal Information - Redacted,Day Care Income,-55.22,0,FOSTER CARERS
02-07-2023,Adults & Health,Personal Information - Redacted,Day Care Income,-55.22,0,FOSTER CARERS
02-07-2023,Adults & Health,Personal Information - Redacted,Day Care Income,-55.22,0,FOSTER CARERS
02-07-2023,Adults & Health,Personal Information - Redacted,Day Care Income,-6,0,FOSTER CARERS
02-07-2023,Adults & Health,Personal Information - Redacted,Day Care Income,-6,0,FOSTER CARERS
02-07-2023,Adults & Health,Personal Information - Redacted,Day Care Income,-6,0,FOSTER CARERS
02-07-2023,Adults & Health,Personal Information - Redacted,Day Care Income,-6,0,FOSTER CARERS
02-07-2023,Adults & Health,Personal Information - Redacted,Day Care Income,-20.4,0,FOSTER CARERS
02-07-2023,Adults & Health,Personal Information - Redacted,Day Care Income,-20.4,0,FOSTER CARERS
02-07-2023,Adults & Health,Personal Information - Redacted,Day Care Income,-20.4,0,FOSTER CARERS
02-07-2023,Adults & Health,Personal Information - Redacted,Day Care Income,-20.4,0,FOSTER CARERS
02-07-2023,Inclusive Economy & Housing,J.A. Steel & Son Ltd,Private Contractors Payment - Other,468,0,COMMERCIAL SUPPLIER
02-07-2023,Inclusive Economy & Housing,J.A. Steel & Son Ltd,Private Contractors Payment - Other,1111,0,COMMERCIAL SUPPLIER
02-07-2023,Inclusive Economy & Housing,J.A. Steel & Son Ltd,Private Contractors Payment - Other,250,0,COMMERCIAL SUPPLIER
02-07-2023,Inclusive Economy & Housing,J.A. Steel & Son Ltd,Private Contractors Payment - Other,300,0,COMMERCIAL SUPPLIER
02-07-2023,Inclusive Economy & Housing,J.A. Steel & Son Ltd,Private Contractors Payment - Other,510,0,COMMERCIAL SUPPLIER
02-07-2023,Inclusive Economy & Housing,J.A. Steel & Son Ltd,Private Contractors Payment - Other,1260,0,COMMERCIAL SUPPLIER
02-07-2023,Inclusive Economy & Housing,J.A. Steel & Son Ltd,Private Contractors Payment - Other,700,0,COMMERCIAL SUPPLIER
02-07-2023,Children and Young People,Barrington Son & Associates,Ict Hardware,479,0,VENDOR
02-07-2023,Marketing,Barrington Son & Associates,Ict Hardware,7435,0,VENDOR
02-07-2023,Adults & Health,House of Advocacy LTD.,"Purchase - Equipment, Furniture And Materials",349.4,0,COMMERCIAL SUPPLIER
02-07-2023,Adults & Health,Personal Information - Redacted,Day Care Income,-10.25,0,INDIVIDUALS
02-07-2023,Adults & Health,Personal Information - Redacted,Day Care Income,-10.25,0,INDIVIDUALS
02-07-2023,Adults & Health,Personal Information - Redacted,Day Care Income,-10.25,0,INDIVIDUALS
02-07-2023,Adults & Health,Personal Information - Redacted,Day Care Income,-10.25,0,INDIVIDUALS
02-07-2023,Adults & Health,Personal Information - Redacted,Day Care Income,-20.4,0,INDIVIDUALS
02-07-2023,Adults & Health,Personal Information - Redacted,Day Care Income,-20.4,0,INDIVIDUALS
02-07-2023,Adults & Health,Personal Information - Redacted,Day Care Income,-20.4,0,INDIVIDUALS
02-07-2023,Adults & Health,Personal Information - Redacted,Day Care Income,-20.4,0,INDIVIDUALS
02-07-2023,Adults & Health,Personal Information - Redacted,Day Care Income,-6.49,0,INDIVIDUALS
02-07-2023,Adults & Health,Personal Information - Redacted,Day Care Income,-6.49,0,INDIVIDUALS
02-07-2023,Adults & Health,Personal Information - Redacted,Day Care Income,-6.49,0,INDIVIDUALS
02-07-2023,Adults & Health,Personal Information - Redacted,Day Care Income,-6.49,0,INDIVIDUALS
02-07-2023,Adults & Health,Personal Information - Redacted,Day Care Income,-29.8,0,INDIVIDUALS
02-07-2023,Adults & Health,Personal Information - Redacted,Day Care Income,-29.8,0,INDIVIDUALS
02-07-2023,Adults & Health,Personal Information - Redacted,Day Care Income,-29.8,0,INDIVIDUALS
02-07-2023,Adults & Health,Personal Information - Redacted,Day Care Income,-29.8,0,INDIVIDUALS
02-07-2023,Adults & Health,Personal Information - Redacted,Day Care Income,-25.21,0,INDIVIDUALS
02-07-2023,Adults & Health,Personal Information - Redacted,Day Care Income,-25.21,0,INDIVIDUALS
02-07-2023,Adults & Health,Personal Information - Redacted,Day Care Income,-25.21,0,INDIVIDUALS
02-07-2023,Adults & Health,Personal Information - Redacted,Day Care Income,-25.21,0,INDIVIDUALS
02-07-2023,Adults & Health,Personal Information - Redacted,Day Care Income,-19.77,0,INDIVIDUALS
02-07-2023,Adults & Health,Personal Information - Redacted,Day Care Income,-19.77,0,INDIVIDUALS
02-07-2023,Adults & Health,Personal Information - Redacted,Day Care Income,-19.77,0,INDIVIDUALS
02-07-2023,Adults & Health,Personal Information - Redacted,Day Care Income,-19.77,0,INDIVIDUALS
02-07-2023,Adults & Health,Personal Information - Redacted,Day Care Income,-42.48,0,INDIVIDUALS
02-07-2023,Adults & Health,Personal Information - Redacted,Day Care Income,-42.48,0,INDIVIDUALS
02-07-2023,Adults & Health,Personal Information - Redacted,Day Care Income,-42.48,0,INDIVIDUALS
02-07-2023,Adults & Health,Personal Information - Redacted,Day Care Income,-42.48,0,INDIVIDUALS
02-07-2023,Adults & Health,Vibrance,Home Care - Private Contractors Payment,255.47,0,VOLUNTARY ORGANISATION
02-07-2023,Adults & Health,Vibrance,Home Care - Private Contractors Payment,255.47,0,VOLUNTARY ORGANISATION
02-07-2023,Adults & Health,Vibrance,Home Care - Private Contractors Payment,255.47,0,VOLUNTARY ORGANISATION
02-07-2023,Adults & Health,Vibrance,Home Care - Private Contractors Payment,255.47,0,VOLUNTARY ORGANISATION
02-07-2023,Adults & Health,Your Ideal Ltd,Home Care - Private Contractors Payment,471.67,0,NON COMMERCIAL SUPPLIER
02-07-2023,Adults & Health,Your Ideal Ltd,Home Care - Private Contractors Payment,471.67,0,NON COMMERCIAL SUPPLIER
02-07-2023,Adults & Health,Your Ideal Ltd,Home Care - Private Contractors Payment,471.67,0,NON COMMERCIAL SUPPLIER
02-07-2023,Adults & Health,Your Ideal Ltd,Home Care - Private Contractors Payment,471.67,0,NON COMMERCIAL SUPPLIER
02-07-2023,Adults & Health,Personal Information - Redacted,Day Care Income,-20.4,0,INDIVIDUALS
02-07-2023,Adults & Health,Personal Information - Redacted,Day Care Income,-20.4,0,INDIVIDUALS
02-07-2023,Adults & Health,Personal Information - Redacted,Day Care Income,-20.4,0,INDIVIDUALS
02-07-2023,Adults & Health,Personal Information - Redacted,Day Care Income,-20.4,0,INDIVIDUALS
02-07-2023,Adults & Health,Personal Information - Redacted,Day Care Income,-35.83,0,INDIVIDUALS
02-07-2023,Adults & Health,Personal Information - Redacted,Day Care Income,-35.83,0,INDIVIDUALS
02-07-2023,Adults & Health,Personal Information - Redacted,Day Care Income,-20.4,0,INDIVIDUALS
02-07-2023,Adults & Health,Personal Information - Redacted,Day Care Income,-35.83,0,INDIVIDUALS
02-07-2023,Adults & Health,Personal Information - Redacted,Day Care Income,-20.4,0,INDIVIDUALS
02-07-2023,Adults & Health,Personal Information - Redacted,Day Care Income,-35.83,0,INDIVIDUALS
02-07-2023,Adults & Health,Personal Information - Redacted,Day Care Income,-96.8,0,INDIVIDUALS
02-07-2023,Adults & Health,Personal Information - Redacted,Day Care Income,-20.4,0,INDIVIDUALS
02-07-2023,Adults & Health,Personal Information - Redacted,Day Care Income,-96.8,0,INDIVIDUALS
02-07-2023,Adults & Health,Personal Information - Redacted,Day Care Income,-20.4,0,INDIVIDUALS
02-07-2023,Adults & Health,Personal Information - Redacted,Day Care Income,-96.8,0,INDIVIDUALS
02-07-2023,Adults & Health,Personal Information - Redacted,Day Care Income,-96.8,0,INDIVIDUALS
02-07-2023,Adults & Health,Your Ideal Ltd,Respite Care - Private Contractors Payment,2949.84,0,NON COMMERCIAL SUPPLIER
02-07-2023,Adults & Health,Personal Information - Redacted,Day Care Income,-20.4,0,INDIVIDUALS
02-07-2023,Adults & Health,Personal Information - Redacted,Day Care Income,-20.4,0,INDIVIDUALS
02-07-2023,Adults & Health,Personal Information - Redacted,Day Care Income,-20.4,0,INDIVIDUALS
02-07-2023,Adults & Health,Personal Information - Redacted,Day Care Income,-20.4,0,INDIVIDUALS
02-07-2023,Adults & Health,Personal Information - Redacted,Day Care Income,-111.64,0,INDIVIDUALS
02-07-2023,Adults & Health,Personal Information - Redacted,Day Care Income,-111.64,0,INDIVIDUALS
02-07-2023,Adults & Health,Personal Information - Redacted,Day Care Income,-111.64,0,INDIVIDUALS
02-07-2023,Adults & Health,Personal Information - Redacted,Day Care Income,-111.64,0,INDIVIDUALS
02-07-2023,Adults & Health,Personal Information - Redacted,Day Care Income,-24.86,0,INDIVIDUALS
02-07-2023,Adults & Health,Personal Information - Redacted,Day Care Income,-24.86,0,INDIVIDUALS
02-07-2023,Adults & Health,Personal Information - Redacted,Day Care Income,-24.86,0,INDIVIDUALS
02-07-2023,Adults & Health,Personal Information - Redacted,Day Care Income,-24.86,0,INDIVIDUALS
02-07-2023,Adults & Health,Personal Information - Redacted,Day Care Income,-24.34,0,INDIVIDUALS
02-07-2023,Adults & Health,Personal Information - Redacted,Day Care Income,-24.34,0,INDIVIDUALS
02-07-2023,Adults & Health,Personal Information - Redacted,Day Care Income,-24.34,0,INDIVIDUALS
02-07-2023,Adults & Health,Personal Information - Redacted,Day Care Income,-24.34,0,INDIVIDUALS
02-07-2023,Adults & Health,Personal Information - Redacted,Day Care Income,-32.6,0,INDIVIDUALS
02-07-2023,Adults & Health,Personal Information - Redacted,Day Care Income,-32.6,0,INDIVIDUALS
02-07-2023,Adults & Health,Personal Information - Redacted,Day Care Income,-32.6,0,INDIVIDUALS
02-07-2023,Adults & Health,Personal Information - Redacted,Day Care Income,-32.6,0,INDIVIDUALS
02-07-2023,Adults & Health,Personal Information - Redacted,Day Care Income,-18.33,0,INDIVIDUALS
02-07-2023,Adults & Health,Personal Information - Redacted,Day Care Income,-29.8,0,INDIVIDUALS
02-07-2023,Adults & Health,Personal Information - Redacted,Day Care Income,-18.33,0,INDIVIDUALS
02-07-2023,Adults & Health,Personal Information - Redacted,Day Care Income,-29.8,0,INDIVIDUALS
02-07-2023,Adults & Health,Personal Information - Redacted,Day Care Income,-18.33,0,INDIVIDUALS
02-07-2023,Adults & Health,Personal Information - Redacted,Day Care Income,-29.8,0,INDIVIDUALS
02-07-2023,Adults & Health,Personal Information - Redacted,Day Care Income,-18.33,0,INDIVIDUALS
02-07-2023,Adults & Health,Personal Information - Redacted,Day Care Income,-29.8,0,INDIVIDUALS
02-07-2023,Adults & Health,Personal Information - Redacted,Day Care Income,-51.1,0,INDIVIDUALS
02-07-2023,Adults & Health,Personal Information - Redacted,Day Care Income,-51.1,0,INDIVIDUALS
02-07-2023,Adults & Health,Personal Information - Redacted,Day Care Income,-51.1,0,INDIVIDUALS
02-07-2023,Adults & Health,Personal Information - Redacted,Day Care Income,-51.1,0,INDIVIDUALS
02-07-2023,Adults & Health,Personal Information - Redacted,Day Care Income,-14.54,0,INDIVIDUALS
02-07-2023,Adults & Health,Personal Information - Redacted,Day Care Income,-14.54,0,INDIVIDUALS
02-07-2023,Adults & Health,Personal Information - Redacted,Day Care Income,-14.54,0,INDIVIDUALS
02-07-2023,Adults & Health,Personal Information - Redacted,Day Care Income,-14.54,0,INDIVIDUALS
02-07-2023,Adults & Health,Personal Information - Redacted,Day Care Income,-459.48,0,INDIVIDUALS
02-07-2023,Adults & Health,Personal Information - Redacted,Day Care Income,-49.07,0,INDIVIDUALS
02-07-2023,Adults & Health,Personal Information - Redacted,Day Care Income,-49.07,0,INDIVIDUALS
02-07-2023,Adults & Health,Personal Information - Redacted,Day Care Income,-49.07,0,INDIVIDUALS
02-07-2023,Adults & Health,Personal Information - Redacted,Day Care Income,-49.07,0,INDIVIDUALS
02-07-2023,Adults & Health,Personal Information - Redacted,Day Care Income,-19.29,0,INDIVIDUALS
02-07-2023,Adults & Health,Personal Information - Redacted,Day Care Income,-19.29,0,INDIVIDUALS
02-07-2023,Adults & Health,Personal Information - Redacted,Day Care Income,-19.29,0,INDIVIDUALS
02-07-2023,Adults & Health,Personal Information - Redacted,Day Care Income,-19.29,0,INDIVIDUALS
02-07-2023,Adults & Health,Personal Information - Redacted,Day Care Income,-39.8,0,INDIVIDUALS
02-07-2023,Adults & Health,Personal Information - Redacted,Day Care Income,-39.8,0,INDIVIDUALS
02-07-2023,Adults & Health,Personal Information - Redacted,Day Care Income,-39.8,0,INDIVIDUALS
02-07-2023,Adults & Health,Personal Information - Redacted,Day Care Income,-39.8,0,INDIVIDUALS
02-07-2023,Adults & Health,Personal Information - Redacted,Day Care Income,-20.59,0,INDIVIDUALS
02-07-2023,Adults & Health,Personal Information - Redacted,Day Care Income,-20.59,0,INDIVIDUALS
02-07-2023,Adults & Health,Personal Information - Redacted,Day Care Income,-20.59,0,INDIVIDUALS
02-07-2023,Adults & Health,Personal Information - Redacted,Day Care Income,-20.59,0,INDIVIDUALS
02-07-2023,Adults & Health,Personal Information - Redacted,Day Care Income,-41.9,0,INDIVIDUALS
02-07-2023,Adults & Health,Personal Information - Redacted,Day Care Income,-41.9,0,INDIVIDUALS
02-07-2023,Adults & Health,Personal Information - Redacted,Day Care Income,-41.9,0,INDIVIDUALS
02-07-2023,Adults & Health,Personal Information - Redacted,Day Care Income,-41.9,0,INDIVIDUALS
02-07-2023,Adults & Health,Personal Information - Redacted,Day Care Income,-35.83,0,INDIVIDUALS
02-07-2023,Adults & Health,Personal Information - Redacted,Day Care Income,-35.83,0,INDIVIDUALS
02-07-2023,Adults & Health,Personal Information - Redacted,Day Care Income,-35.83,0,INDIVIDUALS
02-07-2023,Adults & Health,Personal Information - Redacted,Day Care Income,-35.83,0,INDIVIDUALS
02-07-2023,Environment and Sustainable Transport,Marvall Services Ltd,"Purchase - Equipment, Furniture And Materials",23.89,0,COMMERCIAL SUPPLIER
02-07-2023,Environment and Sustainable Transport,Marvall Services Ltd,"Purchase - Equipment, Furniture And Materials",19.5,0,COMMERCIAL SUPPLIER
02-07-2023,Environment and Sustainable Transport,Marvall Services Ltd,"Purchase - Equipment, Furniture And Materials",27.06,0,COMMERCIAL SUPPLIER
02-07-2023,Environment and Sustainable Transport,Marvall Services Ltd,"Purchase - Equipment, Furniture And Materials",0.79,0,COMMERCIAL SUPPLIER
02-07-2023,Environment and Sustainable Transport,Marvall Services Ltd,"Purchase - Equipment, Furniture And Materials",12.05,0,COMMERCIAL SUPPLIER
02-07-2023,Environment and Sustainable Transport,Marvall Services Ltd,"Purchase - Equipment, Furniture And Materials",21.83,0,COMMERCIAL SUPPLIER
02-07-2023,Environment and Sustainable Transport,Marvall Services Ltd,"Purchase - Equipment, Furniture And Materials",48.55,0,COMMERCIAL SUPPLIER
02-07-2023,Environment and Sustainable Transport,Marvall Services Ltd,"Purchase - Equipment, Furniture And Materials",14.5,0,COMMERCIAL SUPPLIER
02-07-2023,Environment and Sustainable Transport,Marvall Services Ltd,"Purchase - Equipment, Furniture And Materials",40.26,0,COMMERCIAL SUPPLIER
02-07-2023,Environment and Sustainable Transport,Marvall Services Ltd,"Purchase - Equipment, Furniture And Materials",32.37,0,COMMERCIAL SUPPLIER
02-07-2023,Environment and Sustainable Transport,Marvall Services Ltd,"Purchase - Equipment, Furniture And Materials",62.34,0,COMMERCIAL SUPPLIER
02-07-2023,Environment and Sustainable Transport,Marvall Services Ltd,"Purchase - Equipment, Furniture And Materials",11.75,0,COMMERCIAL SUPPLIER
02-07-2023,Environment and Sustainable Transport,Marvall Services Ltd,"Purchase - Equipment, Furniture And Materials",4.06,0,COMMERCIAL SUPPLIER
02-07-2023,Environment and Sustainable Transport,Marvall Services Ltd,"Purchase - Equipment, Furniture And Materials",1360,0,COMMERCIAL SUPPLIER
03-07-2023,Dedicated Schools Budget,Personal Information - Redacted,Private Contractors Payment - Other,1048,0,COMMERCIAL SUPPLIER
03-07-2023,Dedicated Schools Budget,Personal Information - Redacted,Private Contractors Payment - Other,734.8,0,COMMERCIAL SUPPLIER
03-07-2023,Dedicated Schools Budget,Personal Information - Redacted,Professional Services - General,1530,0,COMMERCIAL SUPPLIER
03-07-2023,Marketing,Personal Information - Redacted,Consultancy Fees,962.5,0,VENDOR
03-07-2023,Marketing,Personal Information - Redacted,Events,390,0,COMMERCIAL SUPPLIER
03-07-2023,Dedicated Schools Budget,Personal Information - Redacted,Professional Services - General,106168,0,COMMERCIAL SUPPLIER
03-07-2023,Environment and Sustainable Transport,Personal Information - Redacted,Legal Fees,1000,0,VENDOR
03-07-2023,Children and Young People,Personal Information - Redacted,Legal Fees,1100,0,LEGAL SERVICES
03-07-2023,oneSource,Personal Information - Redacted,Legal Fees,1500,0,COMMERCIAL SUPPLIER
03-07-2023,Children and Young People,Personal Information - Redacted,Legal Fees,285,0,COMMERCIAL SUPPLIER
03-07-2023,Dedicated Schools Budget,Personal Information - Redacted,Independent Units Within The Council,117544,0,VENDOR
03-07-2023,Dedicated Schools Budget,Personal Information - Redacted,Independent Units Within The Council,399340,0,VENDOR
03-07-2023,Dedicated Schools Budget,Personal Information - Redacted,Independent Units Within The Council,352025,0,VENDOR
03-07-2023,Dedicated Schools Budget,Personal Information - Redacted,Independent Units Within The Council,97434,0,VENDOR
03-07-2023,Dedicated Schools Budget,Personal Information - Redacted,Independent Units Within The Council,121050,0,NON COMMERCIAL SUPPLIER
03-07-2023,Dedicated Schools Budget,Personal Information - Redacted,Independent Units Within The Council,221733,0,VENDOR
03-07-2023,Dedicated Schools Budget,Personal Information - Redacted,Independent Units Within The Council,253663,0,VENDOR
03-07-2023,Dedicated Schools Budget,Personal Information - Redacted,Independent Units Within The Council,258179,0,COMMERCIAL SUPPLIER
03-07-2023,Dedicated Schools Budget,Personal Information - Redacted,Independent Units Within The Council,315854,0,VENDOR
03-07-2023,Dedicated Schools Budget,Personal Information - Redacted,Independent Units Within The Council,198118,0,VENDOR
03-07-2023,Dedicated Schools Budget,Personal Information - Redacted,Independent Units Within The Council,101433,0,VENDOR
03-07-2023,Dedicated Schools Budget,Personal Information - Redacted,Independent Units Within The Council,128386,0,VENDOR
03-07-2023,Dedicated Schools Budget,Personal Information - Redacted,Independent Units Within The Council,283028,0,NON COMMERCIAL SUPPLIER
03-07-2023,Dedicated Schools Budget,Personal Information - Redacted,Independent Units Within The Council,336732,0,LOCAL AUTHORITY SERVICES
03-07-2023,Dedicated Schools Budget,Personal Information - Redacted,Independent Units Within The Council,223405,0,NON COMMERCIAL SUPPLIER
03-07-2023,Dedicated Schools Budget,Personal Information - Redacted,Independent Units Within The Council,476454,0,NON COMMERCIAL SUPPLIER
03-07-2023,Dedicated Schools Budget,Personal Information - Redacted,Independent Units Within The Council,134066,0,VENDOR
03-07-2023,Dedicated Schools Budget,Personal Information - Redacted,Independent Units Within The Council,287200,0,NON COMMERCIAL SUPPLIER
03-07-2023,Dedicated Schools Budget,Personal Information - Redacted,Independent Units Within The Council,172136,0,VENDOR
03-07-2023,Dedicated Schools Budget,Personal Information - Redacted,Independent Units Within The Council,94083,0,VENDOR
03-07-2023,Dedicated Schools Budget,Personal Information - Redacted,Independent Units Within The Council,102871,0,VENDOR
03-07-2023,Dedicated Schools Budget,Personal Information - Redacted,Independent Units Within The Council,115427,0,VENDOR
03-07-2023,Dedicated Schools Budget,Personal Information - Redacted,Independent Units Within The Council,139204,0,COMMERCIAL SUPPLIER
03-07-2023,Dedicated Schools Budget,Personal Information - Redacted,Independent Units Within The Council,334350,0,VENDOR
03-07-2023,Dedicated Schools Budget,Personal Information - Redacted,Independent Units Within The Council,302663,0,VENDOR
03-07-2023,Dedicated Schools Budget,Personal Information - Redacted,Independent Units Within The Council,291166,0,VENDOR
03-07-2023,Dedicated Schools Budget,Personal Information - Redacted,Independent Units Within The Council,140285,0,VENDOR
03-07-2023,Dedicated Schools Budget,Personal Information - Redacted,Independent Units Within The Council,262196,0,VENDOR
03-07-2023,Dedicated Schools Budget,Personal Information - Redacted,Independent Units Within The Council,146877,0,VENDOR
03-07-2023,Dedicated Schools Budget,Personal Information - Redacted,Independent Units Within The Council,1002547,0,VENDOR
03-07-2023,Dedicated Schools Budget,Personal Information - Redacted,Independent Units Within The Council,858873,0,VENDOR
03-07-2023,Dedicated Schools Budget,Personal Information - Redacted,Independent Units Within The Council,124244,0,VENDOR
03-07-2023,Dedicated Schools Budget,Personal Information - Redacted,Independent Units Within The Council,206387,0,VENDOR
03-07-2023,Dedicated Schools Budget,Personal Information - Redacted,Independent Units Within The Council,92766,0,VENDOR
03-07-2023,Dedicated Schools Budget,Personal Information - Redacted,Independent Units Within The Council,501142,0,LOCAL AUTHORITY SERVICES
03-07-2023,Dedicated Schools Budget,Personal Information - Redacted,Independent Units Within The Council,439351,0,VENDOR
03-07-2023,Dedicated Schools Budget,Personal Information - Redacted,Independent Units Within The Council,366483,0,VENDOR
03-07-2023,Dedicated Schools Budget,Personal Information - Redacted,Independent Units Within The Council,343802,0,VENDOR
03-07-2023,Dedicated Schools Budget,Personal Information - Redacted,Independent Units Within The Council,810109,0,NON COMMERCIAL SUPPLIER
03-07-2023,Dedicated Schools Budget,Personal Information - Redacted,Independent Units Within The Council,321426,0,VENDOR
03-07-2023,Dedicated Schools Budget,Personal Information - Redacted,Independent Units Within The Council,64132,0,VENDOR
03-07-2023,Dedicated Schools Budget,Personal Information - Redacted,Independent Units Within The Council,221052,0,VENDOR
03-07-2023,Dedicated Schools Budget,Personal Information - Redacted,Independent Units Within The Council,350114,0,VENDOR
03-07-2023,Dedicated Schools Budget,Personal Information - Redacted,Independent Units Within The Council,303319,0,VENDOR
03-07-2023,Dedicated Schools Budget,Personal Information - Redacted,Independent Units Within The Council,513650,0,VENDOR
03-07-2023,Adults & Health,Personal Information - Redacted,Respite Care - Private Contractors Payment,2569.78,0,INDIVIDUALS
03-07-2023,Adults & Health,Personal Information - Redacted,Respite Care - Private Contractors Payment,3649.54,0,INDIVIDUALS
03-07-2023,Children and Young People,Personal Information - Redacted,Payment To Private Sector Landlords (Psl),675,0,INDIVIDUALS
03-07-2023,Adults & Health,Personal Information - Redacted,Respite Care - Private Contractors Payment,3239.27,0,FOSTER CARERS
03-07-2023,Adults & Health,Personal Information - Redacted,Home Care - Private Contractors Payment,303.1,0,INDIVIDUALS
03-07-2023,Adults & Health,Personal Information - Redacted,Home Care - Private Contractors Payment,303.1,0,INDIVIDUALS
03-07-2023,Adults & Health,Personal Information - Redacted,Home Care - Private Contractors Payment,303.1,0,INDIVIDUALS
03-07-2023,Adults & Health,Personal Information - Redacted,Home Care - Private Contractors Payment,303.1,0,INDIVIDUALS
03-07-2023,Adults & Health,Personal Information - Redacted,Respite Care - Private Contractors Payment,790.33,0,INDIVIDUALS
03-07-2023,Adults & Health,Personal Information - Redacted,Respite Care - Private Contractors Payment,790.33,0,INDIVIDUALS
03-07-2023,Adults & Health,Personal Information - Redacted,Respite Care - Private Contractors Payment,790.33,0,INDIVIDUALS
03-07-2023,Adults & Health,Personal Information - Redacted,Respite Care - Private Contractors Payment,790.33,0,INDIVIDUALS
03-07-2023,Adults & Health,Personal Information - Redacted,Home Care - Private Contractors Payment,326.9,0,INDIVIDUALS
03-07-2023,Adults & Health,Personal Information - Redacted,Home Care - Private Contractors Payment,326.9,0,INDIVIDUALS
03-07-2023,Adults & Health,Personal Information - Redacted,Home Care - Private Contractors Payment,326.9,0,INDIVIDUALS
03-07-2023,Adults & Health,Personal Information - Redacted,Home Care - Private Contractors Payment,326.9,0,INDIVIDUALS
03-07-2023,Children and Young People,Personal Information - Redacted,Additional Placements - Third Party,546,0,INDIVIDUALS
03-07-2023,Dedicated Schools Budget,Personal Information - Redacted,Payment To Health Authorities,8092.12,0,INDIVIDUALS
03-07-2023,Environment and Sustainable Transport,Ian Lock Associates Ltd,Staff Development And Training,3281.25,0,COMMERCIAL SUPPLIER
03-07-2023,Inclusive Economy & Housing,Insurance Claims Accomodation Bureau Limited,Rents Payable,462,0,COMMERCIAL SUPPLIER
03-07-2023,Transformation,East London Community Sports Association,Premises Hire - Facilities,1275,0,VENDOR
03-07-2023,Marketing,The Pixel Parlour,Design And Photographic Costs,657.2,0,COMMERCIAL SUPPLIER
03-07-2023,Marketing,The Pixel Parlour,Design And Photographic Costs,569.6,0,COMMERCIAL SUPPLIER
03-07-2023,Inclusive Economy & Housing,Insurance Claims Accomodation Bureau Limited,Rents Payable,1523,0,COMMERCIAL SUPPLIER
03-07-2023,Inclusive Economy & Housing,Insurance Claims Accomodation Bureau Limited,Rents Payable,1417.33,0,COMMERCIAL SUPPLIER
03-07-2023,Inclusive Economy & Housing,Insurance Claims Accomodation Bureau Limited,Rents Payable,766,0,COMMERCIAL SUPPLIER
03-07-2023,Inclusive Economy & Housing,Insurance Claims Accomodation Bureau Limited,Rents Payable,766,0,COMMERCIAL SUPPLIER
03-07-2023,Inclusive Economy & Housing,Insurance Claims Accomodation Bureau Limited,Rents Payable,1037.92,0,COMMERCIAL SUPPLIER
03-07-2023,Inclusive Economy & Housing,Insurance Claims Accomodation Bureau Limited,Rents Payable,666.68,0,COMMERCIAL SUPPLIER
03-07-2023,Inclusive Economy & Housing,Insurance Claims Accomodation Bureau Limited,Rents Payable,396,0,COMMERCIAL SUPPLIER
03-07-2023,Marketing,Jackies Love Kitchen Ltd,Events,7194.99,0,INDIVIDUALS
03-07-2023,Housing Revenue Account,CTR Triangle Ltd,Payments To Voluntary Sector,150090,0,VENDOR
03-07-2023,oneSource - Non Shared,Bellrock Property & Facilities Management Ltd,"Maintenance - Equipment, Furniture And Materials",720,0,
03-07-2023,oneSource - Non Shared,Bellrock Property & Facilities Management Ltd,"Maintenance - Equipment, Furniture And Materials",225,0,
03-07-2023,oneSource - Non Shared,Bellrock Property & Facilities Management Ltd,"Maintenance - Equipment, Furniture And Materials",20525.19,0,
03-07-2023,oneSource - Non Shared,Bellrock Property & Facilities Management Ltd,"Maintenance - Equipment, Furniture And Materials",2610.27,0,
03-07-2023,Marketing,VCCP Blue,"Advertising, Publicity And Marketing",8761,0,COMMERCIAL SUPPLIER
03-07-2023,Marketing,VCCP Blue,"Advertising, Publicity And Marketing",8761,0,COMMERCIAL SUPPLIER
03-07-2023,oneSource - Non Shared,Financial Data Management PLC,Printing,762.93,0,COMMERCIAL SUPPLIER
03-07-2023,oneSource - Non Shared,Financial Data Management PLC,Printing,476.84,0,COMMERCIAL SUPPLIER
03-07-2023,oneSource - Non Shared,Financial Data Management PLC,Printing,2453.49,0,COMMERCIAL SUPPLIER
03-07-2023,oneSource - Non Shared,Financial Data Management PLC,Printing,1424.17,0,COMMERCIAL SUPPLIER
03-07-2023,Children and Young People,Goldline Cars Ltd,Client Transport,18569.8,0,COMMERCIAL SUPPLIER
03-07-2023,Environment and Sustainable Transport,Greener Solutions,Highway Services,285,0,VENDOR
03-07-2023,oneSource,Smartprint Display Ltd,Printing,460,0,VENDOR
03-07-2023,Adults & Health,Access Independent Ltd,Occupational Health,412,0,COMMERCIAL SUPPLIER
03-07-2023,Adults & Health,Ebme Solutions Ltd,"Purchase - Equipment, Furniture And Materials",343.64,0,COMMERCIAL SUPPLIER
03-07-2023,Adults & Health,Ebme Solutions Ltd,"Purchase - Equipment, Furniture And Materials",545.8,0,COMMERCIAL SUPPLIER
03-07-2023,Adults & Health,Ebme Solutions Ltd,"Purchase - Equipment, Furniture And Materials",269.5,0,COMMERCIAL SUPPLIER
03-07-2023,Adults & Health,Ebme Solutions Ltd,"Purchase - Equipment, Furniture And Materials",581.68,0,COMMERCIAL SUPPLIER
03-07-2023,Adults & Health,Ebme Solutions Ltd,"Purchase - Equipment, Furniture And Materials",1006.74,0,COMMERCIAL SUPPLIER
03-07-2023,Adults & Health,Ebme Solutions Ltd,"Purchase - Equipment, Furniture And Materials",895.08,0,COMMERCIAL SUPPLIER
03-07-2023,Adults & Health,Ebme Solutions Ltd,"Purchase - Equipment, Furniture And Materials",897.99,0,COMMERCIAL SUPPLIER
03-07-2023,Adults & Health,Ebme Solutions Ltd,"Purchase - Equipment, Furniture And Materials",343.66,0,COMMERCIAL SUPPLIER
03-07-2023,Adults & Health,Ebme Solutions Ltd,"Purchase - Equipment, Furniture And Materials",508.39,0,COMMERCIAL SUPPLIER
03-07-2023,Adults & Health,Ebme Solutions Ltd,"Purchase - Equipment, Furniture And Materials",490,0,COMMERCIAL SUPPLIER
03-07-2023,Adults & Health,Ebme Solutions Ltd,"Purchase - Equipment, Furniture And Materials",483.63,0,COMMERCIAL SUPPLIER
03-07-2023,Adults & Health,Ebme Solutions Ltd,"Purchase - Equipment, Furniture And Materials",1353.12,0,COMMERCIAL SUPPLIER
03-07-2023,Adults & Health,Ebme Solutions Ltd,"Purchase - Equipment, Furniture And Materials",1036.55,0,COMMERCIAL SUPPLIER
03-07-2023,Inclusive Economy & Housing,Jeremy Benn Associates Limited,Consultancy Fees,8795,0,COMMERCIAL SUPPLIER
03-07-2023,oneSource - Non Shared,Financial Data Management PLC,Printing,1442.92,0,COMMERCIAL SUPPLIER
03-07-2023,Children and Young People,Bridging Gaps Fostering Agency,Other Contributions & Reimbursements (Income),1214.29,0,COMMERCIAL SUPPLIER
03-07-2023,Children and Young People,Bridging Gaps Fostering Agency,Other Contributions & Reimbursements (Income),850,0,COMMERCIAL SUPPLIER
03-07-2023,Children and Young People,Bridging Gaps Fostering Agency,Other Contributions & Reimbursements (Income),850,0,COMMERCIAL SUPPLIER
03-07-2023,Children and Young People,Bridging Gaps Fostering Agency,Other Contributions & Reimbursements (Income),850,0,COMMERCIAL SUPPLIER
03-07-2023,Marketing,Star Books International,"Books, Publications And Resources",1343.85,0,VENDOR
03-07-2023,Adults & Health,Rhythmic Care UK Ltd,Private Contractors Payment - Other,2299.2,0,COMMERCIAL SUPPLIER
03-07-2023,Environment and Sustainable Transport,Ford Motor Company Ltd t/a PartsPlus,Highway Services,20.97,0,COMMERCIAL SUPPLIER
03-07-2023,Environment and Sustainable Transport,Ford Motor Company Ltd t/a PartsPlus,Highway Services,68.34,0,COMMERCIAL SUPPLIER
03-07-2023,Environment and Sustainable Transport,Ford Motor Company Ltd t/a PartsPlus,Highway Services,22.54,0,COMMERCIAL SUPPLIER
03-07-2023,Environment and Sustainable Transport,Ford Motor Company Ltd t/a PartsPlus,Highway Services,59.39,0,COMMERCIAL SUPPLIER
03-07-2023,Environment and Sustainable Transport,Ford Motor Company Ltd t/a PartsPlus,Highway Services,7.29,0,COMMERCIAL SUPPLIER
03-07-2023,Environment and Sustainable Transport,Ford Motor Company Ltd t/a PartsPlus,Highway Services,11.06,0,COMMERCIAL SUPPLIER
03-07-2023,Environment and Sustainable Transport,Ford Motor Company Ltd t/a PartsPlus,Highway Services,56.4,0,COMMERCIAL SUPPLIER
03-07-2023,Environment and Sustainable Transport,Ford Motor Company Ltd t/a PartsPlus,Highway Services,47.98,0,COMMERCIAL SUPPLIER
03-07-2023,Environment and Sustainable Transport,Ford Motor Company Ltd t/a PartsPlus,Highway Services,33,0,COMMERCIAL SUPPLIER
03-07-2023,Environment and Sustainable Transport,Ford Motor Company Ltd t/a PartsPlus,Highway Services,29.4,0,COMMERCIAL SUPPLIER
03-07-2023,oneSource - Non Shared,Crystal Electronics Ltd,Building Alterations And Materials,470,0,COMMERCIAL SUPPLIER
03-07-2023,oneSource - Non Shared,Crystal Electronics Ltd,Building Alterations And Materials,207.02,0,COMMERCIAL SUPPLIER
03-07-2023,oneSource - Non Shared,Crystal Electronics Ltd,Building Alterations And Materials,201.14,0,COMMERCIAL SUPPLIER
03-07-2023,oneSource - Non Shared,Crystal Electronics Ltd,Building Alterations And Materials,70,0,COMMERCIAL SUPPLIER
03-07-2023,oneSource - Non Shared,Crystal Electronics Ltd,Building Alterations And Materials,159.53,0,COMMERCIAL SUPPLIER
03-07-2023,oneSource - Non Shared,Crystal Electronics Ltd,Building Alterations And Materials,50,0,COMMERCIAL SUPPLIER
03-07-2023,Adults & Health,Bio Luminuex Health Care Ltd,Home Care - Private Contractors Payment,323.19,0,VENDOR
03-07-2023,Adults & Health,Bio Luminuex Health Care Ltd,Home Care - Private Contractors Payment,430.92,0,VENDOR
03-07-2023,Adults & Health,Bio Luminuex Health Care Ltd,Home Care - Private Contractors Payment,107.73,0,VENDOR
03-07-2023,Adults & Health,Bio Luminuex Health Care Ltd,Home Care - Private Contractors Payment,179.55,0,VENDOR
03-07-2023,Adults & Health,Bio Luminuex Health Care Ltd,Daycare - Private Contractors Payment,143.64,0,VENDOR
03-07-2023,Adults & Health,Bio Luminuex Health Care Ltd,Home Care - Private Contractors Payment,179.55,0,VENDOR
03-07-2023,Adults & Health,Bio Luminuex Health Care Ltd,Home Care - Private Contractors Payment,41.04,0,VENDOR
03-07-2023,Adults & Health,Bio Luminuex Health Care Ltd,Home Care - Private Contractors Payment,323.19,0,VENDOR
03-07-2023,Adults & Health,Bio Luminuex Health Care Ltd,Home Care - Private Contractors Payment,251.37,0,VENDOR
03-07-2023,Adults & Health,Bio Luminuex Health Care Ltd,Home Care - Private Contractors Payment,215.46,0,VENDOR
03-07-2023,Adults & Health,Bio Luminuex Health Care Ltd,Home Care - Private Contractors Payment,287.28,0,VENDOR
03-07-2023,Adults & Health,Bio Luminuex Health Care Ltd,Home Care - Private Contractors Payment,20.52,0,VENDOR
03-07-2023,Adults & Health,Bio Luminuex Health Care Ltd,Home Care - Private Contractors Payment,71.82,0,VENDOR
03-07-2023,Adults & Health,Bio Luminuex Health Care Ltd,Daycare - Private Contractors Payment,102.6,0,VENDOR
03-07-2023,Adults & Health,Bio Luminuex Health Care Ltd,Home Care - Private Contractors Payment,574.56,0,VENDOR
03-07-2023,Adults & Health,Bio Luminuex Health Care Ltd,Home Care - Private Contractors Payment,220.59,0,VENDOR
03-07-2023,Adults & Health,Bio Luminuex Health Care Ltd,Home Care - Private Contractors Payment,430.92,0,VENDOR
03-07-2023,Adults & Health,Bio Luminuex Health Care Ltd,Home Care - Private Contractors Payment,323.19,0,VENDOR
03-07-2023,Adults & Health,Bio Luminuex Health Care Ltd,Home Care - Private Contractors Payment,20.52,0,VENDOR
03-07-2023,Adults & Health,Bio Luminuex Health Care Ltd,Daycare - Private Contractors Payment,71.82,0,VENDOR
03-07-2023,Adults & Health,Bio Luminuex Health Care Ltd,Home Care - Private Contractors Payment,30.78,0,VENDOR
03-07-2023,Adults & Health,Bio Luminuex Health Care Ltd,Daycare - Private Contractors Payment,61.56,0,VENDOR
03-07-2023,Adults & Health,Bio Luminuex Health Care Ltd,Daycare - Private Contractors Payment,205.2,0,VENDOR
03-07-2023,Adults & Health,Bio Luminuex Health Care Ltd,Home Care - Private Contractors Payment,251.37,0,VENDOR
03-07-2023,Adults & Health,Bio Luminuex Health Care Ltd,Home Care - Private Contractors Payment,666.9,0,VENDOR
03-07-2023,Adults & Health,Bio Luminuex Health Care Ltd,Home Care - Private Contractors Payment,61.56,0,VENDOR
03-07-2023,Adults & Health,Bio Luminuex Health Care Ltd,Home Care - Private Contractors Payment,179.55,0,VENDOR
03-07-2023,Adults & Health,Bio Luminuex Health Care Ltd,Home Care - Private Contractors Payment,20.52,0,VENDOR
03-07-2023,Adults & Health,Bio Luminuex Health Care Ltd,Home Care - Private Contractors Payment,251.37,0,VENDOR
03-07-2023,Adults & Health,Bio Luminuex Health Care Ltd,Home Care - Private Contractors Payment,610.47,0,VENDOR
03-07-2023,Adults & Health,Bio Luminuex Health Care Ltd,Daycare - Private Contractors Payment,61.56,0,VENDOR
03-07-2023,Adults & Health,Bio Luminuex Health Care Ltd,Home Care - Private Contractors Payment,754.11,0,VENDOR
03-07-2023,Adults & Health,Bio Luminuex Health Care Ltd,Home Care - Private Contractors Payment,20.52,0,VENDOR
03-07-2023,Adults & Health,Bio Luminuex Health Care Ltd,Home Care - Private Contractors Payment,179.55,0,VENDOR
03-07-2023,Adults & Health,Bio Luminuex Health Care Ltd,Home Care - Private Contractors Payment,430.92,0,VENDOR
03-07-2023,Adults & Health,Bio Luminuex Health Care Ltd,Home Care - Private Contractors Payment,30.78,0,VENDOR
03-07-2023,Adults & Health,Bio Luminuex Health Care Ltd,Home Care - Private Contractors Payment,123.12,0,VENDOR
03-07-2023,Adults & Health,Bio Luminuex Health Care Ltd,Home Care - Private Contractors Payment,215.46,0,VENDOR
03-07-2023,Adults & Health,Bio Luminuex Health Care Ltd,Home Care - Private Contractors Payment,323.19,0,VENDOR
03-07-2023,Adults & Health,Bio Luminuex Health Care Ltd,Daycare - Private Contractors Payment,41.04,0,VENDOR
03-07-2023,Adults & Health,Bio Luminuex Health Care Ltd,Home Care - Private Contractors Payment,251.37,0,VENDOR
03-07-2023,Adults & Health,Bio Luminuex Health Care Ltd,Daycare - Private Contractors Payment,205.2,0,VENDOR
03-07-2023,Adults & Health,Bio Luminuex Health Care Ltd,Daycare - Private Contractors Payment,61.56,0,VENDOR
03-07-2023,Adults & Health,Bio Luminuex Health Care Ltd,Home Care - Private Contractors Payment,143.64,0,VENDOR
03-07-2023,Adults & Health,Bio Luminuex Health Care Ltd,Home Care - Private Contractors Payment,10.26,0,VENDOR
03-07-2023,Adults & Health,Bio Luminuex Health Care Ltd,Home Care - Private Contractors Payment,502.74,0,VENDOR
03-07-2023,Adults & Health,Bio Luminuex Health Care Ltd,Home Care - Private Contractors Payment,574.56,0,VENDOR
03-07-2023,Adults & Health,Bio Luminuex Health Care Ltd,Home Care - Private Contractors Payment,323.19,0,VENDOR
03-07-2023,Adults & Health,Bio Luminuex Health Care Ltd,Home Care - Private Contractors Payment,646.38,0,VENDOR
03-07-2023,Adults & Health,Bio Luminuex Health Care Ltd,Home Care - Private Contractors Payment,323.19,0,VENDOR
03-07-2023,Adults & Health,Bio Luminuex Health Care Ltd,Home Care - Private Contractors Payment,15.39,0,VENDOR
03-07-2023,Adults & Health,Bio Luminuex Health Care Ltd,Daycare - Private Contractors Payment,123.12,0,VENDOR
03-07-2023,Adults & Health,Bio Luminuex Health Care Ltd,Home Care - Private Contractors Payment,15.39,0,VENDOR
03-07-2023,Adults & Health,Bio Luminuex Health Care Ltd,Home Care - Private Contractors Payment,251.37,0,VENDOR
03-07-2023,Adults & Health,Bio Luminuex Health Care Ltd,Daycare - Private Contractors Payment,102.6,0,VENDOR
03-07-2023,Adults & Health,Bio Luminuex Health Care Ltd,Home Care - Private Contractors Payment,179.55,0,VENDOR
03-07-2023,Adults & Health,Bio Luminuex Health Care Ltd,Home Care - Private Contractors Payment,20.52,0,VENDOR
03-07-2023,Adults & Health,Bio Luminuex Health Care Ltd,Home Care - Private Contractors Payment,251.37,0,VENDOR
03-07-2023,Adults & Health,Bio Luminuex Health Care Ltd,Home Care - Private Contractors Payment,30.78,0,VENDOR
03-07-2023,Adults & Health,Bio Luminuex Health Care Ltd,Home Care - Private Contractors Payment,20.52,0,VENDOR
03-07-2023,Adults & Health,Bio Luminuex Health Care Ltd,Home Care - Private Contractors Payment,107.73,0,VENDOR
03-07-2023,Adults & Health,Bio Luminuex Health Care Ltd,Daycare - Private Contractors Payment,143.64,0,VENDOR
03-07-2023,Adults & Health,Bio Luminuex Health Care Ltd,Home Care - Private Contractors Payment,200.07,0,VENDOR
03-07-2023,Adults & Health,Bio Luminuex Health Care Ltd,Home Care - Private Contractors Payment,71.82,0,VENDOR
03-07-2023,Adults & Health,Bio Luminuex Health Care Ltd,Home Care - Private Contractors Payment,20.52,0,VENDOR
03-07-2023,Adults & Health,Bio Luminuex Health Care Ltd,Home Care - Private Contractors Payment,30.78,0,VENDOR
03-07-2023,Adults & Health,Bio Luminuex Health Care Ltd,Daycare - Private Contractors Payment,143.64,0,VENDOR
03-07-2023,Adults & Health,Bio Luminuex Health Care Ltd,Home Care - Private Contractors Payment,646.38,0,VENDOR
03-07-2023,Adults & Health,Bio Luminuex Health Care Ltd,Home Care - Private Contractors Payment,107.73,0,VENDOR
03-07-2023,Adults & Health,Bio Luminuex Health Care Ltd,Daycare - Private Contractors Payment,82.08,0,VENDOR
03-07-2023,Adults & Health,Bio Luminuex Health Care Ltd,Daycare - Private Contractors Payment,41.04,0,VENDOR
03-07-2023,Adults & Health,Bio Luminuex Health Care Ltd,Home Care - Private Contractors Payment,323.19,0,VENDOR
03-07-2023,Adults & Health,Bio Luminuex Health Care Ltd,Home Care - Private Contractors Payment,646.38,0,VENDOR
03-07-2023,Adults & Health,Bio Luminuex Health Care Ltd,Daycare - Private Contractors Payment,51.3,0,VENDOR
03-07-2023,Adults & Health,Bio Luminuex Health Care Ltd,Home Care - Private Contractors Payment,15.39,0,VENDOR
03-07-2023,Adults & Health,Bio Luminuex Health Care Ltd,Home Care - Private Contractors Payment,41.04,0,VENDOR
03-07-2023,Adults & Health,Bio Luminuex Health Care Ltd,Home Care - Private Contractors Payment,897.75,0,VENDOR
03-07-2023,Adults & Health,Bio Luminuex Health Care Ltd,Home Care - Private Contractors Payment,20.52,0,VENDOR
03-07-2023,Adults & Health,Bio Luminuex Health Care Ltd,Home Care - Private Contractors Payment,20.52,0,VENDOR
03-07-2023,Adults & Health,Bio Luminuex Health Care Ltd,Home Care - Private Contractors Payment,179.55,0,VENDOR
03-07-2023,Adults & Health,Bio Luminuex Health Care Ltd,Home Care - Private Contractors Payment,20.52,0,VENDOR
03-07-2023,Adults & Health,Bio Luminuex Health Care Ltd,Home Care - Private Contractors Payment,107.73,0,VENDOR
03-07-2023,Adults & Health,Bio Luminuex Health Care Ltd,Home Care - Private Contractors Payment,20.52,0,VENDOR
03-07-2023,Adults & Health,Bio Luminuex Health Care Ltd,Daycare - Private Contractors Payment,143.64,0,VENDOR
03-07-2023,Adults & Health,Bio Luminuex Health Care Ltd,Home Care - Private Contractors Payment,646.38,0,VENDOR
03-07-2023,Adults & Health,Bio Luminuex Health Care Ltd,Home Care - Private Contractors Payment,610.47,0,VENDOR
03-07-2023,Adults & Health,Bio Luminuex Health Care Ltd,Daycare - Private Contractors Payment,102.6,0,VENDOR
03-07-2023,Adults & Health,Bio Luminuex Health Care Ltd,Home Care - Private Contractors Payment,359.1,0,VENDOR
03-07-2023,Adults & Health,Bio Luminuex Health Care Ltd,Home Care - Private Contractors Payment,215.46,0,VENDOR
03-07-2023,Adults & Health,Bio Luminuex Health Care Ltd,Home Care - Private Contractors Payment,20.52,0,VENDOR
03-07-2023,Adults & Health,Bio Luminuex Health Care Ltd,Home Care - Private Contractors Payment,287.28,0,VENDOR
03-07-2023,Adults & Health,Bio Luminuex Health Care Ltd,Home Care - Private Contractors Payment,251.37,0,VENDOR
03-07-2023,Adults & Health,Bio Luminuex Health Care Ltd,Respite Care - Private Contractors Payment,15.39,0,VENDOR
03-07-2023,Adults & Health,Bio Luminuex Health Care Ltd,Daycare - Private Contractors Payment,41.04,0,VENDOR
03-07-2023,Adults & Health,Bio Luminuex Health Care Ltd,Respite Care - Private Contractors Payment,153.9,0,VENDOR
03-07-2023,Adults & Health,Bio Luminuex Health Care Ltd,Home Care - Private Contractors Payment,71.82,0,VENDOR
03-07-2023,Adults & Health,Bio Luminuex Health Care Ltd,Home Care - Private Contractors Payment,666.9,0,VENDOR
03-07-2023,Adults & Health,Bio Luminuex Health Care Ltd,Home Care - Private Contractors Payment,251.37,0,VENDOR
03-07-2023,Adults & Health,Bio Luminuex Health Care Ltd,Home Care - Private Contractors Payment,20.52,0,VENDOR
03-07-2023,Adults & Health,Bio Luminuex Health Care Ltd,Home Care - Private Contractors Payment,251.37,0,VENDOR
03-07-2023,Adults & Health,Bio Luminuex Health Care Ltd,Home Care - Private Contractors Payment,395.01,0,VENDOR
03-07-2023,Adults & Health,Bio Luminuex Health Care Ltd,Home Care - Private Contractors Payment,323.19,0,VENDOR
03-07-2023,Adults & Health,Bio Luminuex Health Care Ltd,Home Care - Private Contractors Payment,71.82,0,VENDOR
03-07-2023,Adults & Health,Bio Luminuex Health Care Ltd,Home Care - Private Contractors Payment,179.55,0,VENDOR
03-07-2023,Adults & Health,Bio Luminuex Health Care Ltd,Home Care - Private Contractors Payment,102.6,0,VENDOR
03-07-2023,Adults & Health,Bio Luminuex Health Care Ltd,Home Care - Private Contractors Payment,287.28,0,VENDOR
03-07-2023,Adults & Health,Bio Luminuex Health Care Ltd,Home Care - Private Contractors Payment,20.52,0,VENDOR
03-07-2023,Adults & Health,Bio Luminuex Health Care Ltd,Reablement,215.46,0,VENDOR
03-07-2023,Adults & Health,Bio Luminuex Health Care Ltd,Home Care - Private Contractors Payment,30.78,0,VENDOR
03-07-2023,Adults & Health,Bio Luminuex Health Care Ltd,Home Care - Private Contractors Payment,215.46,0,VENDOR
03-07-2023,Adults & Health,Bio Luminuex Health Care Ltd,Home Care - Private Contractors Payment,251.37,0,VENDOR
03-07-2023,Adults & Health,Bio Luminuex Health Care Ltd,Home Care - Private Contractors Payment,20.52,0,VENDOR
03-07-2023,Adults & Health,Bio Luminuex Health Care Ltd,Daycare - Private Contractors Payment,61.56,0,VENDOR
03-07-2023,Adults & Health,Bio Luminuex Health Care Ltd,Home Care - Private Contractors Payment,348.84,0,VENDOR
03-07-2023,Adults & Health,Bio Luminuex Health Care Ltd,Home Care - Private Contractors Payment,646.38,0,VENDOR
03-07-2023,Adults & Health,Bio Luminuex Health Care Ltd,Home Care - Private Contractors Payment,41.04,0,VENDOR
03-07-2023,Adults & Health,Bio Luminuex Health Care Ltd,Daycare - Private Contractors Payment,102.6,0,VENDOR
03-07-2023,Adults & Health,Bio Luminuex Health Care Ltd,Home Care - Private Contractors Payment,246.24,0,VENDOR
03-07-2023,Adults & Health,Bio Luminuex Health Care Ltd,Home Care - Private Contractors Payment,287.28,0,VENDOR
03-07-2023,Adults & Health,Bio Luminuex Health Care Ltd,Home Care - Private Contractors Payment,251.37,0,VENDOR
03-07-2023,Adults & Health,Bio Luminuex Health Care Ltd,Home Care - Private Contractors Payment,20.52,0,VENDOR
03-07-2023,Adults & Health,Bio Luminuex Health Care Ltd,Respite Care - Private Contractors Payment,30.78,0,VENDOR
03-07-2023,Adults & Health,Bio Luminuex Health Care Ltd,Home Care - Private Contractors Payment,20.52,0,VENDOR
03-07-2023,Adults & Health,Bio Luminuex Health Care Ltd,Daycare - Private Contractors Payment,30.78,0,VENDOR
03-07-2023,Adults & Health,Bio Luminuex Health Care Ltd,Daycare - Private Contractors Payment,143.64,0,VENDOR
03-07-2023,Adults & Health,Bio Luminuex Health Care Ltd,Home Care - Private Contractors Payment,610.47,0,VENDOR
03-07-2023,Adults & Health,Bio Luminuex Health Care Ltd,Home Care - Private Contractors Payment,718.2,0,VENDOR
03-07-2023,Adults & Health,Bio Luminuex Health Care Ltd,Daycare - Private Contractors Payment,143.64,0,VENDOR
03-07-2023,Adults & Health,Bio Luminuex Health Care Ltd,Daycare - Private Contractors Payment,30.78,0,VENDOR
03-07-2023,Adults & Health,Bio Luminuex Health Care Ltd,Home Care - Private Contractors Payment,251.37,0,VENDOR
03-07-2023,Adults & Health,Bio Luminuex Health Care Ltd,Home Care - Private Contractors Payment,41.04,0,VENDOR
03-07-2023,Adults & Health,Bio Luminuex Health Care Ltd,Home Care - Private Contractors Payment,323.19,0,VENDOR
03-07-2023,Adults & Health,Bio Luminuex Health Care Ltd,Home Care - Private Contractors Payment,395.01,0,VENDOR
03-07-2023,Adults & Health,Bio Luminuex Health Care Ltd,Home Care - Private Contractors Payment,179.55,0,VENDOR
03-07-2023,Adults & Health,Bio Luminuex Health Care Ltd,Home Care - Private Contractors Payment,30.78,0,VENDOR
03-07-2023,Adults & Health,Bio Luminuex Health Care Ltd,Home Care - Private Contractors Payment,107.73,0,VENDOR
03-07-2023,Adults & Health,Bio Luminuex Health Care Ltd,Home Care - Private Contractors Payment,107.73,0,VENDOR
03-07-2023,Adults & Health,Bio Luminuex Health Care Ltd,Reablement,143.64,0,VENDOR
03-07-2023,Adults & Health,Bio Luminuex Health Care Ltd,Home Care - Private Contractors Payment,430.92,0,VENDOR
03-07-2023,Adults & Health,Bio Luminuex Health Care Ltd,Daycare - Private Contractors Payment,143.64,0,VENDOR
03-07-2023,Adults & Health,Bio Luminuex Health Care Ltd,Home Care - Private Contractors Payment,61.56,0,VENDOR
03-07-2023,Adults & Health,Bio Luminuex Health Care Ltd,Home Care - Private Contractors Payment,251.37,0,VENDOR
03-07-2023,Adults & Health,Bio Luminuex Health Care Ltd,Home Care - Private Contractors Payment,251.37,0,VENDOR
03-07-2023,Adults & Health,Bio Luminuex Health Care Ltd,Home Care - Private Contractors Payment,179.55,0,VENDOR
03-07-2023,Adults & Health,Bio Luminuex Health Care Ltd,Home Care - Private Contractors Payment,107.73,0,VENDOR
03-07-2023,Adults & Health,Bio Luminuex Health Care Ltd,Home Care - Private Contractors Payment,128.25,0,VENDOR
03-07-2023,Adults & Health,Bio Luminuex Health Care Ltd,Home Care - Private Contractors Payment,76.95,0,VENDOR
03-07-2023,Adults & Health,Bio Luminuex Health Care Ltd,Home Care - Private Contractors Payment,251.37,0,VENDOR
03-07-2023,Adults & Health,Bio Luminuex Health Care Ltd,Home Care - Private Contractors Payment,359.1,0,VENDOR
03-07-2023,Adults & Health,Bio Luminuex Health Care Ltd,Home Care - Private Contractors Payment,128.25,0,VENDOR
03-07-2023,Adults & Health,Bio Luminuex Health Care Ltd,Home Care - Private Contractors Payment,107.73,0,VENDOR
03-07-2023,Adults & Health,Bio Luminuex Health Care Ltd,Home Care - Private Contractors Payment,179.55,0,VENDOR
03-07-2023,Adults & Health,Bio Luminuex Health Care Ltd,Home Care - Private Contractors Payment,20.52,0,VENDOR
03-07-2023,Adults & Health,Bio Luminuex Health Care Ltd,Home Care - Private Contractors Payment,71.82,0,VENDOR
03-07-2023,Adults & Health,Bio Luminuex Health Care Ltd,Respite Care - Private Contractors Payment,123.12,0,VENDOR
03-07-2023,Adults & Health,Bio Luminuex Health Care Ltd,Daycare - Private Contractors Payment,41.04,0,VENDOR
03-07-2023,Adults & Health,Bio Luminuex Health Care Ltd,Reablement,20.52,0,VENDOR
03-07-2023,Adults & Health,Bio Luminuex Health Care Ltd,Respite Care - Private Contractors Payment,61.56,0,VENDOR
03-07-2023,Adults & Health,Bio Luminuex Health Care Ltd,Home Care - Private Contractors Payment,107.73,0,VENDOR
03-07-2023,Adults & Health,Bio Luminuex Health Care Ltd,Home Care - Private Contractors Payment,610.47,0,VENDOR
03-07-2023,Adults & Health,Bio Luminuex Health Care Ltd,Home Care - Private Contractors Payment,41.04,0,VENDOR
03-07-2023,Adults & Health,Bio Luminuex Health Care Ltd,Home Care - Private Contractors Payment,861.84,0,VENDOR
03-07-2023,Adults & Health,Bio Luminuex Health Care Ltd,Home Care - Private Contractors Payment,646.38,0,VENDOR
03-07-2023,Adults & Health,Bio Luminuex Health Care Ltd,Home Care - Private Contractors Payment,395.01,0,VENDOR
03-07-2023,Adults & Health,Bio Luminuex Health Care Ltd,Home Care - Private Contractors Payment,107.73,0,VENDOR
03-07-2023,Adults & Health,Bio Luminuex Health Care Ltd,Home Care - Private Contractors Payment,287.28,0,VENDOR
03-07-2023,Adults & Health,Bio Luminuex Health Care Ltd,Home Care - Private Contractors Payment,20.52,0,VENDOR
03-07-2023,Adults & Health,Bio Luminuex Health Care Ltd,Home Care - Private Contractors Payment,359.1,0,VENDOR
03-07-2023,Adults & Health,Bio Luminuex Health Care Ltd,Home Care - Private Contractors Payment,143.64,0,VENDOR
03-07-2023,Adults & Health,Bio Luminuex Health Care Ltd,Home Care - Private Contractors Payment,246.24,0,VENDOR
03-07-2023,Adults & Health,Bio Luminuex Health Care Ltd,Respite Care - Private Contractors Payment,82.08,0,VENDOR
03-07-2023,Adults & Health,Bio Luminuex Health Care Ltd,Home Care - Private Contractors Payment,41.04,0,VENDOR
03-07-2023,Adults & Health,Bio Luminuex Health Care Ltd,Home Care - Private Contractors Payment,123.12,0,VENDOR
03-07-2023,Adults & Health,Bio Luminuex Health Care Ltd,Home Care - Private Contractors Payment,179.55,0,VENDOR
03-07-2023,Adults & Health,Bio Luminuex Health Care Ltd,Home Care - Private Contractors Payment,20.52,0,VENDOR
03-07-2023,Adults & Health,Bio Luminuex Health Care Ltd,Daycare - Private Contractors Payment,533.52,0,VENDOR
03-07-2023,Adults & Health,Bio Luminuex Health Care Ltd,Home Care - Private Contractors Payment,107.73,0,VENDOR
03-07-2023,Adults & Health,Bio Luminuex Health Care Ltd,Daycare - Private Contractors Payment,41.04,0,VENDOR
03-07-2023,Adults & Health,Bio Luminuex Health Care Ltd,Home Care - Private Contractors Payment,251.37,0,VENDOR
03-07-2023,Adults & Health,Bio Luminuex Health Care Ltd,Home Care - Private Contractors Payment,251.37,0,VENDOR
03-07-2023,Adults & Health,Bio Luminuex Health Care Ltd,Home Care - Private Contractors Payment,143.64,0,VENDOR
03-07-2023,Adults & Health,Bio Luminuex Health Care Ltd,Home Care - Private Contractors Payment,251.37,0,VENDOR
03-07-2023,Adults & Health,Bio Luminuex Health Care Ltd,Home Care - Private Contractors Payment,179.55,0,VENDOR
03-07-2023,Adults & Health,Bio Luminuex Health Care Ltd,Home Care - Private Contractors Payment,107.73,0,VENDOR
03-07-2023,Adults & Health,Bio Luminuex Health Care Ltd,Home Care - Private Contractors Payment,251.37,0,VENDOR
03-07-2023,Adults & Health,Bio Luminuex Health Care Ltd,Respite Care - Private Contractors Payment,30.78,0,VENDOR
03-07-2023,Adults & Health,Bio Luminuex Health Care Ltd,Daycare - Private Contractors Payment,41.04,0,VENDOR
03-07-2023,Adults & Health,Bio Luminuex Health Care Ltd,Home Care - Private Contractors Payment,107.73,0,VENDOR
03-07-2023,Adults & Health,Bio Luminuex Health Care Ltd,Home Care - Private Contractors Payment,123.12,0,VENDOR
03-07-2023,Adults & Health,Bio Luminuex Health Care Ltd,Daycare - Private Contractors Payment,20.52,0,VENDOR
03-07-2023,Adults & Health,Bio Luminuex Health Care Ltd,Home Care - Private Contractors Payment,215.46,0,VENDOR
03-07-2023,Adults & Health,Bio Luminuex Health Care Ltd,Home Care - Private Contractors Payment,61.56,0,VENDOR
03-07-2023,Adults & Health,Bio Luminuex Health Care Ltd,Home Care - Private Contractors Payment,251.37,0,VENDOR
03-07-2023,Adults & Health,Bio Luminuex Health Care Ltd,Home Care - Private Contractors Payment,41.04,0,VENDOR
03-07-2023,Adults & Health,Bio Luminuex Health Care Ltd,Home Care - Private Contractors Payment,51.3,0,VENDOR
03-07-2023,Adults & Health,Bio Luminuex Health Care Ltd,Home Care - Private Contractors Payment,41.04,0,VENDOR
03-07-2023,Adults & Health,Bio Luminuex Health Care Ltd,Home Care - Private Contractors Payment,251.37,0,VENDOR
03-07-2023,Adults & Health,Bio Luminuex Health Care Ltd,Home Care - Private Contractors Payment,718.2,0,VENDOR
03-07-2023,Adults & Health,Bio Luminuex Health Care Ltd,Home Care - Private Contractors Payment,107.73,0,VENDOR
03-07-2023,Adults & Health,Bio Luminuex Health Care Ltd,Home Care - Private Contractors Payment,179.55,0,VENDOR
03-07-2023,Adults & Health,Bio Luminuex Health Care Ltd,Home Care - Private Contractors Payment,41.04,0,VENDOR
03-07-2023,Adults & Health,Bio Luminuex Health Care Ltd,Home Care - Private Contractors Payment,359.1,0,VENDOR
03-07-2023,Adults & Health,Bio Luminuex Health Care Ltd,Home Care - Private Contractors Payment,76.95,0,VENDOR
03-07-2023,Adults & Health,Bio Luminuex Health Care Ltd,Home Care - Private Contractors Payment,107.73,0,VENDOR
03-07-2023,Adults & Health,Bio Luminuex Health Care Ltd,Home Care - Private Contractors Payment,287.28,0,VENDOR
03-07-2023,Adults & Health,Bio Luminuex Health Care Ltd,Home Care - Private Contractors Payment,179.55,0,VENDOR
03-07-2023,Adults & Health,Bio Luminuex Health Care Ltd,Home Care - Private Contractors Payment,20.52,0,VENDOR
03-07-2023,Adults & Health,Bio Luminuex Health Care Ltd,Respite Care - Private Contractors Payment,61.56,0,VENDOR
03-07-2023,Adults & Health,Bio Luminuex Health Care Ltd,Daycare - Private Contractors Payment,61.56,0,VENDOR
03-07-2023,Adults & Health,Bio Luminuex Health Care Ltd,Home Care - Private Contractors Payment,20.52,0,VENDOR
03-07-2023,Adults & Health,Bio Luminuex Health Care Ltd,Home Care - Private Contractors Payment,30.78,0,VENDOR
03-07-2023,Adults & Health,Bio Luminuex Health Care Ltd,Home Care - Private Contractors Payment,179.55,0,VENDOR
03-07-2023,Adults & Health,Bio Luminuex Health Care Ltd,Home Care - Private Contractors Payment,179.55,0,VENDOR
03-07-2023,Adults & Health,Bio Luminuex Health Care Ltd,Home Care - Private Contractors Payment,323.19,0,VENDOR
03-07-2023,Adults & Health,Bio Luminuex Health Care Ltd,Home Care - Private Contractors Payment,71.82,0,VENDOR
03-07-2023,Adults & Health,Bio Luminuex Health Care Ltd,Home Care - Private Contractors Payment,287.28,0,VENDOR
03-07-2023,Adults & Health,Bio Luminuex Health Care Ltd,Home Care - Private Contractors Payment,20.52,0,VENDOR
03-07-2023,Adults & Health,Bio Luminuex Health Care Ltd,Home Care - Private Contractors Payment,646.38,0,VENDOR
03-07-2023,Adults & Health,Bio Luminuex Health Care Ltd,Respite Care - Private Contractors Payment,30.78,0,VENDOR
03-07-2023,Adults & Health,Bio Luminuex Health Care Ltd,Home Care - Private Contractors Payment,153.9,0,VENDOR
03-07-2023,Adults & Health,Bio Luminuex Health Care Ltd,Home Care - Private Contractors Payment,143.64,0,VENDOR
03-07-2023,Adults & Health,Bio Luminuex Health Care Ltd,Home Care - Private Contractors Payment,395.01,0,VENDOR
03-07-2023,Adults & Health,Bio Luminuex Health Care Ltd,Home Care - Private Contractors Payment,241.11,0,VENDOR
03-07-2023,Adults & Health,Bio Luminuex Health Care Ltd,Home Care - Private Contractors Payment,82.08,0,VENDOR
03-07-2023,Adults & Health,Bio Luminuex Health Care Ltd,Home Care - Private Contractors Payment,15.39,0,VENDOR
03-07-2023,Adults & Health,Bio Luminuex Health Care Ltd,Home Care - Private Contractors Payment,107.73,0,VENDOR
03-07-2023,Adults & Health,Bio Luminuex Health Care Ltd,Home Care - Private Contractors Payment,20.52,0,VENDOR
03-07-2023,Adults & Health,Bio Luminuex Health Care Ltd,Home Care - Private Contractors Payment,287.28,0,VENDOR
03-07-2023,Adults & Health,Bio Luminuex Health Care Ltd,Home Care - Private Contractors Payment,430.92,0,VENDOR
03-07-2023,Adults & Health,Bio Luminuex Health Care Ltd,Home Care - Private Contractors Payment,646.38,0,VENDOR
03-07-2023,Adults & Health,Bio Luminuex Health Care Ltd,Home Care - Private Contractors Payment,215.46,0,VENDOR
03-07-2023,Adults & Health,Bio Luminuex Health Care Ltd,Home Care - Private Contractors Payment,30.78,0,VENDOR
03-07-2023,Adults & Health,Bio Luminuex Health Care Ltd,Home Care - Private Contractors Payment,20.52,0,VENDOR
03-07-2023,Adults & Health,Bio Luminuex Health Care Ltd,Home Care - Private Contractors Payment,210.33,0,VENDOR
03-07-2023,Adults & Health,Bio Luminuex Health Care Ltd,Home Care - Private Contractors Payment,107.73,0,VENDOR
03-07-2023,Adults & Health,Bio Luminuex Health Care Ltd,Home Care - Private Contractors Payment,287.28,0,VENDOR
03-07-2023,Adults & Health,Bio Luminuex Health Care Ltd,Home Care - Private Contractors Payment,107.73,0,VENDOR
03-07-2023,Adults & Health,Bio Luminuex Health Care Ltd,Home Care - Private Contractors Payment,76.95,0,VENDOR
03-07-2023,Adults & Health,Bio Luminuex Health Care Ltd,Daycare - Private Contractors Payment,41.04,0,VENDOR
03-07-2023,Adults & Health,Bio Luminuex Health Care Ltd,Home Care - Private Contractors Payment,610.47,0,VENDOR
03-07-2023,Adults & Health,Bio Luminuex Health Care Ltd,Home Care - Private Contractors Payment,251.37,0,VENDOR
03-07-2023,Adults & Health,Bio Luminuex Health Care Ltd,Home Care - Private Contractors Payment,107.73,0,VENDOR
03-07-2023,Adults & Health,Bio Luminuex Health Care Ltd,Home Care - Private Contractors Payment,20.52,0,VENDOR
03-07-2023,Adults & Health,Bio Luminuex Health Care Ltd,Home Care - Private Contractors Payment,179.55,0,VENDOR
03-07-2023,Adults & Health,Bio Luminuex Health Care Ltd,Home Care - Private Contractors Payment,323.19,0,VENDOR
03-07-2023,Adults & Health,Bio Luminuex Health Care Ltd,Home Care - Private Contractors Payment,51.3,0,VENDOR
03-07-2023,Adults & Health,Bio Luminuex Health Care Ltd,Home Care - Private Contractors Payment,251.37,0,VENDOR
03-07-2023,Adults & Health,Bio Luminuex Health Care Ltd,Home Care - Private Contractors Payment,179.55,0,VENDOR
03-07-2023,Adults & Health,Bio Luminuex Health Care Ltd,Home Care - Private Contractors Payment,646.38,0,VENDOR
03-07-2023,Adults & Health,Bio Luminuex Health Care Ltd,Home Care - Private Contractors Payment,251.37,0,VENDOR
03-07-2023,Adults & Health,Bio Luminuex Health Care Ltd,Daycare - Private Contractors Payment,82.08,0,VENDOR
03-07-2023,Adults & Health,Bio Luminuex Health Care Ltd,Home Care - Private Contractors Payment,143.64,0,VENDOR
03-07-2023,Adults & Health,Bio Luminuex Health Care Ltd,Home Care - Private Contractors Payment,143.64,0,VENDOR
03-07-2023,Adults & Health,Bio Luminuex Health Care Ltd,Home Care - Private Contractors Payment,251.37,0,VENDOR
03-07-2023,Adults & Health,Bio Luminuex Health Care Ltd,Home Care - Private Contractors Payment,61.56,0,VENDOR
03-07-2023,Adults & Health,Bio Luminuex Health Care Ltd,Home Care - Private Contractors Payment,466.83,0,VENDOR
03-07-2023,Adults & Health,Bio Luminuex Health Care Ltd,Home Care - Private Contractors Payment,610.47,0,VENDOR
03-07-2023,Adults & Health,Bio Luminuex Health Care Ltd,Home Care - Private Contractors Payment,20.52,0,VENDOR
03-07-2023,Adults & Health,Bio Luminuex Health Care Ltd,Daycare - Private Contractors Payment,533.52,0,VENDOR
03-07-2023,Adults & Health,Bio Luminuex Health Care Ltd,Home Care - Private Contractors Payment,251.37,0,VENDOR
03-07-2023,Adults & Health,Bio Luminuex Health Care Ltd,Home Care - Private Contractors Payment,20.52,0,VENDOR
03-07-2023,Adults & Health,Bio Luminuex Health Care Ltd,Daycare - Private Contractors Payment,41.04,0,VENDOR
03-07-2023,Adults & Health,Bio Luminuex Health Care Ltd,Daycare - Private Contractors Payment,41.04,0,VENDOR
03-07-2023,Adults & Health,Bio Luminuex Health Care Ltd,Daycare - Private Contractors Payment,82.08,0,VENDOR
03-07-2023,Adults & Health,Bio Luminuex Health Care Ltd,Home Care - Private Contractors Payment,107.73,0,VENDOR
03-07-2023,Adults & Health,Bio Luminuex Health Care Ltd,Home Care - Private Contractors Payment,20.52,0,VENDOR
03-07-2023,Adults & Health,Bio Luminuex Health Care Ltd,Home Care - Private Contractors Payment,215.46,0,VENDOR
03-07-2023,Adults & Health,Bio Luminuex Health Care Ltd,Home Care - Private Contractors Payment,20.52,0,VENDOR
03-07-2023,Adults & Health,Bio Luminuex Health Care Ltd,Home Care - Private Contractors Payment,646.38,0,VENDOR
03-07-2023,Adults & Health,Bio Luminuex Health Care Ltd,Daycare - Private Contractors Payment,30.78,0,VENDOR
03-07-2023,Adults & Health,Bio Luminuex Health Care Ltd,Reablement,71.82,0,VENDOR
03-07-2023,Adults & Health,Bio Luminuex Health Care Ltd,Home Care - Private Contractors Payment,610.47,0,VENDOR
03-07-2023,Adults & Health,Bio Luminuex Health Care Ltd,Home Care - Private Contractors Payment,20.52,0,VENDOR
03-07-2023,Adults & Health,Bio Luminuex Health Care Ltd,Home Care - Private Contractors Payment,359.1,0,VENDOR
03-07-2023,Adults & Health,Bio Luminuex Health Care Ltd,Home Care - Private Contractors Payment,897.75,0,VENDOR
03-07-2023,Adults & Health,Bio Luminuex Health Care Ltd,Home Care - Private Contractors Payment,215.46,0,VENDOR
03-07-2023,Adults & Health,Bio Luminuex Health Care Ltd,Home Care - Private Contractors Payment,323.19,0,VENDOR
03-07-2023,Adults & Health,Bio Luminuex Health Care Ltd,Home Care - Private Contractors Payment,348.84,0,VENDOR
03-07-2023,Adults & Health,Bio Luminuex Health Care Ltd,Home Care - Private Contractors Payment,123.12,0,VENDOR
03-07-2023,Adults & Health,Bio Luminuex Health Care Ltd,Home Care - Private Contractors Payment,179.55,0,VENDOR
03-07-2023,Adults & Health,Bio Luminuex Health Care Ltd,Home Care - Private Contractors Payment,359.1,0,VENDOR
03-07-2023,Adults & Health,Bio Luminuex Health Care Ltd,Home Care - Private Contractors Payment,251.37,0,VENDOR
03-07-2023,Adults & Health,Bio Luminuex Health Care Ltd,Home Care - Private Contractors Payment,143.64,0,VENDOR
03-07-2023,Adults & Health,Bio Luminuex Health Care Ltd,Home Care - Private Contractors Payment,143.64,0,VENDOR
03-07-2023,Adults & Health,Bio Luminuex Health Care Ltd,Home Care - Private Contractors Payment,235.98,0,VENDOR
03-07-2023,Adults & Health,Bio Luminuex Health Care Ltd,Home Care - Private Contractors Payment,359.1,0,VENDOR
03-07-2023,Adults & Health,Bio Luminuex Health Care Ltd,Home Care - Private Contractors Payment,466.83,0,VENDOR
03-07-2023,Adults & Health,Bio Luminuex Health Care Ltd,Home Care - Private Contractors Payment,61.56,0,VENDOR
03-07-2023,Adults & Health,Bio Luminuex Health Care Ltd,Home Care - Private Contractors Payment,41.04,0,VENDOR
03-07-2023,Adults & Health,Bio Luminuex Health Care Ltd,Home Care - Private Contractors Payment,194.94,0,VENDOR
03-07-2023,Adults & Health,Bio Luminuex Health Care Ltd,Daycare - Private Contractors Payment,41.04,0,VENDOR
03-07-2023,Adults & Health,Bio Luminuex Health Care Ltd,Reablement,215.46,0,VENDOR
03-07-2023,Adults & Health,Bio Luminuex Health Care Ltd,Home Care - Private Contractors Payment,430.92,0,VENDOR
03-07-2023,Adults & Health,Bio Luminuex Health Care Ltd,Home Care - Private Contractors Payment,323.19,0,VENDOR
03-07-2023,Adults & Health,Bio Luminuex Health Care Ltd,Respite Care - Private Contractors Payment,123.12,0,VENDOR
03-07-2023,Adults & Health,Bio Luminuex Health Care Ltd,Home Care - Private Contractors Payment,251.37,0,VENDOR
03-07-2023,Adults & Health,Bio Luminuex Health Care Ltd,Home Care - Private Contractors Payment,107.73,0,VENDOR
03-07-2023,Adults & Health,Bio Luminuex Health Care Ltd,Home Care - Private Contractors Payment,395.01,0,VENDOR
03-07-2023,Adults & Health,Bio Luminuex Health Care Ltd,Home Care - Private Contractors Payment,179.55,0,VENDOR
03-07-2023,Adults & Health,Bio Luminuex Health Care Ltd,Daycare - Private Contractors Payment,61.56,0,VENDOR
03-07-2023,Adults & Health,Bio Luminuex Health Care Ltd,Home Care - Private Contractors Payment,107.73,0,VENDOR
03-07-2023,Adults & Health,Bio Luminuex Health Care Ltd,Daycare - Private Contractors Payment,215.46,0,VENDOR
03-07-2023,Adults & Health,Bio Luminuex Health Care Ltd,Home Care - Private Contractors Payment,30.78,0,VENDOR
03-07-2023,Adults & Health,Bio Luminuex Health Care Ltd,Home Care - Private Contractors Payment,251.37,0,VENDOR
03-07-2023,Adults & Health,Bio Luminuex Health Care Ltd,Daycare - Private Contractors Payment,41.04,0,VENDOR
03-07-2023,Adults & Health,Bio Luminuex Health Care Ltd,Home Care - Private Contractors Payment,718.2,0,VENDOR
03-07-2023,Adults & Health,Bio Luminuex Health Care Ltd,Home Care - Private Contractors Payment,179.55,0,VENDOR
03-07-2023,Adults & Health,Bio Luminuex Health Care Ltd,Daycare - Private Contractors Payment,71.82,0,VENDOR
03-07-2023,Adults & Health,Bio Luminuex Health Care Ltd,Home Care - Private Contractors Payment,20.52,0,VENDOR
03-07-2023,Adults & Health,Bio Luminuex Health Care Ltd,Daycare - Private Contractors Payment,82.08,0,VENDOR
03-07-2023,Adults & Health,Bio Luminuex Health Care Ltd,Home Care - Private Contractors Payment,359.1,0,VENDOR
03-07-2023,Adults & Health,Bio Luminuex Health Care Ltd,Home Care - Private Contractors Payment,102.6,0,VENDOR
03-07-2023,Adults & Health,Bio Luminuex Health Care Ltd,Home Care - Private Contractors Payment,323.19,0,VENDOR
03-07-2023,Adults & Health,Bio Luminuex Health Care Ltd,Home Care - Private Contractors Payment,348.84,0,VENDOR
03-07-2023,Adults & Health,Bio Luminuex Health Care Ltd,Home Care - Private Contractors Payment,574.56,0,VENDOR
03-07-2023,Adults & Health,Bio Luminuex Health Care Ltd,Home Care - Private Contractors Payment,51.3,0,VENDOR
03-07-2023,Adults & Health,Bio Luminuex Health Care Ltd,Home Care - Private Contractors Payment,733.59,0,VENDOR
03-07-2023,Adults & Health,Bio Luminuex Health Care Ltd,Home Care - Private Contractors Payment,143.64,0,VENDOR
03-07-2023,Adults & Health,Bio Luminuex Health Care Ltd,Home Care - Private Contractors Payment,718.2,0,VENDOR
03-07-2023,Adults & Health,Bio Luminuex Health Care Ltd,Home Care - Private Contractors Payment,41.04,0,VENDOR
03-07-2023,Adults & Health,Bio Luminuex Health Care Ltd,Home Care - Private Contractors Payment,41.04,0,VENDOR
03-07-2023,Adults & Health,Bio Luminuex Health Care Ltd,Home Care - Private Contractors Payment,179.55,0,VENDOR
03-07-2023,Adults & Health,Bio Luminuex Health Care Ltd,Home Care - Private Contractors Payment,20.52,0,VENDOR
03-07-2023,Adults & Health,Bio Luminuex Health Care Ltd,Home Care - Private Contractors Payment,20.52,0,VENDOR
03-07-2023,Adults & Health,Bio Luminuex Health Care Ltd,Reablement,20.52,0,VENDOR
03-07-2023,Adults & Health,Bio Luminuex Health Care Ltd,Home Care - Private Contractors Payment,323.19,0,VENDOR
03-07-2023,Adults & Health,Bio Luminuex Health Care Ltd,Home Care - Private Contractors Payment,20.52,0,VENDOR
03-07-2023,Adults & Health,Bio Luminuex Health Care Ltd,Home Care - Private Contractors Payment,335.69,0,VENDOR
03-07-2023,Adults & Health,Bio Luminuex Health Care Ltd,Home Care - Private Contractors Payment,71.82,0,VENDOR
03-07-2023,Adults & Health,Bio Luminuex Health Care Ltd,Home Care - Private Contractors Payment,215.46,0,VENDOR
03-07-2023,Adults & Health,Bio Luminuex Health Care Ltd,Home Care - Private Contractors Payment,615.6,0,VENDOR
03-07-2023,Adults & Health,Bio Luminuex Health Care Ltd,Respite Care - Private Contractors Payment,20.52,0,VENDOR
03-07-2023,Adults & Health,Bio Luminuex Health Care Ltd,Home Care - Private Contractors Payment,533.52,0,VENDOR
03-07-2023,Adults & Health,Bio Luminuex Health Care Ltd,Home Care - Private Contractors Payment,215.46,0,VENDOR
03-07-2023,Adults & Health,Bio Luminuex Health Care Ltd,Home Care - Private Contractors Payment,61.56,0,VENDOR
03-07-2023,Adults & Health,Bio Luminuex Health Care Ltd,Daycare - Private Contractors Payment,82.08,0,VENDOR
03-07-2023,Adults & Health,Bio Luminuex Health Care Ltd,Home Care - Private Contractors Payment,41.04,0,VENDOR
03-07-2023,Adults & Health,Bio Luminuex Health Care Ltd,Daycare - Private Contractors Payment,215.46,0,VENDOR
03-07-2023,Adults & Health,Bio Luminuex Health Care Ltd,Daycare - Private Contractors Payment,51.3,0,VENDOR
03-07-2023,Adults & Health,Bio Luminuex Health Care Ltd,Home Care - Private Contractors Payment,861.84,0,VENDOR
03-07-2023,Adults & Health,Bio Luminuex Health Care Ltd,Home Care - Private Contractors Payment,251.37,0,VENDOR
03-07-2023,Adults & Health,Bio Luminuex Health Care Ltd,Home Care - Private Contractors Payment,251.37,0,VENDOR
03-07-2023,Adults & Health,Bio Luminuex Health Care Ltd,Daycare - Private Contractors Payment,41.04,0,VENDOR
03-07-2023,Adults & Health,Bio Luminuex Health Care Ltd,Respite Care - Private Contractors Payment,123.12,0,VENDOR
03-07-2023,Adults & Health,Bio Luminuex Health Care Ltd,Home Care - Private Contractors Payment,138.51,0,VENDOR
03-07-2023,Adults & Health,Bio Luminuex Health Care Ltd,Home Care - Private Contractors Payment,359.1,0,VENDOR
03-07-2023,Adults & Health,Bio Luminuex Health Care Ltd,Home Care - Private Contractors Payment,251.37,0,VENDOR
03-07-2023,Adults & Health,Bio Luminuex Health Care Ltd,Home Care - Private Contractors Payment,179.55,0,VENDOR
03-07-2023,Adults & Health,Bio Luminuex Health Care Ltd,Daycare - Private Contractors Payment,61.56,0,VENDOR
03-07-2023,Adults & Health,Bio Luminuex Health Care Ltd,Home Care - Private Contractors Payment,20.52,0,VENDOR
03-07-2023,Adults & Health,Bio Luminuex Health Care Ltd,Home Care - Private Contractors Payment,215.46,0,VENDOR
03-07-2023,Adults & Health,Bio Luminuex Health Care Ltd,Home Care - Private Contractors Payment,251.37,0,VENDOR
03-07-2023,Adults & Health,Bio Luminuex Health Care Ltd,Home Care - Private Contractors Payment,41.04,0,VENDOR
03-07-2023,Adults & Health,Bio Luminuex Health Care Ltd,Home Care - Private Contractors Payment,41.04,0,VENDOR
03-07-2023,Adults & Health,Bio Luminuex Health Care Ltd,Daycare - Private Contractors Payment,102.6,0,VENDOR
03-07-2023,Adults & Health,Bio Luminuex Health Care Ltd,Daycare - Private Contractors Payment,41.04,0,VENDOR
03-07-2023,Adults & Health,Bio Luminuex Health Care Ltd,Respite Care - Private Contractors Payment,30.78,0,VENDOR
03-07-2023,Adults & Health,Bio Luminuex Health Care Ltd,Home Care - Private Contractors Payment,143.64,0,VENDOR
03-07-2023,Adults & Health,Bio Luminuex Health Care Ltd,Home Care - Private Contractors Payment,20.52,0,VENDOR
03-07-2023,Adults & Health,Bio Luminuex Health Care Ltd,Home Care - Private Contractors Payment,41.04,0,VENDOR
03-07-2023,Adults & Health,Bio Luminuex Health Care Ltd,Home Care - Private Contractors Payment,215.46,0,VENDOR
03-07-2023,Adults & Health,Bio Luminuex Health Care Ltd,Home Care - Private Contractors Payment,861.84,0,VENDOR
03-07-2023,Adults & Health,Bio Luminuex Health Care Ltd,Daycare - Private Contractors Payment,143.64,0,VENDOR
03-07-2023,Adults & Health,Bio Luminuex Health Care Ltd,Home Care - Private Contractors Payment,41.04,0,VENDOR
03-07-2023,Adults & Health,Bio Luminuex Health Care Ltd,Home Care - Private Contractors Payment,466.83,0,VENDOR
03-07-2023,Adults & Health,Bio Luminuex Health Care Ltd,Home Care - Private Contractors Payment,395.01,0,VENDOR
03-07-2023,Adults & Health,Bio Luminuex Health Care Ltd,Home Care - Private Contractors Payment,287.28,0,VENDOR
03-07-2023,Adults & Health,Bio Luminuex Health Care Ltd,Home Care - Private Contractors Payment,20.52,0,VENDOR
03-07-2023,Adults & Health,Bio Luminuex Health Care Ltd,Home Care - Private Contractors Payment,107.73,0,VENDOR
03-07-2023,Adults & Health,Bio Luminuex Health Care Ltd,Home Care - Private Contractors Payment,646.38,0,VENDOR
03-07-2023,Adults & Health,Bio Luminuex Health Care Ltd,Daycare - Private Contractors Payment,82.08,0,VENDOR
03-07-2023,Adults & Health,Bio Luminuex Health Care Ltd,Home Care - Private Contractors Payment,107.73,0,VENDOR
03-07-2023,Adults & Health,Bio Luminuex Health Care Ltd,Home Care - Private Contractors Payment,184.68,0,VENDOR
03-07-2023,Adults & Health,Bio Luminuex Health Care Ltd,Home Care - Private Contractors Payment,20.52,0,VENDOR
03-07-2023,Adults & Health,Bio Luminuex Health Care Ltd,Home Care - Private Contractors Payment,179.55,0,VENDOR
03-07-2023,Adults & Health,Bio Luminuex Health Care Ltd,Home Care - Private Contractors Payment,61.56,0,VENDOR
03-07-2023,Adults & Health,Bio Luminuex Health Care Ltd,Home Care - Private Contractors Payment,323.19,0,VENDOR
03-07-2023,Adults & Health,Bio Luminuex Health Care Ltd,Daycare - Private Contractors Payment,41.04,0,VENDOR
03-07-2023,Adults & Health,Bio Luminuex Health Care Ltd,Respite Care - Private Contractors Payment,20.52,0,VENDOR
03-07-2023,Adults & Health,Bio Luminuex Health Care Ltd,Home Care - Private Contractors Payment,107.73,0,VENDOR
03-07-2023,Adults & Health,Bio Luminuex Health Care Ltd,Daycare - Private Contractors Payment,61.56,0,VENDOR
03-07-2023,Adults & Health,Bio Luminuex Health Care Ltd,Home Care - Private Contractors Payment,76.95,0,VENDOR
03-07-2023,Adults & Health,Bio Luminuex Health Care Ltd,Respite Care - Private Contractors Payment,153.9,0,VENDOR
03-07-2023,Adults & Health,Bio Luminuex Health Care Ltd,Home Care - Private Contractors Payment,107.73,0,VENDOR
03-07-2023,Adults & Health,Bio Luminuex Health Care Ltd,Home Care - Private Contractors Payment,251.37,0,VENDOR
03-07-2023,Adults & Health,Bio Luminuex Health Care Ltd,Home Care - Private Contractors Payment,646.38,0,VENDOR
03-07-2023,Adults & Health,Bio Luminuex Health Care Ltd,Home Care - Private Contractors Payment,610.47,0,VENDOR
03-07-2023,Adults & Health,Bio Luminuex Health Care Ltd,Home Care - Private Contractors Payment,123.12,0,VENDOR
03-07-2023,Adults & Health,Bio Luminuex Health Care Ltd,Daycare - Private Contractors Payment,20.52,0,VENDOR
03-07-2023,Adults & Health,Bio Luminuex Health Care Ltd,Daycare - Private Contractors Payment,41.04,0,VENDOR
03-07-2023,Adults & Health,Bio Luminuex Health Care Ltd,Home Care - Private Contractors Payment,30.78,0,VENDOR
03-07-2023,Adults & Health,Bio Luminuex Health Care Ltd,Home Care - Private Contractors Payment,20.52,0,VENDOR
03-07-2023,Adults & Health,Bio Luminuex Health Care Ltd,Home Care - Private Contractors Payment,359.1,0,VENDOR
03-07-2023,Adults & Health,Bio Luminuex Health Care Ltd,Home Care - Private Contractors Payment,20.52,0,VENDOR
03-07-2023,Adults & Health,Bio Luminuex Health Care Ltd,Home Care - Private Contractors Payment,41.04,0,VENDOR
03-07-2023,Adults & Health,Bio Luminuex Health Care Ltd,Home Care - Private Contractors Payment,466.83,0,VENDOR
03-07-2023,Adults & Health,Bio Luminuex Health Care Ltd,Home Care - Private Contractors Payment,30.78,0,VENDOR
03-07-2023,Adults & Health,Bio Luminuex Health Care Ltd,Home Care - Private Contractors Payment,610.47,0,VENDOR
03-07-2023,Adults & Health,Bio Luminuex Health Care Ltd,Home Care - Private Contractors Payment,61.56,0,VENDOR
03-07-2023,Adults & Health,Bio Luminuex Health Care Ltd,Home Care - Private Contractors Payment,215.46,0,VENDOR
03-07-2023,Adults & Health,Bio Luminuex Health Care Ltd,Home Care - Private Contractors Payment,179.55,0,VENDOR
03-07-2023,Adults & Health,Bio Luminuex Health Care Ltd,Home Care - Private Contractors Payment,430.92,0,VENDOR
03-07-2023,Adults & Health,Bio Luminuex Health Care Ltd,Home Care - Private Contractors Payment,718.2,0,VENDOR
03-07-2023,Adults & Health,Bio Luminuex Health Care Ltd,Daycare - Private Contractors Payment,123.12,0,VENDOR
03-07-2023,Adults & Health,Bio Luminuex Health Care Ltd,Home Care - Private Contractors Payment,41.04,0,VENDOR
03-07-2023,Adults & Health,Bio Luminuex Health Care Ltd,Home Care - Private Contractors Payment,179.55,0,VENDOR
03-07-2023,Adults & Health,Bio Luminuex Health Care Ltd,Home Care - Private Contractors Payment,179.55,0,VENDOR
03-07-2023,Adults & Health,Bio Luminuex Health Care Ltd,Home Care - Private Contractors Payment,20.52,0,VENDOR
03-07-2023,Adults & Health,Bio Luminuex Health Care Ltd,Home Care - Private Contractors Payment,61.56,0,VENDOR
03-07-2023,Adults & Health,Bio Luminuex Health Care Ltd,Home Care - Private Contractors Payment,20.52,0,VENDOR
03-07-2023,Adults & Health,Bio Luminuex Health Care Ltd,Daycare - Private Contractors Payment,61.56,0,VENDOR
03-07-2023,Adults & Health,Bio Luminuex Health Care Ltd,Home Care - Private Contractors Payment,646.38,0,VENDOR
03-07-2023,Adults & Health,Bio Luminuex Health Care Ltd,Home Care - Private Contractors Payment,66.69,0,VENDOR
03-07-2023,Adults & Health,Bio Luminuex Health Care Ltd,Home Care - Private Contractors Payment,179.55,0,VENDOR
03-07-2023,Adults & Health,Bio Luminuex Health Care Ltd,Home Care - Private Contractors Payment,430.92,0,VENDOR
03-07-2023,Adults & Health,Bio Luminuex Health Care Ltd,Home Care - Private Contractors Payment,30.78,0,VENDOR
03-07-2023,Adults & Health,Bio Luminuex Health Care Ltd,Daycare - Private Contractors Payment,82.08,0,VENDOR
03-07-2023,Adults & Health,Bio Luminuex Health Care Ltd,Home Care - Private Contractors Payment,215.46,0,VENDOR
03-07-2023,Adults & Health,Bio Luminuex Health Care Ltd,Respite Care - Private Contractors Payment,61.56,0,VENDOR
03-07-2023,Adults & Health,Bio Luminuex Health Care Ltd,Home Care - Private Contractors Payment,323.19,0,VENDOR
03-07-2023,Adults & Health,Bio Luminuex Health Care Ltd,Home Care - Private Contractors Payment,179.55,0,VENDOR
03-07-2023,Adults & Health,Bio Luminuex Health Care Ltd,Daycare - Private Contractors Payment,143.64,0,VENDOR
03-07-2023,Adults & Health,Bio Luminuex Health Care Ltd,Home Care - Private Contractors Payment,143.64,0,VENDOR
03-07-2023,Adults & Health,Bio Luminuex Health Care Ltd,Home Care - Private Contractors Payment,41.04,0,VENDOR
03-07-2023,Adults & Health,Bio Luminuex Health Care Ltd,Home Care - Private Contractors Payment,184.68,0,VENDOR
03-07-2023,Adults & Health,Bio Luminuex Health Care Ltd,Home Care - Private Contractors Payment,718.2,0,VENDOR
03-07-2023,Adults & Health,Bio Luminuex Health Care Ltd,Home Care - Private Contractors Payment,20.52,0,VENDOR
03-07-2023,Adults & Health,Bio Luminuex Health Care Ltd,Home Care - Private Contractors Payment,215.46,0,VENDOR
03-07-2023,Adults & Health,Bio Luminuex Health Care Ltd,Reablement,61.56,0,VENDOR
03-07-2023,Adults & Health,Bio Luminuex Health Care Ltd,Home Care - Private Contractors Payment,251.37,0,VENDOR
03-07-2023,Adults & Health,Bio Luminuex Health Care Ltd,Daycare - Private Contractors Payment,82.08,0,VENDOR
03-07-2023,Adults & Health,Bio Luminuex Health Care Ltd,Home Care - Private Contractors Payment,179.55,0,VENDOR
03-07-2023,Adults & Health,Bio Luminuex Health Care Ltd,Home Care - Private Contractors Payment,112.86,0,VENDOR
03-07-2023,Adults & Health,Bio Luminuex Health Care Ltd,Respite Care - Private Contractors Payment,143.64,0,VENDOR
03-07-2023,Adults & Health,Bio Luminuex Health Care Ltd,Home Care - Private Contractors Payment,323.19,0,VENDOR
03-07-2023,Adults & Health,Bio Luminuex Health Care Ltd,Daycare - Private Contractors Payment,143.64,0,VENDOR
03-07-2023,Adults & Health,Bio Luminuex Health Care Ltd,Home Care - Private Contractors Payment,210.33,0,VENDOR
03-07-2023,Adults & Health,Bio Luminuex Health Care Ltd,Home Care - Private Contractors Payment,179.55,0,VENDOR
03-07-2023,Adults & Health,Bio Luminuex Health Care Ltd,Home Care - Private Contractors Payment,215.46,0,VENDOR
03-07-2023,Adults & Health,Bio Luminuex Health Care Ltd,Home Care - Private Contractors Payment,107.73,0,VENDOR
03-07-2023,Adults & Health,Bio Luminuex Health Care Ltd,Home Care - Private Contractors Payment,71.82,0,VENDOR
03-07-2023,Adults & Health,Bio Luminuex Health Care Ltd,Daycare - Private Contractors Payment,102.6,0,VENDOR
03-07-2023,Adults & Health,Bio Luminuex Health Care Ltd,Home Care - Private Contractors Payment,20.52,0,VENDOR
03-07-2023,Adults & Health,Bio Luminuex Health Care Ltd,Home Care - Private Contractors Payment,359.1,0,VENDOR
03-07-2023,Adults & Health,Bio Luminuex Health Care Ltd,Home Care - Private Contractors Payment,323.19,0,VENDOR
03-07-2023,Adults & Health,Bio Luminuex Health Care Ltd,Home Care - Private Contractors Payment,20.52,0,VENDOR
03-07-2023,Adults & Health,Bio Luminuex Health Care Ltd,Home Care - Private Contractors Payment,35.91,0,VENDOR
03-07-2023,Adults & Health,Bio Luminuex Health Care Ltd,Home Care - Private Contractors Payment,20.52,0,VENDOR
03-07-2023,Adults & Health,Bio Luminuex Health Care Ltd,Home Care - Private Contractors Payment,143.64,0,VENDOR
03-07-2023,Adults & Health,Bio Luminuex Health Care Ltd,Home Care - Private Contractors Payment,754.11,0,VENDOR
03-07-2023,Adults & Health,Bio Luminuex Health Care Ltd,Home Care - Private Contractors Payment,287.28,0,VENDOR
03-07-2023,Adults & Health,Bio Luminuex Health Care Ltd,Home Care - Private Contractors Payment,733.59,0,VENDOR
03-07-2023,Adults & Health,Bio Luminuex Health Care Ltd,Home Care - Private Contractors Payment,610.47,0,VENDOR
03-07-2023,Adults & Health,Bio Luminuex Health Care Ltd,Daycare - Private Contractors Payment,20.52,0,VENDOR
03-07-2023,Adults & Health,Bio Luminuex Health Care Ltd,Home Care - Private Contractors Payment,251.37,0,VENDOR
03-07-2023,Adults & Health,Bio Luminuex Health Care Ltd,Home Care - Private Contractors Payment,41.04,0,VENDOR
03-07-2023,Adults & Health,Bio Luminuex Health Care Ltd,Home Care - Private Contractors Payment,41.04,0,VENDOR
03-07-2023,Adults & Health,Bio Luminuex Health Care Ltd,Home Care - Private Contractors Payment,71.82,0,VENDOR
03-07-2023,Adults & Health,Bio Luminuex Health Care Ltd,Home Care - Private Contractors Payment,251.37,0,VENDOR
03-07-2023,Adults & Health,Bio Luminuex Health Care Ltd,Home Care - Private Contractors Payment,179.55,0,VENDOR
03-07-2023,Adults & Health,Bio Luminuex Health Care Ltd,Home Care - Private Contractors Payment,430.92,0,VENDOR
03-07-2023,Adults & Health,Bio Luminuex Health Care Ltd,Home Care - Private Contractors Payment,251.37,0,VENDOR
03-07-2023,Adults & Health,Bio Luminuex Health Care Ltd,Respite Care - Private Contractors Payment,46.17,0,VENDOR
03-07-2023,Adults & Health,Bio Luminuex Health Care Ltd,Home Care - Private Contractors Payment,251.37,0,VENDOR
03-07-2023,Adults & Health,Bio Luminuex Health Care Ltd,Daycare - Private Contractors Payment,215.46,0,VENDOR
03-07-2023,Adults & Health,Bio Luminuex Health Care Ltd,Daycare - Private Contractors Payment,123.12,0,VENDOR
03-07-2023,Adults & Health,Bio Luminuex Health Care Ltd,Home Care - Private Contractors Payment,143.64,0,VENDOR
03-07-2023,Adults & Health,Bio Luminuex Health Care Ltd,Home Care - Private Contractors Payment,323.19,0,VENDOR
03-07-2023,Adults & Health,Bio Luminuex Health Care Ltd,Home Care - Private Contractors Payment,82.08,0,VENDOR
03-07-2023,Adults & Health,Bio Luminuex Health Care Ltd,Home Care - Private Contractors Payment,30.78,0,VENDOR
03-07-2023,Adults & Health,Bio Luminuex Health Care Ltd,Home Care - Private Contractors Payment,123.12,0,VENDOR
03-07-2023,Adults & Health,Bio Luminuex Health Care Ltd,Daycare - Private Contractors Payment,61.56,0,VENDOR
03-07-2023,Adults & Health,Bio Luminuex Health Care Ltd,Home Care - Private Contractors Payment,107.73,0,VENDOR
03-07-2023,Adults & Health,Bio Luminuex Health Care Ltd,Daycare - Private Contractors Payment,20.52,0,VENDOR
03-07-2023,Adults & Health,Bio Luminuex Health Care Ltd,Home Care - Private Contractors Payment,733.59,0,VENDOR
03-07-2023,Adults & Health,Bio Luminuex Health Care Ltd,Home Care - Private Contractors Payment,200.07,0,VENDOR
03-07-2023,Adults & Health,Bio Luminuex Health Care Ltd,Daycare - Private Contractors Payment,41.04,0,VENDOR
03-07-2023,Adults & Health,Bio Luminuex Health Care Ltd,Home Care - Private Contractors Payment,179.55,0,VENDOR
03-07-2023,Adults & Health,Bio Luminuex Health Care Ltd,Home Care - Private Contractors Payment,107.73,0,VENDOR
03-07-2023,Adults & Health,Bio Luminuex Health Care Ltd,Home Care - Private Contractors Payment,466.83,0,VENDOR
03-07-2023,Adults & Health,Bio Luminuex Health Care Ltd,Home Care - Private Contractors Payment,30.78,0,VENDOR
03-07-2023,Adults & Health,Bio Luminuex Health Care Ltd,Home Care - Private Contractors Payment,251.37,0,VENDOR
03-07-2023,Adults & Health,Bio Luminuex Health Care Ltd,Home Care - Private Contractors Payment,251.37,0,VENDOR
03-07-2023,Adults & Health,Bio Luminuex Health Care Ltd,Home Care - Private Contractors Payment,41.04,0,VENDOR
03-07-2023,Adults & Health,Bio Luminuex Health Care Ltd,Home Care - Private Contractors Payment,215.46,0,VENDOR
03-07-2023,Adults & Health,Bio Luminuex Health Care Ltd,Home Care - Private Contractors Payment,287.28,0,VENDOR
03-07-2023,Adults & Health,Bio Luminuex Health Care Ltd,Home Care - Private Contractors Payment,251.37,0,VENDOR
03-07-2023,Adults & Health,Bio Luminuex Health Care Ltd,Home Care - Private Contractors Payment,179.55,0,VENDOR
03-07-2023,Adults & Health,Bio Luminuex Health Care Ltd,Daycare - Private Contractors Payment,20.52,0,VENDOR
03-07-2023,Adults & Health,Bio Luminuex Health Care Ltd,Home Care - Private Contractors Payment,107.73,0,VENDOR
03-07-2023,Adults & Health,Bio Luminuex Health Care Ltd,Home Care - Private Contractors Payment,251.37,0,VENDOR
03-07-2023,Adults & Health,Bio Luminuex Health Care Ltd,Home Care - Private Contractors Payment,251.37,0,VENDOR
03-07-2023,Adults & Health,Bio Luminuex Health Care Ltd,Home Care - Private Contractors Payment,215.46,0,VENDOR
03-07-2023,Adults & Health,Bio Luminuex Health Care Ltd,Home Care - Private Contractors Payment,287.28,0,VENDOR
03-07-2023,Adults & Health,Bio Luminuex Health Care Ltd,Home Care - Private Contractors Payment,610.47,0,VENDOR
03-07-2023,Adults & Health,Bio Luminuex Health Care Ltd,Home Care - Private Contractors Payment,220.59,0,VENDOR
03-07-2023,Adults & Health,Bio Luminuex Health Care Ltd,Respite Care - Private Contractors Payment,112.86,0,VENDOR
03-07-2023,Adults & Health,Bio Luminuex Health Care Ltd,Home Care - Private Contractors Payment,395.01,0,VENDOR
03-07-2023,Adults & Health,Bio Luminuex Health Care Ltd,Home Care - Private Contractors Payment,41.04,0,VENDOR
03-07-2023,Adults & Health,Bio Luminuex Health Care Ltd,Home Care - Private Contractors Payment,646.38,0,VENDOR
03-07-2023,Adults & Health,Bio Luminuex Health Care Ltd,Daycare - Private Contractors Payment,30.78,0,VENDOR
03-07-2023,Adults & Health,Bio Luminuex Health Care Ltd,Home Care - Private Contractors Payment,41.04,0,VENDOR
03-07-2023,Adults & Health,Bio Luminuex Health Care Ltd,Home Care - Private Contractors Payment,251.37,0,VENDOR
03-07-2023,Adults & Health,Bio Luminuex Health Care Ltd,Home Care - Private Contractors Payment,30.78,0,VENDOR
03-07-2023,Adults & Health,Bio Luminuex Health Care Ltd,Home Care - Private Contractors Payment,20.52,0,VENDOR
03-07-2023,Adults & Health,Bio Luminuex Health Care Ltd,Home Care - Private Contractors Payment,287.28,0,VENDOR
03-07-2023,Adults & Health,Bio Luminuex Health Care Ltd,Home Care - Private Contractors Payment,646.38,0,VENDOR
03-07-2023,Adults & Health,Bio Luminuex Health Care Ltd,Home Care - Private Contractors Payment,30.78,0,VENDOR
03-07-2023,Adults & Health,Bio Luminuex Health Care Ltd,Home Care - Private Contractors Payment,251.37,0,VENDOR
03-07-2023,Adults & Health,Bio Luminuex Health Care Ltd,Home Care - Private Contractors Payment,179.55,0,VENDOR
03-07-2023,Adults & Health,Bio Luminuex Health Care Ltd,Home Care - Private Contractors Payment,251.37,0,VENDOR
03-07-2023,Adults & Health,Bio Luminuex Health Care Ltd,Respite Care - Private Contractors Payment,15.39,0,VENDOR
03-07-2023,Adults & Health,Bio Luminuex Health Care Ltd,Home Care - Private Contractors Payment,82.08,0,VENDOR
03-07-2023,Adults & Health,Bio Luminuex Health Care Ltd,Home Care - Private Contractors Payment,466.83,0,VENDOR
03-07-2023,Adults & Health,Bio Luminuex Health Care Ltd,Home Care - Private Contractors Payment,107.73,0,VENDOR
03-07-2023,Adults & Health,Bio Luminuex Health Care Ltd,Home Care - Private Contractors Payment,20.52,0,VENDOR
03-07-2023,Adults & Health,Bio Luminuex Health Care Ltd,Home Care - Private Contractors Payment,466.83,0,VENDOR
03-07-2023,Adults & Health,Bio Luminuex Health Care Ltd,Home Care - Private Contractors Payment,61.56,0,VENDOR
03-07-2023,Adults & Health,Bio Luminuex Health Care Ltd,Home Care - Private Contractors Payment,179.55,0,VENDOR
03-07-2023,Adults & Health,Bio Luminuex Health Care Ltd,Home Care - Private Contractors Payment,215.46,0,VENDOR
03-07-2023,Adults & Health,Bio Luminuex Health Care Ltd,Daycare - Private Contractors Payment,30.78,0,VENDOR
03-07-2023,Adults & Health,Bio Luminuex Health Care Ltd,Respite Care - Private Contractors Payment,61.56,0,VENDOR
03-07-2023,Adults & Health,Bio Luminuex Health Care Ltd,Home Care - Private Contractors Payment,123.12,0,VENDOR
03-07-2023,Adults & Health,Bio Luminuex Health Care Ltd,Daycare - Private Contractors Payment,61.56,0,VENDOR
03-07-2023,Adults & Health,Bio Luminuex Health Care Ltd,Home Care - Private Contractors Payment,395.01,0,VENDOR
03-07-2023,Adults & Health,Bio Luminuex Health Care Ltd,Home Care - Private Contractors Payment,20.52,0,VENDOR
03-07-2023,Adults & Health,Bio Luminuex Health Care Ltd,Home Care - Private Contractors Payment,251.37,0,VENDOR
03-07-2023,Adults & Health,Bio Luminuex Health Care Ltd,Home Care - Private Contractors Payment,287.28,0,VENDOR
03-07-2023,Adults & Health,Bio Luminuex Health Care Ltd,Home Care - Private Contractors Payment,107.73,0,VENDOR
03-07-2023,Adults & Health,Bio Luminuex Health Care Ltd,Home Care - Private Contractors Payment,251.37,0,VENDOR
03-07-2023,Adults & Health,Bio Luminuex Health Care Ltd,Home Care - Private Contractors Payment,143.64,0,VENDOR
03-07-2023,Adults & Health,Bio Luminuex Health Care Ltd,Home Care - Private Contractors Payment,395.01,0,VENDOR
03-07-2023,Adults & Health,Bio Luminuex Health Care Ltd,Home Care - Private Contractors Payment,359.1,0,VENDOR
03-07-2023,Adults & Health,Bio Luminuex Health Care Ltd,Home Care - Private Contractors Payment,251.37,0,VENDOR
03-07-2023,Adults & Health,Bio Luminuex Health Care Ltd,Home Care - Private Contractors Payment,30.78,0,VENDOR
03-07-2023,Adults & Health,Bio Luminuex Health Care Ltd,Home Care - Private Contractors Payment,20.52,0,VENDOR
03-07-2023,Adults & Health,Bio Luminuex Health Care Ltd,Home Care - Private Contractors Payment,287.28,0,VENDOR
03-07-2023,Adults & Health,Bio Luminuex Health Care Ltd,Home Care - Private Contractors Payment,138.51,0,VENDOR
03-07-2023,Adults & Health,Bio Luminuex Health Care Ltd,Home Care - Private Contractors Payment,215.46,0,VENDOR
03-07-2023,Adults & Health,Bio Luminuex Health Care Ltd,Home Care - Private Contractors Payment,20.52,0,VENDOR
03-07-2023,Adults & Health,Bio Luminuex Health Care Ltd,Daycare - Private Contractors Payment,215.46,0,VENDOR
03-07-2023,Adults & Health,Bio Luminuex Health Care Ltd,Home Care - Private Contractors Payment,538.65,0,VENDOR
03-07-2023,Adults & Health,Bio Luminuex Health Care Ltd,Home Care - Private Contractors Payment,241.11,0,VENDOR
03-07-2023,Adults & Health,Bio Luminuex Health Care Ltd,Home Care - Private Contractors Payment,251.37,0,VENDOR
03-07-2023,Adults & Health,Bio Luminuex Health Care Ltd,Home Care - Private Contractors Payment,395.01,0,VENDOR
03-07-2023,Adults & Health,Bio Luminuex Health Care Ltd,Daycare - Private Contractors Payment,41.04,0,VENDOR
03-07-2023,Adults & Health,Bio Luminuex Health Care Ltd,Home Care - Private Contractors Payment,323.19,0,VENDOR
03-07-2023,Adults & Health,Bio Luminuex Health Care Ltd,Home Care - Private Contractors Payment,646.38,0,VENDOR
03-07-2023,Adults & Health,Bio Luminuex Health Care Ltd,Home Care - Private Contractors Payment,20.52,0,VENDOR
03-07-2023,Adults & Health,Bio Luminuex Health Care Ltd,Home Care - Private Contractors Payment,395.01,0,VENDOR
03-07-2023,Adults & Health,Bio Luminuex Health Care Ltd,Home Care - Private Contractors Payment,646.38,0,VENDOR
03-07-2023,Adults & Health,Bio Luminuex Health Care Ltd,Home Care - Private Contractors Payment,179.55,0,VENDOR
03-07-2023,Adults & Health,Bio Luminuex Health Care Ltd,Daycare - Private Contractors Payment,82.08,0,VENDOR
03-07-2023,Adults & Health,Bio Luminuex Health Care Ltd,Home Care - Private Contractors Payment,430.92,0,VENDOR
03-07-2023,Adults & Health,Bio Luminuex Health Care Ltd,Home Care - Private Contractors Payment,466.83,0,VENDOR
03-07-2023,Adults & Health,Bio Luminuex Health Care Ltd,Home Care - Private Contractors Payment,107.73,0,VENDOR
03-07-2023,Adults & Health,Bio Luminuex Health Care Ltd,Home Care - Private Contractors Payment,41.04,0,VENDOR
03-07-2023,Adults & Health,Bio Luminuex Health Care Ltd,Home Care - Private Contractors Payment,251.37,0,VENDOR
03-07-2023,Adults & Health,Bio Luminuex Health Care Ltd,Home Care - Private Contractors Payment,20.52,0,VENDOR
03-07-2023,Adults & Health,Bio Luminuex Health Care Ltd,Home Care - Private Contractors Payment,610.47,0,VENDOR
03-07-2023,Adults & Health,Bio Luminuex Health Care Ltd,Home Care - Private Contractors Payment,395.01,0,VENDOR
03-07-2023,Adults & Health,Bio Luminuex Health Care Ltd,Daycare - Private Contractors Payment,102.6,0,VENDOR
03-07-2023,Adults & Health,Bio Luminuex Health Care Ltd,Home Care - Private Contractors Payment,287.28,0,VENDOR
03-07-2023,Adults & Health,Bio Luminuex Health Care Ltd,Home Care - Private Contractors Payment,20.52,0,VENDOR
03-07-2023,Adults & Health,Bio Luminuex Health Care Ltd,Respite Care - Private Contractors Payment,82.08,0,VENDOR
03-07-2023,Adults & Health,Bio Luminuex Health Care Ltd,Home Care - Private Contractors Payment,215.46,0,VENDOR
03-07-2023,Adults & Health,Bio Luminuex Health Care Ltd,Home Care - Private Contractors Payment,287.28,0,VENDOR
03-07-2023,Adults & Health,Bio Luminuex Health Care Ltd,Home Care - Private Contractors Payment,107.73,0,VENDOR
03-07-2023,Adults & Health,Bio Luminuex Health Care Ltd,Home Care - Private Contractors Payment,179.55,0,VENDOR
03-07-2023,Adults & Health,Bio Luminuex Health Care Ltd,Home Care - Private Contractors Payment,30.78,0,VENDOR
03-07-2023,Adults & Health,Bio Luminuex Health Care Ltd,Daycare - Private Contractors Payment,41.04,0,VENDOR
03-07-2023,Adults & Health,Bio Luminuex Health Care Ltd,Home Care - Private Contractors Payment,179.55,0,VENDOR
03-07-2023,Adults & Health,Bio Luminuex Health Care Ltd,Home Care - Private Contractors Payment,107.73,0,VENDOR
03-07-2023,Adults & Health,Bio Luminuex Health Care Ltd,Home Care - Private Contractors Payment,107.73,0,VENDOR
03-07-2023,Adults & Health,Bio Luminuex Health Care Ltd,Home Care - Private Contractors Payment,179.55,0,VENDOR
03-07-2023,Adults & Health,Bio Luminuex Health Care Ltd,Home Care - Private Contractors Payment,466.83,0,VENDOR
03-07-2023,Adults & Health,Bio Luminuex Health Care Ltd,Daycare - Private Contractors Payment,61.56,0,VENDOR
03-07-2023,Adults & Health,Bio Luminuex Health Care Ltd,Home Care - Private Contractors Payment,466.83,0,VENDOR
03-07-2023,Adults & Health,Bio Luminuex Health Care Ltd,Home Care - Private Contractors Payment,179.55,0,VENDOR
03-07-2023,Adults & Health,Bio Luminuex Health Care Ltd,Daycare - Private Contractors Payment,61.56,0,VENDOR
03-07-2023,Adults & Health,Bio Luminuex Health Care Ltd,Home Care - Private Contractors Payment,574.56,0,VENDOR
03-07-2023,Adults & Health,Bio Luminuex Health Care Ltd,Daycare - Private Contractors Payment,143.64,0,VENDOR
03-07-2023,Adults & Health,Bio Luminuex Health Care Ltd,Home Care - Private Contractors Payment,610.47,0,VENDOR
03-07-2023,Adults & Health,Bio Luminuex Health Care Ltd,Daycare - Private Contractors Payment,41.04,0,VENDOR
03-07-2023,Adults & Health,Bio Luminuex Health Care Ltd,Daycare - Private Contractors Payment,82.08,0,VENDOR
03-07-2023,Adults & Health,Bio Luminuex Health Care Ltd,Home Care - Private Contractors Payment,179.55,0,VENDOR
03-07-2023,Adults & Health,Bio Luminuex Health Care Ltd,Home Care - Private Contractors Payment,20.52,0,VENDOR
03-07-2023,Adults & Health,Bio Luminuex Health Care Ltd,Home Care - Private Contractors Payment,179.55,0,VENDOR
03-07-2023,Adults & Health,Bio Luminuex Health Care Ltd,Daycare - Private Contractors Payment,30.78,0,VENDOR
03-07-2023,Adults & Health,Bio Luminuex Health Care Ltd,Home Care - Private Contractors Payment,20.52,0,VENDOR
03-07-2023,Adults & Health,Bio Luminuex Health Care Ltd,Home Care - Private Contractors Payment,20.52,0,VENDOR
03-07-2023,Adults & Health,Bio Luminuex Health Care Ltd,Home Care - Private Contractors Payment,179.55,0,VENDOR
03-07-2023,Adults & Health,Bio Luminuex Health Care Ltd,Home Care - Private Contractors Payment,287.28,0,VENDOR
03-07-2023,Adults & Health,Bio Luminuex Health Care Ltd,Home Care - Private Contractors Payment,20.52,0,VENDOR
03-07-2023,Adults & Health,Bio Luminuex Health Care Ltd,Home Care - Private Contractors Payment,610.47,0,VENDOR
03-07-2023,Adults & Health,Bio Luminuex Health Care Ltd,Daycare - Private Contractors Payment,51.3,0,VENDOR
03-07-2023,Adults & Health,Bio Luminuex Health Care Ltd,Home Care - Private Contractors Payment,20.52,0,VENDOR
03-07-2023,Adults & Health,Bio Luminuex Health Care Ltd,Home Care - Private Contractors Payment,215.46,0,VENDOR
03-07-2023,Adults & Health,Bio Luminuex Health Care Ltd,Home Care - Private Contractors Payment,30.78,0,VENDOR
03-07-2023,Adults & Health,Bio Luminuex Health Care Ltd,Home Care - Private Contractors Payment,215.46,0,VENDOR
03-07-2023,Adults & Health,Bio Luminuex Health Care Ltd,Home Care - Private Contractors Payment,251.37,0,VENDOR
03-07-2023,Adults & Health,Bio Luminuex Health Care Ltd,Daycare - Private Contractors Payment,82.08,0,VENDOR
03-07-2023,Adults & Health,Bio Luminuex Health Care Ltd,Home Care - Private Contractors Payment,61.56,0,VENDOR
03-07-2023,Adults & Health,Bio Luminuex Health Care Ltd,Respite Care - Private Contractors Payment,61.56,0,VENDOR
03-07-2023,Adults & Health,Bio Luminuex Health Care Ltd,Home Care - Private Contractors Payment,861.84,0,VENDOR
03-07-2023,Adults & Health,Bio Luminuex Health Care Ltd,Home Care - Private Contractors Payment,20.52,0,VENDOR
03-07-2023,Adults & Health,Bio Luminuex Health Care Ltd,Daycare - Private Contractors Payment,30.78,0,VENDOR
03-07-2023,Adults & Health,Bio Luminuex Health Care Ltd,Home Care - Private Contractors Payment,466.83,0,VENDOR
03-07-2023,Adults & Health,Bio Luminuex Health Care Ltd,Home Care - Private Contractors Payment,30.78,0,VENDOR
03-07-2023,Adults & Health,Bio Luminuex Health Care Ltd,Home Care - Private Contractors Payment,128.25,0,VENDOR
03-07-2023,Adults & Health,Bio Luminuex Health Care Ltd,Home Care - Private Contractors Payment,215.46,0,VENDOR
03-07-2023,Adults & Health,Bio Luminuex Health Care Ltd,Respite Care - Private Contractors Payment,143.64,0,VENDOR
03-07-2023,Adults & Health,Bio Luminuex Health Care Ltd,Home Care - Private Contractors Payment,251.37,0,VENDOR
03-07-2023,Adults & Health,Bio Luminuex Health Care Ltd,Home Care - Private Contractors Payment,20.52,0,VENDOR
03-07-2023,Adults & Health,Bio Luminuex Health Care Ltd,Home Care - Private Contractors Payment,123.12,0,VENDOR
03-07-2023,Adults & Health,Bio Luminuex Health Care Ltd,Home Care - Private Contractors Payment,20.52,0,VENDOR
03-07-2023,Adults & Health,Bio Luminuex Health Care Ltd,Home Care - Private Contractors Payment,323.19,0,VENDOR
03-07-2023,Adults & Health,Bio Luminuex Health Care Ltd,Home Care - Private Contractors Payment,20.52,0,VENDOR
03-07-2023,Adults & Health,Bio Luminuex Health Care Ltd,Daycare - Private Contractors Payment,61.56,0,VENDOR
03-07-2023,Adults & Health,Bio Luminuex Health Care Ltd,Home Care - Private Contractors Payment,610.47,0,VENDOR
03-07-2023,Adults & Health,Bio Luminuex Health Care Ltd,Home Care - Private Contractors Payment,287.28,0,VENDOR
03-07-2023,Adults & Health,Bio Luminuex Health Care Ltd,Home Care - Private Contractors Payment,107.73,0,VENDOR
03-07-2023,Adults & Health,Bio Luminuex Health Care Ltd,Home Care - Private Contractors Payment,215.46,0,VENDOR
03-07-2023,Adults & Health,Bio Luminuex Health Care Ltd,Home Care - Private Contractors Payment,646.38,0,VENDOR
03-07-2023,Adults & Health,Bio Luminuex Health Care Ltd,Home Care - Private Contractors Payment,251.37,0,VENDOR
03-07-2023,Adults & Health,Bio Luminuex Health Care Ltd,Home Care - Private Contractors Payment,61.56,0,VENDOR
03-07-2023,Adults & Health,Bio Luminuex Health Care Ltd,Home Care - Private Contractors Payment,143.64,0,VENDOR
03-07-2023,Adults & Health,Bio Luminuex Health Care Ltd,Home Care - Private Contractors Payment,107.73,0,VENDOR
03-07-2023,Adults & Health,Bio Luminuex Health Care Ltd,Home Care - Private Contractors Payment,430.92,0,VENDOR
03-07-2023,Adults & Health,Bio Luminuex Health Care Ltd,Home Care - Private Contractors Payment,861.84,0,VENDOR
03-07-2023,Adults & Health,Bio Luminuex Health Care Ltd,Home Care - Private Contractors Payment,41.04,0,VENDOR
03-07-2023,Adults & Health,Bio Luminuex Health Care Ltd,Home Care - Private Contractors Payment,646.38,0,VENDOR
03-07-2023,Adults & Health,Bio Luminuex Health Care Ltd,Home Care - Private Contractors Payment,169.29,0,VENDOR
03-07-2023,Adults & Health,Bio Luminuex Health Care Ltd,Home Care - Private Contractors Payment,71.82,0,VENDOR
03-07-2023,Adults & Health,Bio Luminuex Health Care Ltd,Home Care - Private Contractors Payment,220.59,0,VENDOR
03-07-2023,Adults & Health,Bio Luminuex Health Care Ltd,Home Care - Private Contractors Payment,41.04,0,VENDOR
03-07-2023,Adults & Health,Bio Luminuex Health Care Ltd,Home Care - Private Contractors Payment,215.46,0,VENDOR
03-07-2023,Adults & Health,Bio Luminuex Health Care Ltd,Home Care - Private Contractors Payment,25.65,0,VENDOR
03-07-2023,Adults & Health,Bio Luminuex Health Care Ltd,Home Care - Private Contractors Payment,20.52,0,VENDOR
03-07-2023,Adults & Health,Bio Luminuex Health Care Ltd,Home Care - Private Contractors Payment,179.55,0,VENDOR
03-07-2023,Adults & Health,Bio Luminuex Health Care Ltd,Home Care - Private Contractors Payment,702.81,0,VENDOR
03-07-2023,Adults & Health,Bio Luminuex Health Care Ltd,Home Care - Private Contractors Payment,287.28,0,VENDOR
03-07-2023,Adults & Health,Bio Luminuex Health Care Ltd,Home Care - Private Contractors Payment,323.19,0,VENDOR
03-07-2023,Adults & Health,Bio Luminuex Health Care Ltd,Home Care - Private Contractors Payment,215.46,0,VENDOR
03-07-2023,Adults & Health,Bio Luminuex Health Care Ltd,Home Care - Private Contractors Payment,610.47,0,VENDOR
03-07-2023,Adults & Health,Bio Luminuex Health Care Ltd,Home Care - Private Contractors Payment,646.38,0,VENDOR
03-07-2023,Adults & Health,Bio Luminuex Health Care Ltd,Daycare - Private Contractors Payment,41.04,0,VENDOR
03-07-2023,Adults & Health,Bio Luminuex Health Care Ltd,Home Care - Private Contractors Payment,20.52,0,VENDOR
03-07-2023,Adults & Health,Bio Luminuex Health Care Ltd,Home Care - Private Contractors Payment,20.52,0,VENDOR
03-07-2023,Adults & Health,Bio Luminuex Health Care Ltd,Home Care - Private Contractors Payment,20.52,0,VENDOR
03-07-2023,Adults & Health,Bio Luminuex Health Care Ltd,Home Care - Private Contractors Payment,20.52,0,VENDOR
03-07-2023,Adults & Health,Bio Luminuex Health Care Ltd,Home Care - Private Contractors Payment,179.55,0,VENDOR
03-07-2023,Adults & Health,Bio Luminuex Health Care Ltd,Home Care - Private Contractors Payment,179.55,0,VENDOR
03-07-2023,Adults & Health,Bio Luminuex Health Care Ltd,Daycare - Private Contractors Payment,41.04,0,VENDOR
03-07-2023,Adults & Health,Bio Luminuex Health Care Ltd,Home Care - Private Contractors Payment,92.34,0,VENDOR
03-07-2023,Adults & Health,Bio Luminuex Health Care Ltd,Home Care - Private Contractors Payment,143.64,0,VENDOR
03-07-2023,Adults & Health,Bio Luminuex Health Care Ltd,Home Care - Private Contractors Payment,287.28,0,VENDOR
03-07-2023,Adults & Health,Bio Luminuex Health Care Ltd,Home Care - Private Contractors Payment,323.19,0,VENDOR
03-07-2023,Adults & Health,Bio Luminuex Health Care Ltd,Reablement,61.56,0,VENDOR
03-07-2023,Adults & Health,Bio Luminuex Health Care Ltd,Home Care - Private Contractors Payment,20.52,0,VENDOR
03-07-2023,Adults & Health,Bio Luminuex Health Care Ltd,Home Care - Private Contractors Payment,395.01,0,VENDOR
03-07-2023,Adults & Health,Bio Luminuex Health Care Ltd,Home Care - Private Contractors Payment,20.52,0,VENDOR
03-07-2023,Adults & Health,Bio Luminuex Health Care Ltd,Home Care - Private Contractors Payment,169.29,0,VENDOR
03-07-2023,Adults & Health,Bio Luminuex Health Care Ltd,Home Care - Private Contractors Payment,179.55,0,VENDOR
03-07-2023,Adults & Health,Bio Luminuex Health Care Ltd,Respite Care - Private Contractors Payment,82.08,0,VENDOR
03-07-2023,Adults & Health,Bio Luminuex Health Care Ltd,Home Care - Private Contractors Payment,395.01,0,VENDOR
03-07-2023,Adults & Health,Bio Luminuex Health Care Ltd,Home Care - Private Contractors Payment,61.56,0,VENDOR
03-07-2023,Adults & Health,Bio Luminuex Health Care Ltd,Home Care - Private Contractors Payment,71.82,0,VENDOR
03-07-2023,Adults & Health,Bio Luminuex Health Care Ltd,Home Care - Private Contractors Payment,215.46,0,VENDOR
03-07-2023,Adults & Health,Bio Luminuex Health Care Ltd,Home Care - Private Contractors Payment,251.37,0,VENDOR
03-07-2023,Adults & Health,Bio Luminuex Health Care Ltd,Home Care - Private Contractors Payment,251.37,0,VENDOR
03-07-2023,Adults & Health,Bio Luminuex Health Care Ltd,Home Care - Private Contractors Payment,215.46,0,VENDOR
03-07-2023,Adults & Health,Bio Luminuex Health Care Ltd,Home Care - Private Contractors Payment,20.52,0,VENDOR
03-07-2023,Adults & Health,Bio Luminuex Health Care Ltd,Home Care - Private Contractors Payment,41.04,0,VENDOR
03-07-2023,Adults & Health,Bio Luminuex Health Care Ltd,Home Care - Private Contractors Payment,287.28,0,VENDOR
03-07-2023,Adults & Health,Bio Luminuex Health Care Ltd,Home Care - Private Contractors Payment,20.52,0,VENDOR
03-07-2023,Adults & Health,Bio Luminuex Health Care Ltd,Home Care - Private Contractors Payment,323.19,0,VENDOR
03-07-2023,Adults & Health,Bio Luminuex Health Care Ltd,Home Care - Private Contractors Payment,92.34,0,VENDOR
03-07-2023,Adults & Health,Bio Luminuex Health Care Ltd,Home Care - Private Contractors Payment,323.19,0,VENDOR
03-07-2023,Adults & Health,Bio Luminuex Health Care Ltd,Home Care - Private Contractors Payment,20.52,0,VENDOR
03-07-2023,Adults & Health,Bio Luminuex Health Care Ltd,Home Care - Private Contractors Payment,123.12,0,VENDOR
03-07-2023,Adults & Health,Bio Luminuex Health Care Ltd,Respite Care - Private Contractors Payment,20.52,0,VENDOR
03-07-2023,Adults & Health,Bio Luminuex Health Care Ltd,Daycare - Private Contractors Payment,82.08,0,VENDOR
03-07-2023,Adults & Health,Bio Luminuex Health Care Ltd,Home Care - Private Contractors Payment,179.55,0,VENDOR
03-07-2023,Adults & Health,Bio Luminuex Health Care Ltd,Home Care - Private Contractors Payment,15.39,0,VENDOR
03-07-2023,Adults & Health,Bio Luminuex Health Care Ltd,Home Care - Private Contractors Payment,323.19,0,VENDOR
03-07-2023,Adults & Health,Bio Luminuex Health Care Ltd,Home Care - Private Contractors Payment,71.82,0,VENDOR
03-07-2023,Adults & Health,Bio Luminuex Health Care Ltd,Home Care - Private Contractors Payment,430.92,0,VENDOR
03-07-2023,Adults & Health,Bio Luminuex Health Care Ltd,Home Care - Private Contractors Payment,71.82,0,VENDOR
03-07-2023,Adults & Health,Bio Luminuex Health Care Ltd,Home Care - Private Contractors Payment,143.64,0,VENDOR
03-07-2023,Adults & Health,Bio Luminuex Health Care Ltd,Home Care - Private Contractors Payment,20.52,0,VENDOR
03-07-2023,Adults & Health,Bio Luminuex Health Care Ltd,Home Care - Private Contractors Payment,251.37,0,VENDOR
03-07-2023,Adults & Health,Bio Luminuex Health Care Ltd,Home Care - Private Contractors Payment,395.01,0,VENDOR
03-07-2023,Adults & Health,Bio Luminuex Health Care Ltd,Home Care - Private Contractors Payment,251.37,0,VENDOR
03-07-2023,Adults & Health,Bio Luminuex Health Care Ltd,Home Care - Private Contractors Payment,82.08,0,VENDOR
03-07-2023,Adults & Health,Bio Luminuex Health Care Ltd,Home Care - Private Contractors Payment,215.46,0,VENDOR
03-07-2023,Adults & Health,Bio Luminuex Health Care Ltd,Home Care - Private Contractors Payment,20.52,0,VENDOR
03-07-2023,Adults & Health,Bio Luminuex Health Care Ltd,Daycare - Private Contractors Payment,51.3,0,VENDOR
03-07-2023,Adults & Health,Bio Luminuex Health Care Ltd,Home Care - Private Contractors Payment,287.28,0,VENDOR
03-07-2023,Adults & Health,Bio Luminuex Health Care Ltd,Home Care - Private Contractors Payment,359.1,0,VENDOR
03-07-2023,Adults & Health,Bio Luminuex Health Care Ltd,Daycare - Private Contractors Payment,41.04,0,VENDOR
03-07-2023,Adults & Health,Bio Luminuex Health Care Ltd,Home Care - Private Contractors Payment,92.34,0,VENDOR
03-07-2023,Adults & Health,Bio Luminuex Health Care Ltd,Home Care - Private Contractors Payment,610.47,0,VENDOR
03-07-2023,Adults & Health,Bio Luminuex Health Care Ltd,Home Care - Private Contractors Payment,395.01,0,VENDOR
03-07-2023,Adults & Health,Bio Luminuex Health Care Ltd,Home Care - Private Contractors Payment,312.93,0,VENDOR
03-07-2023,Adults & Health,Bio Luminuex Health Care Ltd,Home Care - Private Contractors Payment,143.64,0,VENDOR
03-07-2023,Adults & Health,Bio Luminuex Health Care Ltd,Respite Care - Private Contractors Payment,82.08,0,VENDOR
03-07-2023,Adults & Health,Bio Luminuex Health Care Ltd,Home Care - Private Contractors Payment,323.19,0,VENDOR
03-07-2023,Adults & Health,Bio Luminuex Health Care Ltd,Home Care - Private Contractors Payment,323.19,0,VENDOR
03-07-2023,Adults & Health,Bio Luminuex Health Care Ltd,Home Care - Private Contractors Payment,20.52,0,VENDOR
03-07-2023,Adults & Health,Bio Luminuex Health Care Ltd,Home Care - Private Contractors Payment,215.46,0,VENDOR
03-07-2023,Adults & Health,Bio Luminuex Health Care Ltd,Home Care - Private Contractors Payment,359.1,0,VENDOR
03-07-2023,Adults & Health,Bio Luminuex Health Care Ltd,Home Care - Private Contractors Payment,251.37,0,VENDOR
03-07-2023,Adults & Health,Bio Luminuex Health Care Ltd,Home Care - Private Contractors Payment,754.11,0,VENDOR
03-07-2023,Adults & Health,Bio Luminuex Health Care Ltd,Home Care - Private Contractors Payment,430.92,0,VENDOR
03-07-2023,Adults & Health,Bio Luminuex Health Care Ltd,Home Care - Private Contractors Payment,646.38,0,VENDOR
03-07-2023,Adults & Health,Bio Luminuex Health Care Ltd,Home Care - Private Contractors Payment,76.95,0,VENDOR
03-07-2023,Adults & Health,Bio Luminuex Health Care Ltd,Home Care - Private Contractors Payment,143.64,0,VENDOR
03-07-2023,Adults & Health,Bio Luminuex Health Care Ltd,Home Care - Private Contractors Payment,179.55,0,VENDOR
03-07-2023,Adults & Health,Bio Luminuex Health Care Ltd,Home Care - Private Contractors Payment,107.73,0,VENDOR
03-07-2023,Adults & Health,Bio Luminuex Health Care Ltd,Home Care - Private Contractors Payment,251.37,0,VENDOR
03-07-2023,Adults & Health,Bio Luminuex Health Care Ltd,Home Care - Private Contractors Payment,41.04,0,VENDOR
03-07-2023,Adults & Health,Bio Luminuex Health Care Ltd,Home Care - Private Contractors Payment,287.28,0,VENDOR
03-07-2023,Adults & Health,Bio Luminuex Health Care Ltd,Home Care - Private Contractors Payment,20.52,0,VENDOR
03-07-2023,Adults & Health,Bio Luminuex Health Care Ltd,Home Care - Private Contractors Payment,646.38,0,VENDOR
03-07-2023,Adults & Health,Bio Luminuex Health Care Ltd,Home Care - Private Contractors Payment,466.83,0,VENDOR
03-07-2023,Adults & Health,Bio Luminuex Health Care Ltd,Daycare - Private Contractors Payment,533.52,0,VENDOR
03-07-2023,Adults & Health,Bio Luminuex Health Care Ltd,Home Care - Private Contractors Payment,20.52,0,VENDOR
03-07-2023,Adults & Health,Bio Luminuex Health Care Ltd,Home Care - Private Contractors Payment,179.55,0,VENDOR
03-07-2023,Adults & Health,Bio Luminuex Health Care Ltd,Home Care - Private Contractors Payment,179.55,0,VENDOR
03-07-2023,Adults & Health,Bio Luminuex Health Care Ltd,Daycare - Private Contractors Payment,51.3,0,VENDOR
03-07-2023,Adults & Health,Bio Luminuex Health Care Ltd,Daycare - Private Contractors Payment,41.04,0,VENDOR
03-07-2023,Adults & Health,Bio Luminuex Health Care Ltd,Home Care - Private Contractors Payment,20.52,0,VENDOR
03-07-2023,Adults & Health,Bio Luminuex Health Care Ltd,Home Care - Private Contractors Payment,15.39,0,VENDOR
03-07-2023,Adults & Health,Bio Luminuex Health Care Ltd,Home Care - Private Contractors Payment,179.55,0,VENDOR
03-07-2023,Adults & Health,Bio Luminuex Health Care Ltd,Home Care - Private Contractors Payment,251.37,0,VENDOR
03-07-2023,Adults & Health,Bio Luminuex Health Care Ltd,Home Care - Private Contractors Payment,41.04,0,VENDOR
03-07-2023,Adults & Health,Bio Luminuex Health Care Ltd,Home Care - Private Contractors Payment,430.92,0,VENDOR
03-07-2023,Adults & Health,Bio Luminuex Health Care Ltd,Home Care - Private Contractors Payment,246.24,0,VENDOR
03-07-2023,Adults & Health,Bio Luminuex Health Care Ltd,Home Care - Private Contractors Payment,287.28,0,VENDOR
03-07-2023,Adults & Health,Bio Luminuex Health Care Ltd,Home Care - Private Contractors Payment,395.01,0,VENDOR
03-07-2023,Adults & Health,Bio Luminuex Health Care Ltd,Home Care - Private Contractors Payment,143.64,0,VENDOR
03-07-2023,Adults & Health,Bio Luminuex Health Care Ltd,Home Care - Private Contractors Payment,251.37,0,VENDOR
03-07-2023,Adults & Health,Bio Luminuex Health Care Ltd,Respite Care - Private Contractors Payment,143.64,0,VENDOR
03-07-2023,Adults & Health,Bio Luminuex Health Care Ltd,Home Care - Private Contractors Payment,179.55,0,VENDOR
03-07-2023,Adults & Health,Bio Luminuex Health Care Ltd,Home Care - Private Contractors Payment,179.55,0,VENDOR
03-07-2023,Adults & Health,Bio Luminuex Health Care Ltd,Home Care - Private Contractors Payment,466.83,0,VENDOR
03-07-2023,Adults & Health,Bio Luminuex Health Care Ltd,Home Care - Private Contractors Payment,107.73,0,VENDOR
03-07-2023,Adults & Health,Bio Luminuex Health Care Ltd,Home Care - Private Contractors Payment,610.47,0,VENDOR
03-07-2023,Adults & Health,Bio Luminuex Health Care Ltd,Home Care - Private Contractors Payment,533.52,0,VENDOR
03-07-2023,Adults & Health,Bio Luminuex Health Care Ltd,Daycare - Private Contractors Payment,51.3,0,VENDOR
03-07-2023,Adults & Health,Bio Luminuex Health Care Ltd,Home Care - Private Contractors Payment,251.37,0,VENDOR
03-07-2023,Adults & Health,Bio Luminuex Health Care Ltd,Home Care - Private Contractors Payment,215.46,0,VENDOR
03-07-2023,Adults & Health,Bio Luminuex Health Care Ltd,Home Care - Private Contractors Payment,466.83,0,VENDOR
03-07-2023,Adults & Health,Bio Luminuex Health Care Ltd,Daycare - Private Contractors Payment,41.04,0,VENDOR
03-07-2023,Adults & Health,Bio Luminuex Health Care Ltd,Daycare - Private Contractors Payment,41.04,0,VENDOR
03-07-2023,Adults & Health,Bio Luminuex Health Care Ltd,Home Care - Private Contractors Payment,307.8,0,VENDOR
03-07-2023,Adults & Health,Bio Luminuex Health Care Ltd,Daycare - Private Contractors Payment,143.64,0,VENDOR
03-07-2023,Adults & Health,Bio Luminuex Health Care Ltd,Home Care - Private Contractors Payment,179.55,0,VENDOR
03-07-2023,Adults & Health,Bio Luminuex Health Care Ltd,Home Care - Private Contractors Payment,466.83,0,VENDOR
03-07-2023,Adults & Health,Bio Luminuex Health Care Ltd,Home Care - Private Contractors Payment,574.56,0,VENDOR
03-07-2023,Adults & Health,Bio Luminuex Health Care Ltd,Home Care - Private Contractors Payment,610.47,0,VENDOR
03-07-2023,Adults & Health,Bio Luminuex Health Care Ltd,Home Care - Private Contractors Payment,107.73,0,VENDOR
03-07-2023,Adults & Health,Bio Luminuex Health Care Ltd,Home Care - Private Contractors Payment,323.19,0,VENDOR
03-07-2023,Adults & Health,Bio Luminuex Health Care Ltd,Daycare - Private Contractors Payment,41.04,0,VENDOR
03-07-2023,Adults & Health,Bio Luminuex Health Care Ltd,Home Care - Private Contractors Payment,179.55,0,VENDOR
03-07-2023,Adults & Health,Bio Luminuex Health Care Ltd,Reablement,51.3,0,VENDOR
03-07-2023,Adults & Health,Bio Luminuex Health Care Ltd,Home Care - Private Contractors Payment,20.52,0,VENDOR
03-07-2023,Adults & Health,Bio Luminuex Health Care Ltd,Home Care - Private Contractors Payment,107.73,0,VENDOR
03-07-2023,Adults & Health,Bio Luminuex Health Care Ltd,Home Care - Private Contractors Payment,430.92,0,VENDOR
03-07-2023,Adults & Health,Bio Luminuex Health Care Ltd,Home Care - Private Contractors Payment,861.84,0,VENDOR
03-07-2023,Adults & Health,Bio Luminuex Health Care Ltd,Home Care - Private Contractors Payment,179.55,0,VENDOR
03-07-2023,Adults & Health,Bio Luminuex Health Care Ltd,Home Care - Private Contractors Payment,215.46,0,VENDOR
03-07-2023,Adults & Health,Bio Luminuex Health Care Ltd,Home Care - Private Contractors Payment,92.34,0,VENDOR
03-07-2023,Adults & Health,Bio Luminuex Health Care Ltd,Home Care - Private Contractors Payment,251.37,0,VENDOR
03-07-2023,Adults & Health,Bio Luminuex Health Care Ltd,Home Care - Private Contractors Payment,41.04,0,VENDOR
03-07-2023,Adults & Health,Bio Luminuex Health Care Ltd,Daycare - Private Contractors Payment,41.04,0,VENDOR
03-07-2023,Adults & Health,Bio Luminuex Health Care Ltd,Home Care - Private Contractors Payment,41.04,0,VENDOR
03-07-2023,Adults & Health,Bio Luminuex Health Care Ltd,Daycare - Private Contractors Payment,143.64,0,VENDOR
03-07-2023,Adults & Health,Bio Luminuex Health Care Ltd,Home Care - Private Contractors Payment,533.52,0,VENDOR
03-07-2023,Adults & Health,Bio Luminuex Health Care Ltd,Home Care - Private Contractors Payment,87.21,0,VENDOR
03-07-2023,Adults & Health,Bio Luminuex Health Care Ltd,Home Care - Private Contractors Payment,179.55,0,VENDOR
03-07-2023,Adults & Health,Bio Luminuex Health Care Ltd,Home Care - Private Contractors Payment,287.28,0,VENDOR
03-07-2023,Adults & Health,Bio Luminuex Health Care Ltd,Home Care - Private Contractors Payment,287.28,0,VENDOR
03-07-2023,Adults & Health,Bio Luminuex Health Care Ltd,Home Care - Private Contractors Payment,323.19,0,VENDOR
03-07-2023,Adults & Health,Bio Luminuex Health Care Ltd,Home Care - Private Contractors Payment,251.37,0,VENDOR
03-07-2023,Adults & Health,Bio Luminuex Health Care Ltd,Reablement,123.12,0,VENDOR
03-07-2023,Adults & Health,Bio Luminuex Health Care Ltd,Respite Care - Private Contractors Payment,82.08,0,VENDOR
03-07-2023,Adults & Health,Bio Luminuex Health Care Ltd,Home Care - Private Contractors Payment,430.92,0,VENDOR
03-07-2023,Adults & Health,Bio Luminuex Health Care Ltd,Home Care - Private Contractors Payment,30.78,0,VENDOR
03-07-2023,Adults & Health,Bio Luminuex Health Care Ltd,Home Care - Private Contractors Payment,335.69,0,VENDOR
03-07-2023,Adults & Health,Bio Luminuex Health Care Ltd,Home Care - Private Contractors Payment,20.52,0,VENDOR
03-07-2023,Adults & Health,Bio Luminuex Health Care Ltd,Home Care - Private Contractors Payment,307.8,0,VENDOR
03-07-2023,Adults & Health,Bio Luminuex Health Care Ltd,Home Care - Private Contractors Payment,241.11,0,VENDOR
03-07-2023,Adults & Health,Bio Luminuex Health Care Ltd,Home Care - Private Contractors Payment,251.37,0,VENDOR
03-07-2023,Adults & Health,Bio Luminuex Health Care Ltd,Home Care - Private Contractors Payment,20.52,0,VENDOR
03-07-2023,Adults & Health,Bio Luminuex Health Care Ltd,Home Care - Private Contractors Payment,251.37,0,VENDOR
03-07-2023,Adults & Health,Bio Luminuex Health Care Ltd,Daycare - Private Contractors Payment,102.6,0,VENDOR
03-07-2023,Adults & Health,Bio Luminuex Health Care Ltd,Home Care - Private Contractors Payment,143.64,0,VENDOR
03-07-2023,Adults & Health,Bio Luminuex Health Care Ltd,Home Care - Private Contractors Payment,359.1,0,VENDOR
03-07-2023,Adults & Health,Bio Luminuex Health Care Ltd,Home Care - Private Contractors Payment,61.56,0,VENDOR
03-07-2023,Adults & Health,Bio Luminuex Health Care Ltd,Home Care - Private Contractors Payment,646.38,0,VENDOR
03-07-2023,Adults & Health,Bio Luminuex Health Care Ltd,Daycare - Private Contractors Payment,143.64,0,VENDOR
03-07-2023,Adults & Health,Bio Luminuex Health Care Ltd,Home Care - Private Contractors Payment,215.46,0,VENDOR
03-07-2023,Adults & Health,Bio Luminuex Health Care Ltd,Home Care - Private Contractors Payment,246.24,0,VENDOR
03-07-2023,Adults & Health,Bio Luminuex Health Care Ltd,Home Care - Private Contractors Payment,20.52,0,VENDOR
03-07-2023,Adults & Health,Bio Luminuex Health Care Ltd,Home Care - Private Contractors Payment,251.37,0,VENDOR
03-07-2023,Adults & Health,Bio Luminuex Health Care Ltd,Home Care - Private Contractors Payment,20.52,0,VENDOR
03-07-2023,Adults & Health,Bio Luminuex Health Care Ltd,Home Care - Private Contractors Payment,718.2,0,VENDOR
03-07-2023,Adults & Health,Bio Luminuex Health Care Ltd,Home Care - Private Contractors Payment,20.52,0,VENDOR
03-07-2023,Adults & Health,Bio Luminuex Health Care Ltd,Home Care - Private Contractors Payment,107.73,0,VENDOR
03-07-2023,Adults & Health,Bio Luminuex Health Care Ltd,Daycare - Private Contractors Payment,41.04,0,VENDOR
03-07-2023,Adults & Health,Bio Luminuex Health Care Ltd,Home Care - Private Contractors Payment,20.52,0,VENDOR
03-07-2023,Adults & Health,Bio Luminuex Health Care Ltd,Home Care - Private Contractors Payment,646.38,0,VENDOR
03-07-2023,Adults & Health,Bio Luminuex Health Care Ltd,Daycare - Private Contractors Payment,82.08,0,VENDOR
03-07-2023,Adults & Health,Bio Luminuex Health Care Ltd,Home Care - Private Contractors Payment,20.52,0,VENDOR
03-07-2023,Adults & Health,Bio Luminuex Health Care Ltd,Home Care - Private Contractors Payment,179.55,0,VENDOR
03-07-2023,Adults & Health,Bio Luminuex Health Care Ltd,Daycare - Private Contractors Payment,123.12,0,VENDOR
03-07-2023,Adults & Health,Bio Luminuex Health Care Ltd,Home Care - Private Contractors Payment,466.83,0,VENDOR
03-07-2023,Adults & Health,Bio Luminuex Health Care Ltd,Home Care - Private Contractors Payment,179.55,0,VENDOR
03-07-2023,Adults & Health,Bio Luminuex Health Care Ltd,Daycare - Private Contractors Payment,61.56,0,VENDOR
03-07-2023,Adults & Health,Bio Luminuex Health Care Ltd,Home Care - Private Contractors Payment,251.37,0,VENDOR
03-07-2023,Adults & Health,Bio Luminuex Health Care Ltd,Daycare - Private Contractors Payment,82.08,0,VENDOR
03-07-2023,Adults & Health,Bio Luminuex Health Care Ltd,Home Care - Private Contractors Payment,323.19,0,VENDOR
03-07-2023,Adults & Health,Bio Luminuex Health Care Ltd,Home Care - Private Contractors Payment,348.84,0,VENDOR
03-07-2023,Adults & Health,Bio Luminuex Health Care Ltd,Home Care - Private Contractors Payment,143.64,0,VENDOR
03-07-2023,Adults & Health,Bio Luminuex Health Care Ltd,Daycare - Private Contractors Payment,533.52,0,VENDOR
03-07-2023,Adults & Health,Bio Luminuex Health Care Ltd,Home Care - Private Contractors Payment,215.46,0,VENDOR
03-07-2023,Adults & Health,Bio Luminuex Health Care Ltd,Home Care - Private Contractors Payment,15.39,0,VENDOR
03-07-2023,Adults & Health,Bio Luminuex Health Care Ltd,Home Care - Private Contractors Payment,179.55,0,VENDOR
03-07-2023,Adults & Health,Bio Luminuex Health Care Ltd,Home Care - Private Contractors Payment,107.73,0,VENDOR
03-07-2023,Adults & Health,Bio Luminuex Health Care Ltd,Daycare - Private Contractors Payment,71.82,0,VENDOR
03-07-2023,Adults & Health,Bio Luminuex Health Care Ltd,Home Care - Private Contractors Payment,123.12,0,VENDOR
03-07-2023,Adults & Health,Bio Luminuex Health Care Ltd,Home Care - Private Contractors Payment,287.28,0,VENDOR
03-07-2023,Adults & Health,Bio Luminuex Health Care Ltd,Respite Care - Private Contractors Payment,46.17,0,VENDOR
03-07-2023,Adults & Health,Bio Luminuex Health Care Ltd,Home Care - Private Contractors Payment,143.64,0,VENDOR
03-07-2023,Adults & Health,Bio Luminuex Health Care Ltd,Daycare - Private Contractors Payment,82.08,0,VENDOR
03-07-2023,Adults & Health,Bio Luminuex Health Care Ltd,Home Care - Private Contractors Payment,92.34,0,VENDOR
03-07-2023,Adults & Health,Bio Luminuex Health Care Ltd,Home Care - Private Contractors Payment,107.73,0,VENDOR
03-07-2023,Adults & Health,Bio Luminuex Health Care Ltd,Home Care - Private Contractors Payment,20.52,0,VENDOR
03-07-2023,Adults & Health,Bio Luminuex Health Care Ltd,Home Care - Private Contractors Payment,102.6,0,VENDOR
03-07-2023,Adults & Health,Bio Luminuex Health Care Ltd,Home Care - Private Contractors Payment,251.37,0,VENDOR
03-07-2023,Adults & Health,Bio Luminuex Health Care Ltd,Home Care - Private Contractors Payment,20.52,0,VENDOR
03-07-2023,Adults & Health,Bio Luminuex Health Care Ltd,Home Care - Private Contractors Payment,76.95,0,VENDOR
03-07-2023,Adults & Health,Bio Luminuex Health Care Ltd,Home Care - Private Contractors Payment,251.37,0,VENDOR
03-07-2023,Adults & Health,Bio Luminuex Health Care Ltd,Home Care - Private Contractors Payment,179.55,0,VENDOR
03-07-2023,Adults & Health,Bio Luminuex Health Care Ltd,Home Care - Private Contractors Payment,287.28,0,VENDOR
03-07-2023,Adults & Health,Bio Luminuex Health Care Ltd,Respite Care - Private Contractors Payment,46.17,0,VENDOR
03-07-2023,Adults & Health,Bio Luminuex Health Care Ltd,Home Care - Private Contractors Payment,184.68,0,VENDOR
03-07-2023,Adults & Health,Bio Luminuex Health Care Ltd,Daycare - Private Contractors Payment,41.04,0,VENDOR
03-07-2023,Adults & Health,Bio Luminuex Health Care Ltd,Home Care - Private Contractors Payment,143.64,0,VENDOR
03-07-2023,Adults & Health,Bio Luminuex Health Care Ltd,Home Care - Private Contractors Payment,143.64,0,VENDOR
03-07-2023,Adults & Health,Bio Luminuex Health Care Ltd,Home Care - Private Contractors Payment,323.19,0,VENDOR
03-07-2023,Adults & Health,Bio Luminuex Health Care Ltd,Home Care - Private Contractors Payment,20.52,0,VENDOR
03-07-2023,Adults & Health,Bio Luminuex Health Care Ltd,Home Care - Private Contractors Payment,179.55,0,VENDOR
03-07-2023,Adults & Health,Bio Luminuex Health Care Ltd,Home Care - Private Contractors Payment,20.52,0,VENDOR
03-07-2023,Adults & Health,Bio Luminuex Health Care Ltd,Home Care - Private Contractors Payment,179.55,0,VENDOR
03-07-2023,Adults & Health,Bio Luminuex Health Care Ltd,Daycare - Private Contractors Payment,61.56,0,VENDOR
03-07-2023,Adults & Health,Bio Luminuex Health Care Ltd,Home Care - Private Contractors Payment,30.78,0,VENDOR
03-07-2023,Adults & Health,Bio Luminuex Health Care Ltd,Home Care - Private Contractors Payment,323.19,0,VENDOR
03-07-2023,Adults & Health,Bio Luminuex Health Care Ltd,Home Care - Private Contractors Payment,71.82,0,VENDOR
03-07-2023,Adults & Health,Bio Luminuex Health Care Ltd,Home Care - Private Contractors Payment,574.56,0,VENDOR
03-07-2023,Adults & Health,Bio Luminuex Health Care Ltd,Home Care - Private Contractors Payment,30.78,0,VENDOR
03-07-2023,Adults & Health,Bio Luminuex Health Care Ltd,Home Care - Private Contractors Payment,430.92,0,VENDOR
03-07-2023,Adults & Health,Bio Luminuex Health Care Ltd,Home Care - Private Contractors Payment,20.52,0,VENDOR
03-07-2023,Adults & Health,Bio Luminuex Health Care Ltd,Home Care - Private Contractors Payment,20.52,0,VENDOR
03-07-2023,Adults & Health,Bio Luminuex Health Care Ltd,Home Care - Private Contractors Payment,359.1,0,VENDOR
03-07-2023,Adults & Health,Bio Luminuex Health Care Ltd,Home Care - Private Contractors Payment,215.46,0,VENDOR
03-07-2023,Adults & Health,Bio Luminuex Health Care Ltd,Home Care - Private Contractors Payment,179.55,0,VENDOR
03-07-2023,Adults & Health,Bio Luminuex Health Care Ltd,Daycare - Private Contractors Payment,30.78,0,VENDOR
03-07-2023,Adults & Health,Bio Luminuex Health Care Ltd,Home Care - Private Contractors Payment,251.37,0,VENDOR
03-07-2023,Adults & Health,Bio Luminuex Health Care Ltd,Home Care - Private Contractors Payment,179.55,0,VENDOR
03-07-2023,Adults & Health,Bio Luminuex Health Care Ltd,Home Care - Private Contractors Payment,107.73,0,VENDOR
03-07-2023,Adults & Health,Bio Luminuex Health Care Ltd,Home Care - Private Contractors Payment,323.19,0,VENDOR
03-07-2023,Adults & Health,Bio Luminuex Health Care Ltd,Home Care - Private Contractors Payment,20.52,0,VENDOR
03-07-2023,Adults & Health,Bio Luminuex Health Care Ltd,Home Care - Private Contractors Payment,179.55,0,VENDOR
03-07-2023,Adults & Health,Bio Luminuex Health Care Ltd,Respite Care - Private Contractors Payment,10.26,0,VENDOR
03-07-2023,Adults & Health,Bio Luminuex Health Care Ltd,Respite Care - Private Contractors Payment,153.9,0,VENDOR
03-07-2023,Adults & Health,Bio Luminuex Health Care Ltd,Home Care - Private Contractors Payment,107.73,0,VENDOR
03-07-2023,Adults & Health,Bio Luminuex Health Care Ltd,Home Care - Private Contractors Payment,71.82,0,VENDOR
03-07-2023,Adults & Health,Bio Luminuex Health Care Ltd,Daycare - Private Contractors Payment,20.52,0,VENDOR
03-07-2023,Adults & Health,Bio Luminuex Health Care Ltd,Home Care - Private Contractors Payment,430.92,0,VENDOR
03-07-2023,Adults & Health,Bio Luminuex Health Care Ltd,Home Care - Private Contractors Payment,20.52,0,VENDOR
03-07-2023,Adults & Health,Bio Luminuex Health Care Ltd,Home Care - Private Contractors Payment,610.47,0,VENDOR
03-07-2023,Adults & Health,Bio Luminuex Health Care Ltd,Home Care - Private Contractors Payment,328.32,0,VENDOR
03-07-2023,Adults & Health,Bio Luminuex Health Care Ltd,Home Care - Private Contractors Payment,107.73,0,VENDOR
03-07-2023,Adults & Health,Bio Luminuex Health Care Ltd,Home Care - Private Contractors Payment,76.95,0,VENDOR
03-07-2023,Adults & Health,Bio Luminuex Health Care Ltd,Daycare - Private Contractors Payment,41.04,0,VENDOR
03-07-2023,Adults & Health,Bio Luminuex Health Care Ltd,Home Care - Private Contractors Payment,20.52,0,VENDOR
03-07-2023,Adults & Health,Bio Luminuex Health Care Ltd,Home Care - Private Contractors Payment,430.92,0,VENDOR
03-07-2023,Adults & Health,Bio Luminuex Health Care Ltd,Home Care - Private Contractors Payment,251.37,0,VENDOR
03-07-2023,Adults & Health,Bio Luminuex Health Care Ltd,Home Care - Private Contractors Payment,326.73,0,VENDOR
03-07-2023,Adults & Health,Bio Luminuex Health Care Ltd,Home Care - Private Contractors Payment,610.47,0,VENDOR
03-07-2023,Adults & Health,Bio Luminuex Health Care Ltd,Home Care - Private Contractors Payment,71.82,0,VENDOR
03-07-2023,Adults & Health,Bio Luminuex Health Care Ltd,Home Care - Private Contractors Payment,230.85,0,VENDOR
03-07-2023,Adults & Health,Bio Luminuex Health Care Ltd,Respite Care - Private Contractors Payment,46.17,0,VENDOR
03-07-2023,Adults & Health,Bio Luminuex Health Care Ltd,Home Care - Private Contractors Payment,179.55,0,VENDOR
03-07-2023,Adults & Health,Bio Luminuex Health Care Ltd,Home Care - Private Contractors Payment,251.37,0,VENDOR
03-07-2023,Adults & Health,Bio Luminuex Health Care Ltd,Home Care - Private Contractors Payment,251.37,0,VENDOR
03-07-2023,Adults & Health,Bio Luminuex Health Care Ltd,Home Care - Private Contractors Payment,241.11,0,VENDOR
03-07-2023,Adults & Health,Bio Luminuex Health Care Ltd,Home Care - Private Contractors Payment,30.78,0,VENDOR
03-07-2023,Adults & Health,Bio Luminuex Health Care Ltd,Home Care - Private Contractors Payment,20.52,0,VENDOR
03-07-2023,Adults & Health,Bio Luminuex Health Care Ltd,Home Care - Private Contractors Payment,251.37,0,VENDOR
03-07-2023,Adults & Health,Bio Luminuex Health Care Ltd,Home Care - Private Contractors Payment,430.92,0,VENDOR
03-07-2023,Adults & Health,Bio Luminuex Health Care Ltd,Home Care - Private Contractors Payment,169.29,0,VENDOR
03-07-2023,Adults & Health,Bio Luminuex Health Care Ltd,Home Care - Private Contractors Payment,20.52,0,VENDOR
03-07-2023,Adults & Health,Bio Luminuex Health Care Ltd,Home Care - Private Contractors Payment,179.55,0,VENDOR
03-07-2023,Adults & Health,Bio Luminuex Health Care Ltd,Home Care - Private Contractors Payment,430.92,0,VENDOR
03-07-2023,Adults & Health,Bio Luminuex Health Care Ltd,Home Care - Private Contractors Payment,646.38,0,VENDOR
03-07-2023,Adults & Health,Bio Luminuex Health Care Ltd,Daycare - Private Contractors Payment,123.12,0,VENDOR
03-07-2023,Adults & Health,Bio Luminuex Health Care Ltd,Home Care - Private Contractors Payment,533.52,0,VENDOR
03-07-2023,Adults & Health,Bio Luminuex Health Care Ltd,Home Care - Private Contractors Payment,179.55,0,VENDOR
03-07-2023,Adults & Health,Bio Luminuex Health Care Ltd,Home Care - Private Contractors Payment,251.37,0,VENDOR
03-07-2023,Adults & Health,Bio Luminuex Health Care Ltd,Daycare - Private Contractors Payment,82.08,0,VENDOR
03-07-2023,Adults & Health,Bio Luminuex Health Care Ltd,Daycare - Private Contractors Payment,51.3,0,VENDOR
03-07-2023,Adults & Health,Bio Luminuex Health Care Ltd,Daycare - Private Contractors Payment,102.6,0,VENDOR
03-07-2023,Adults & Health,Bio Luminuex Health Care Ltd,Home Care - Private Contractors Payment,20.52,0,VENDOR
03-07-2023,Adults & Health,Bio Luminuex Health Care Ltd,Home Care - Private Contractors Payment,179.55,0,VENDOR
03-07-2023,Adults & Health,Bio Luminuex Health Care Ltd,Daycare - Private Contractors Payment,82.08,0,VENDOR
03-07-2023,Adults & Health,Bio Luminuex Health Care Ltd,Home Care - Private Contractors Payment,15.39,0,VENDOR
03-07-2023,Adults & Health,Bio Luminuex Health Care Ltd,Home Care - Private Contractors Payment,107.73,0,VENDOR
03-07-2023,Adults & Health,Bio Luminuex Health Care Ltd,Home Care - Private Contractors Payment,466.83,0,VENDOR
03-07-2023,Adults & Health,Bio Luminuex Health Care Ltd,Daycare - Private Contractors Payment,41.04,0,VENDOR
03-07-2023,Adults & Health,Bio Luminuex Health Care Ltd,Home Care - Private Contractors Payment,251.37,0,VENDOR
03-07-2023,Adults & Health,Bio Luminuex Health Care Ltd,Daycare - Private Contractors Payment,102.6,0,VENDOR
03-07-2023,Adults & Health,Bio Luminuex Health Care Ltd,Daycare - Private Contractors Payment,41.04,0,VENDOR
03-07-2023,Adults & Health,Bio Luminuex Health Care Ltd,Home Care - Private Contractors Payment,20.52,0,VENDOR
03-07-2023,Adults & Health,Bio Luminuex Health Care Ltd,Home Care - Private Contractors Payment,20.52,0,VENDOR
03-07-2023,Adults & Health,Bio Luminuex Health Care Ltd,Home Care - Private Contractors Payment,251.37,0,VENDOR
03-07-2023,Adults & Health,Bio Luminuex Health Care Ltd,Home Care - Private Contractors Payment,61.56,0,VENDOR
03-07-2023,Adults & Health,Bio Luminuex Health Care Ltd,Home Care - Private Contractors Payment,266.76,0,VENDOR
03-07-2023,Adults & Health,Bio Luminuex Health Care Ltd,Respite Care - Private Contractors Payment,20.52,0,VENDOR
03-07-2023,Adults & Health,Bio Luminuex Health Care Ltd,Home Care - Private Contractors Payment,754.11,0,VENDOR
03-07-2023,Adults & Health,Bio Luminuex Health Care Ltd,Home Care - Private Contractors Payment,323.19,0,VENDOR
03-07-2023,Adults & Health,Bio Luminuex Health Care Ltd,Daycare - Private Contractors Payment,30.78,0,VENDOR
03-07-2023,Adults & Health,Bio Luminuex Health Care Ltd,Home Care - Private Contractors Payment,215.46,0,VENDOR
03-07-2023,Adults & Health,Bio Luminuex Health Care Ltd,Home Care - Private Contractors Payment,215.46,0,VENDOR
03-07-2023,Adults & Health,Bio Luminuex Health Care Ltd,Home Care - Private Contractors Payment,143.64,0,VENDOR
03-07-2023,Adults & Health,Bio Luminuex Health Care Ltd,Home Care - Private Contractors Payment,215.46,0,VENDOR
03-07-2023,Adults & Health,Bio Luminuex Health Care Ltd,Home Care - Private Contractors Payment,138.51,0,VENDOR
03-07-2023,Adults & Health,Bio Luminuex Health Care Ltd,Home Care - Private Contractors Payment,20.52,0,VENDOR
03-07-2023,Adults & Health,Bio Luminuex Health Care Ltd,Home Care - Private Contractors Payment,251.37,0,VENDOR
03-07-2023,Adults & Health,Bio Luminuex Health Care Ltd,Home Care - Private Contractors Payment,107.73,0,VENDOR
03-07-2023,Adults & Health,Bio Luminuex Health Care Ltd,Home Care - Private Contractors Payment,287.28,0,VENDOR
03-07-2023,Adults & Health,Bio Luminuex Health Care Ltd,Home Care - Private Contractors Payment,466.83,0,VENDOR
03-07-2023,Adults & Health,Bio Luminuex Health Care Ltd,Home Care - Private Contractors Payment,20.52,0,VENDOR
03-07-2023,Adults & Health,Bio Luminuex Health Care Ltd,Daycare - Private Contractors Payment,41.04,0,VENDOR
03-07-2023,Adults & Health,Bio Luminuex Health Care Ltd,Home Care - Private Contractors Payment,169.29,0,VENDOR
03-07-2023,Adults & Health,Bio Luminuex Health Care Ltd,Home Care - Private Contractors Payment,359.1,0,VENDOR
03-07-2023,Adults & Health,Bio Luminuex Health Care Ltd,Home Care - Private Contractors Payment,251.37,0,VENDOR
03-07-2023,Adults & Health,Bio Luminuex Health Care Ltd,Daycare - Private Contractors Payment,41.04,0,VENDOR
03-07-2023,Adults & Health,Bio Luminuex Health Care Ltd,Daycare - Private Contractors Payment,20.52,0,VENDOR
03-07-2023,Adults & Health,Bio Luminuex Health Care Ltd,Home Care - Private Contractors Payment,41.04,0,VENDOR
03-07-2023,Adults & Health,Bio Luminuex Health Care Ltd,Daycare - Private Contractors Payment,61.56,0,VENDOR
03-07-2023,Adults & Health,Bio Luminuex Health Care Ltd,Home Care - Private Contractors Payment,287.28,0,VENDOR
03-07-2023,Adults & Health,Bio Luminuex Health Care Ltd,Home Care - Private Contractors Payment,102.6,0,VENDOR
03-07-2023,Adults & Health,Bio Luminuex Health Care Ltd,Home Care - Private Contractors Payment,107.73,0,VENDOR
03-07-2023,Adults & Health,Bio Luminuex Health Care Ltd,Home Care - Private Contractors Payment,20.52,0,VENDOR
03-07-2023,Adults & Health,Bio Luminuex Health Care Ltd,Home Care - Private Contractors Payment,323.19,0,VENDOR
03-07-2023,Adults & Health,Bio Luminuex Health Care Ltd,Home Care - Private Contractors Payment,71.82,0,VENDOR
03-07-2023,Adults & Health,Bio Luminuex Health Care Ltd,Home Care - Private Contractors Payment,87.21,0,VENDOR
03-07-2023,Adults & Health,Bio Luminuex Health Care Ltd,Home Care - Private Contractors Payment,287.28,0,VENDOR
03-07-2023,Adults & Health,Bio Luminuex Health Care Ltd,Home Care - Private Contractors Payment,666.9,0,VENDOR
03-07-2023,Adults & Health,Bio Luminuex Health Care Ltd,Home Care - Private Contractors Payment,287.28,0,VENDOR
03-07-2023,Adults & Health,Bio Luminuex Health Care Ltd,Home Care - Private Contractors Payment,107.73,0,VENDOR
03-07-2023,Adults & Health,Bio Luminuex Health Care Ltd,Home Care - Private Contractors Payment,215.46,0,VENDOR
03-07-2023,Adults & Health,Bio Luminuex Health Care Ltd,Respite Care - Private Contractors Payment,143.64,0,VENDOR
03-07-2023,Adults & Health,Bio Luminuex Health Care Ltd,Home Care - Private Contractors Payment,51.3,0,VENDOR
03-07-2023,Adults & Health,Bio Luminuex Health Care Ltd,Home Care - Private Contractors Payment,287.28,0,VENDOR
03-07-2023,Adults & Health,Bio Luminuex Health Care Ltd,Respite Care - Private Contractors Payment,82.08,0,VENDOR
03-07-2023,Adults & Health,Bio Luminuex Health Care Ltd,Home Care - Private Contractors Payment,107.73,0,VENDOR
03-07-2023,Adults & Health,Bio Luminuex Health Care Ltd,Home Care - Private Contractors Payment,251.37,0,VENDOR
03-07-2023,Adults & Health,Bio Luminuex Health Care Ltd,Home Care - Private Contractors Payment,215.46,0,VENDOR
03-07-2023,Adults & Health,Bio Luminuex Health Care Ltd,Reablement,215.46,0,VENDOR
03-07-2023,Adults & Health,Bio Luminuex Health Care Ltd,Home Care - Private Contractors Payment,179.55,0,VENDOR
03-07-2023,Adults & Health,Bio Luminuex Health Care Ltd,Home Care - Private Contractors Payment,312.93,0,VENDOR
03-07-2023,Adults & Health,Bio Luminuex Health Care Ltd,Home Care - Private Contractors Payment,123.12,0,VENDOR
03-07-2023,Adults & Health,Bio Luminuex Health Care Ltd,Home Care - Private Contractors Payment,287.28,0,VENDOR
03-07-2023,Adults & Health,Bio Luminuex Health Care Ltd,Home Care - Private Contractors Payment,143.64,0,VENDOR
03-07-2023,Adults & Health,Bio Luminuex Health Care Ltd,Home Care - Private Contractors Payment,215.46,0,VENDOR
03-07-2023,Adults & Health,Bio Luminuex Health Care Ltd,Home Care - Private Contractors Payment,61.56,0,VENDOR
03-07-2023,Adults & Health,Bio Luminuex Health Care Ltd,Home Care - Private Contractors Payment,51.3,0,VENDOR
03-07-2023,Adults & Health,Bio Luminuex Health Care Ltd,Home Care - Private Contractors Payment,51.3,0,VENDOR
03-07-2023,Adults & Health,Bio Luminuex Health Care Ltd,Home Care - Private Contractors Payment,179.55,0,VENDOR
03-07-2023,Adults & Health,Bio Luminuex Health Care Ltd,Home Care - Private Contractors Payment,215.46,0,VENDOR
03-07-2023,Adults & Health,Bio Luminuex Health Care Ltd,Respite Care - Private Contractors Payment,61.56,0,VENDOR
03-07-2023,Adults & Health,Bio Luminuex Health Care Ltd,Home Care - Private Contractors Payment,646.38,0,VENDOR
03-07-2023,Adults & Health,Bio Luminuex Health Care Ltd,Daycare - Private Contractors Payment,41.04,0,VENDOR
03-07-2023,Adults & Health,Bio Luminuex Health Care Ltd,Home Care - Private Contractors Payment,323.19,0,VENDOR
03-07-2023,Adults & Health,Bio Luminuex Health Care Ltd,Daycare - Private Contractors Payment,61.56,0,VENDOR
03-07-2023,Adults & Health,Bio Luminuex Health Care Ltd,Home Care - Private Contractors Payment,323.19,0,VENDOR
03-07-2023,Adults & Health,Bio Luminuex Health Care Ltd,Daycare - Private Contractors Payment,61.56,0,VENDOR
03-07-2023,Adults & Health,Bio Luminuex Health Care Ltd,Home Care - Private Contractors Payment,20.52,0,VENDOR
03-07-2023,Adults & Health,Bio Luminuex Health Care Ltd,Respite Care - Private Contractors Payment,61.56,0,VENDOR
03-07-2023,Adults & Health,Bio Luminuex Health Care Ltd,Home Care - Private Contractors Payment,215.46,0,VENDOR
03-07-2023,Adults & Health,Bio Luminuex Health Care Ltd,Home Care - Private Contractors Payment,251.37,0,VENDOR
03-07-2023,Adults & Health,Bio Luminuex Health Care Ltd,Home Care - Private Contractors Payment,646.38,0,VENDOR
03-07-2023,Adults & Health,Bio Luminuex Health Care Ltd,Reablement,143.64,0,VENDOR
03-07-2023,Adults & Health,Bio Luminuex Health Care Ltd,Home Care - Private Contractors Payment,610.47,0,VENDOR
03-07-2023,Adults & Health,Bio Luminuex Health Care Ltd,Home Care - Private Contractors Payment,143.64,0,VENDOR
03-07-2023,Adults & Health,Bio Luminuex Health Care Ltd,Home Care - Private Contractors Payment,287.28,0,VENDOR
03-07-2023,Adults & Health,Bio Luminuex Health Care Ltd,Home Care - Private Contractors Payment,143.64,0,VENDOR
03-07-2023,Adults & Health,Bio Luminuex Health Care Ltd,Home Care - Private Contractors Payment,184.68,0,VENDOR
03-07-2023,Adults & Health,Bio Luminuex Health Care Ltd,Daycare - Private Contractors Payment,102.6,0,VENDOR
03-07-2023,Adults & Health,Bio Luminuex Health Care Ltd,Home Care - Private Contractors Payment,107.73,0,VENDOR
03-07-2023,Adults & Health,Bio Luminuex Health Care Ltd,Home Care - Private Contractors Payment,395.01,0,VENDOR
03-07-2023,Adults & Health,Bio Luminuex Health Care Ltd,Home Care - Private Contractors Payment,395.01,0,VENDOR
03-07-2023,Adults & Health,Bio Luminuex Health Care Ltd,Home Care - Private Contractors Payment,251.37,0,VENDOR
03-07-2023,Adults & Health,Bio Luminuex Health Care Ltd,Home Care - Private Contractors Payment,323.19,0,VENDOR
03-07-2023,Adults & Health,Bio Luminuex Health Care Ltd,Home Care - Private Contractors Payment,20.52,0,VENDOR
03-07-2023,Adults & Health,Bio Luminuex Health Care Ltd,Home Care - Private Contractors Payment,251.37,0,VENDOR
03-07-2023,Adults & Health,Bio Luminuex Health Care Ltd,Home Care - Private Contractors Payment,610.47,0,VENDOR
03-07-2023,Adults & Health,Bio Luminuex Health Care Ltd,Home Care - Private Contractors Payment,30.78,0,VENDOR
03-07-2023,Adults & Health,Bio Luminuex Health Care Ltd,Home Care - Private Contractors Payment,20.52,0,VENDOR
03-07-2023,Adults & Health,Bio Luminuex Health Care Ltd,Reablement,215.46,0,VENDOR
03-07-2023,Adults & Health,Bio Luminuex Health Care Ltd,Home Care - Private Contractors Payment,646.38,0,VENDOR
03-07-2023,Adults & Health,Bio Luminuex Health Care Ltd,Home Care - Private Contractors Payment,323.19,0,VENDOR
03-07-2023,Adults & Health,Bio Luminuex Health Care Ltd,Home Care - Private Contractors Payment,533.52,0,VENDOR
03-07-2023,Adults & Health,Bio Luminuex Health Care Ltd,Home Care - Private Contractors Payment,533.52,0,VENDOR
03-07-2023,Adults & Health,Bio Luminuex Health Care Ltd,Home Care - Private Contractors Payment,107.73,0,VENDOR
03-07-2023,Adults & Health,Bio Luminuex Health Care Ltd,Home Care - Private Contractors Payment,359.1,0,VENDOR
03-07-2023,Adults & Health,Bio Luminuex Health Care Ltd,Home Care - Private Contractors Payment,143.64,0,VENDOR
03-07-2023,Adults & Health,Bio Luminuex Health Care Ltd,Home Care - Private Contractors Payment,107.73,0,VENDOR
03-07-2023,Adults & Health,Bio Luminuex Health Care Ltd,Home Care - Private Contractors Payment,251.37,0,VENDOR
03-07-2023,Adults & Health,Bio Luminuex Health Care Ltd,Home Care - Private Contractors Payment,430.92,0,VENDOR
03-07-2023,Adults & Health,Bio Luminuex Health Care Ltd,Home Care - Private Contractors Payment,179.55,0,VENDOR
03-07-2023,Adults & Health,Bio Luminuex Health Care Ltd,Home Care - Private Contractors Payment,107.73,0,VENDOR
03-07-2023,Adults & Health,Bio Luminuex Health Care Ltd,Home Care - Private Contractors Payment,41.04,0,VENDOR
03-07-2023,Adults & Health,Bio Luminuex Health Care Ltd,Home Care - Private Contractors Payment,246.24,0,VENDOR
03-07-2023,Adults & Health,Bio Luminuex Health Care Ltd,Daycare - Private Contractors Payment,82.08,0,VENDOR
03-07-2023,Adults & Health,Bio Luminuex Health Care Ltd,Home Care - Private Contractors Payment,251.37,0,VENDOR
03-07-2023,Adults & Health,Bio Luminuex Health Care Ltd,Home Care - Private Contractors Payment,646.38,0,VENDOR
03-07-2023,Adults & Health,Bio Luminuex Health Care Ltd,Daycare - Private Contractors Payment,41.04,0,VENDOR
03-07-2023,Adults & Health,Bio Luminuex Health Care Ltd,Home Care - Private Contractors Payment,107.73,0,VENDOR
03-07-2023,Adults & Health,Bio Luminuex Health Care Ltd,Home Care - Private Contractors Payment,312.93,0,VENDOR
03-07-2023,Adults & Health,Bio Luminuex Health Care Ltd,Home Care - Private Contractors Payment,143.64,0,VENDOR
03-07-2023,Adults & Health,Bio Luminuex Health Care Ltd,Home Care - Private Contractors Payment,30.78,0,VENDOR
03-07-2023,Adults & Health,Bio Luminuex Health Care Ltd,Home Care - Private Contractors Payment,323.19,0,VENDOR
03-07-2023,Adults & Health,Bio Luminuex Health Care Ltd,Home Care - Private Contractors Payment,179.55,0,VENDOR
03-07-2023,Adults & Health,Bio Luminuex Health Care Ltd,Home Care - Private Contractors Payment,179.55,0,VENDOR
03-07-2023,Adults & Health,Bio Luminuex Health Care Ltd,Home Care - Private Contractors Payment,71.82,0,VENDOR
03-07-2023,Adults & Health,Bio Luminuex Health Care Ltd,Home Care - Private Contractors Payment,251.37,0,VENDOR
03-07-2023,Adults & Health,Bio Luminuex Health Care Ltd,Daycare - Private Contractors Payment,41.04,0,VENDOR
03-07-2023,Adults & Health,Bio Luminuex Health Care Ltd,Home Care - Private Contractors Payment,107.73,0,VENDOR
03-07-2023,Adults & Health,Bio Luminuex Health Care Ltd,Daycare - Private Contractors Payment,41.04,0,VENDOR
03-07-2023,Adults & Health,Bio Luminuex Health Care Ltd,Daycare - Private Contractors Payment,41.04,0,VENDOR
03-07-2023,Adults & Health,Bio Luminuex Health Care Ltd,Home Care - Private Contractors Payment,107.73,0,VENDOR
03-07-2023,Adults & Health,Bio Luminuex Health Care Ltd,Home Care - Private Contractors Payment,215.46,0,VENDOR
03-07-2023,Adults & Health,Bio Luminuex Health Care Ltd,Home Care - Private Contractors Payment,20.52,0,VENDOR
03-07-2023,Adults & Health,Bio Luminuex Health Care Ltd,Home Care - Private Contractors Payment,41.04,0,VENDOR
03-07-2023,Adults & Health,Bio Luminuex Health Care Ltd,Home Care - Private Contractors Payment,277.02,0,VENDOR
03-07-2023,Adults & Health,Bio Luminuex Health Care Ltd,Home Care - Private Contractors Payment,107.73,0,VENDOR
03-07-2023,Adults & Health,Bio Luminuex Health Care Ltd,Home Care - Private Contractors Payment,251.37,0,VENDOR
03-07-2023,Adults & Health,Bio Luminuex Health Care Ltd,Home Care - Private Contractors Payment,359.1,0,VENDOR
03-07-2023,Adults & Health,Bio Luminuex Health Care Ltd,Home Care - Private Contractors Payment,20.52,0,VENDOR
03-07-2023,Adults & Health,Bio Luminuex Health Care Ltd,Home Care - Private Contractors Payment,210.33,0,VENDOR
03-07-2023,Adults & Health,Bio Luminuex Health Care Ltd,Home Care - Private Contractors Payment,466.83,0,VENDOR
03-07-2023,Adults & Health,Bio Luminuex Health Care Ltd,Daycare - Private Contractors Payment,143.64,0,VENDOR
03-07-2023,Adults & Health,Bio Luminuex Health Care Ltd,Home Care - Private Contractors Payment,646.38,0,VENDOR
03-07-2023,Adults & Health,Bio Luminuex Health Care Ltd,Home Care - Private Contractors Payment,174.42,0,VENDOR
03-07-2023,Adults & Health,Bio Luminuex Health Care Ltd,Home Care - Private Contractors Payment,251.37,0,VENDOR
03-07-2023,Adults & Health,Bio Luminuex Health Care Ltd,Home Care - Private Contractors Payment,538.65,0,VENDOR
03-07-2023,Adults & Health,Bio Luminuex Health Care Ltd,Home Care - Private Contractors Payment,323.19,0,VENDOR
03-07-2023,Adults & Health,Bio Luminuex Health Care Ltd,Home Care - Private Contractors Payment,215.46,0,VENDOR
03-07-2023,Adults & Health,Bio Luminuex Health Care Ltd,Home Care - Private Contractors Payment,359.1,0,VENDOR
03-07-2023,Adults & Health,Bio Luminuex Health Care Ltd,Reablement,82.08,0,VENDOR
03-07-2023,Adults & Health,Bio Luminuex Health Care Ltd,Home Care - Private Contractors Payment,251.37,0,VENDOR
03-07-2023,Adults & Health,Bio Luminuex Health Care Ltd,Home Care - Private Contractors Payment,610.47,0,VENDOR
03-07-2023,Adults & Health,Bio Luminuex Health Care Ltd,Daycare - Private Contractors Payment,41.04,0,VENDOR
03-07-2023,Adults & Health,Bio Luminuex Health Care Ltd,Daycare - Private Contractors Payment,41.04,0,VENDOR
03-07-2023,Adults & Health,Bio Luminuex Health Care Ltd,Home Care - Private Contractors Payment,41.04,0,VENDOR
03-07-2023,Adults & Health,Bio Luminuex Health Care Ltd,Home Care - Private Contractors Payment,215.46,0,VENDOR
03-07-2023,Adults & Health,Bio Luminuex Health Care Ltd,Home Care - Private Contractors Payment,538.65,0,VENDOR
03-07-2023,Adults & Health,Bio Luminuex Health Care Ltd,Home Care - Private Contractors Payment,359.1,0,VENDOR
03-07-2023,Adults & Health,Bio Luminuex Health Care Ltd,Home Care - Private Contractors Payment,646.38,0,VENDOR
03-07-2023,Adults & Health,Bio Luminuex Health Care Ltd,Home Care - Private Contractors Payment,251.37,0,VENDOR
03-07-2023,Adults & Health,Bio Luminuex Health Care Ltd,Home Care - Private Contractors Payment,646.38,0,VENDOR
03-07-2023,Adults & Health,Bio Luminuex Health Care Ltd,Home Care - Private Contractors Payment,107.73,0,VENDOR
03-07-2023,Adults & Health,Bio Luminuex Health Care Ltd,Home Care - Private Contractors Payment,179.55,0,VENDOR
03-07-2023,Adults & Health,Bio Luminuex Health Care Ltd,Home Care - Private Contractors Payment,251.37,0,VENDOR
03-07-2023,Adults & Health,Bio Luminuex Health Care Ltd,Daycare - Private Contractors Payment,123.12,0,VENDOR
03-07-2023,Adults & Health,Bio Luminuex Health Care Ltd,Reablement,20.52,0,VENDOR
03-07-2023,Adults & Health,Bio Luminuex Health Care Ltd,Home Care - Private Contractors Payment,92.34,0,VENDOR
03-07-2023,Adults & Health,Bio Luminuex Health Care Ltd,Home Care - Private Contractors Payment,287.28,0,VENDOR
03-07-2023,Adults & Health,Bio Luminuex Health Care Ltd,Daycare - Private Contractors Payment,41.04,0,VENDOR
03-07-2023,Adults & Health,Bio Luminuex Health Care Ltd,Home Care - Private Contractors Payment,251.37,0,VENDOR
03-07-2023,Adults & Health,Bio Luminuex Health Care Ltd,Home Care - Private Contractors Payment,20.52,0,VENDOR
03-07-2023,Adults & Health,Bio Luminuex Health Care Ltd,Home Care - Private Contractors Payment,359.1,0,VENDOR
03-07-2023,Adults & Health,Bio Luminuex Health Care Ltd,Home Care - Private Contractors Payment,251.37,0,VENDOR
03-07-2023,Adults & Health,Bio Luminuex Health Care Ltd,Home Care - Private Contractors Payment,610.47,0,VENDOR
03-07-2023,Adults & Health,Bio Luminuex Health Care Ltd,Home Care - Private Contractors Payment,718.2,0,VENDOR
03-07-2023,Adults & Health,Bio Luminuex Health Care Ltd,Daycare - Private Contractors Payment,61.56,0,VENDOR
03-07-2023,Adults & Health,Bio Luminuex Health Care Ltd,Home Care - Private Contractors Payment,107.73,0,VENDOR
03-07-2023,Adults & Health,Bio Luminuex Health Care Ltd,Daycare - Private Contractors Payment,82.08,0,VENDOR
03-07-2023,Adults & Health,Bio Luminuex Health Care Ltd,Respite Care - Private Contractors Payment,82.08,0,VENDOR
03-07-2023,Adults & Health,Bio Luminuex Health Care Ltd,Home Care - Private Contractors Payment,20.52,0,VENDOR
03-07-2023,Adults & Health,Bio Luminuex Health Care Ltd,Home Care - Private Contractors Payment,246.24,0,VENDOR
03-07-2023,Adults & Health,Bio Luminuex Health Care Ltd,Home Care - Private Contractors Payment,251.37,0,VENDOR
03-07-2023,Adults & Health,Bio Luminuex Health Care Ltd,Home Care - Private Contractors Payment,646.38,0,VENDOR
03-07-2023,Adults & Health,Bio Luminuex Health Care Ltd,Home Care - Private Contractors Payment,538.65,0,VENDOR
03-07-2023,Adults & Health,Bio Luminuex Health Care Ltd,Home Care - Private Contractors Payment,20.52,0,VENDOR
03-07-2023,Adults & Health,Bio Luminuex Health Care Ltd,Daycare - Private Contractors Payment,41.04,0,VENDOR
03-07-2023,Adults & Health,Bio Luminuex Health Care Ltd,Home Care - Private Contractors Payment,41.04,0,VENDOR
03-07-2023,Adults & Health,Bio Luminuex Health Care Ltd,Home Care - Private Contractors Payment,15.39,0,VENDOR
03-07-2023,Adults & Health,Bio Luminuex Health Care Ltd,Home Care - Private Contractors Payment,220.59,0,VENDOR
03-07-2023,Adults & Health,Bio Luminuex Health Care Ltd,Home Care - Private Contractors Payment,646.38,0,VENDOR
03-07-2023,Adults & Health,Bio Luminuex Health Care Ltd,Home Care - Private Contractors Payment,71.82,0,VENDOR
03-07-2023,Adults & Health,Bio Luminuex Health Care Ltd,Home Care - Private Contractors Payment,20.52,0,VENDOR
03-07-2023,Adults & Health,Bio Luminuex Health Care Ltd,Home Care - Private Contractors Payment,287.28,0,VENDOR
03-07-2023,Adults & Health,Bio Luminuex Health Care Ltd,Home Care - Private Contractors Payment,179.55,0,VENDOR
03-07-2023,Adults & Health,Bio Luminuex Health Care Ltd,Home Care - Private Contractors Payment,107.73,0,VENDOR
03-07-2023,Adults & Health,Bio Luminuex Health Care Ltd,Home Care - Private Contractors Payment,395.01,0,VENDOR
03-07-2023,Adults & Health,Bio Luminuex Health Care Ltd,Home Care - Private Contractors Payment,123.12,0,VENDOR
03-07-2023,Adults & Health,Bio Luminuex Health Care Ltd,Home Care - Private Contractors Payment,107.73,0,VENDOR
03-07-2023,Adults & Health,Bio Luminuex Health Care Ltd,Daycare - Private Contractors Payment,61.56,0,VENDOR
03-07-2023,Adults & Health,Bio Luminuex Health Care Ltd,Home Care - Private Contractors Payment,179.55,0,VENDOR
03-07-2023,Adults & Health,Bio Luminuex Health Care Ltd,Daycare - Private Contractors Payment,41.04,0,VENDOR
03-07-2023,Adults & Health,Bio Luminuex Health Care Ltd,Home Care - Private Contractors Payment,20.52,0,VENDOR
03-07-2023,Adults & Health,Bio Luminuex Health Care Ltd,Daycare - Private Contractors Payment,41.04,0,VENDOR
03-07-2023,Adults & Health,Bio Luminuex Health Care Ltd,Home Care - Private Contractors Payment,215.46,0,VENDOR
03-07-2023,Adults & Health,Bio Luminuex Health Care Ltd,Daycare - Private Contractors Payment,205.2,0,VENDOR
03-07-2023,Adults & Health,Bio Luminuex Health Care Ltd,Home Care - Private Contractors Payment,61.56,0,VENDOR
03-07-2023,Adults & Health,Bio Luminuex Health Care Ltd,Home Care - Private Contractors Payment,51.3,0,VENDOR
03-07-2023,Adults & Health,Bio Luminuex Health Care Ltd,Home Care - Private Contractors Payment,251.37,0,VENDOR
03-07-2023,Adults & Health,Bio Luminuex Health Care Ltd,Home Care - Private Contractors Payment,610.47,0,VENDOR
03-07-2023,Adults & Health,Bio Luminuex Health Care Ltd,Home Care - Private Contractors Payment,179.55,0,VENDOR
03-07-2023,Adults & Health,Bio Luminuex Health Care Ltd,Home Care - Private Contractors Payment,702.81,0,VENDOR
03-07-2023,Adults & Health,Bio Luminuex Health Care Ltd,Daycare - Private Contractors Payment,61.56,0,VENDOR
03-07-2023,Adults & Health,Bio Luminuex Health Care Ltd,Home Care - Private Contractors Payment,128.25,0,VENDOR
03-07-2023,Adults & Health,Bio Luminuex Health Care Ltd,Daycare - Private Contractors Payment,82.08,0,VENDOR
03-07-2023,Adults & Health,Bio Luminuex Health Care Ltd,Home Care - Private Contractors Payment,184.68,0,VENDOR
03-07-2023,Adults & Health,Bio Luminuex Health Care Ltd,Home Care - Private Contractors Payment,107.73,0,VENDOR
03-07-2023,Adults & Health,Bio Luminuex Health Care Ltd,Home Care - Private Contractors Payment,215.46,0,VENDOR
03-07-2023,Adults & Health,Bio Luminuex Health Care Ltd,Home Care - Private Contractors Payment,251.37,0,VENDOR
03-07-2023,Adults & Health,Bio Luminuex Health Care Ltd,Home Care - Private Contractors Payment,287.28,0,VENDOR
03-07-2023,Adults & Health,Bio Luminuex Health Care Ltd,Home Care - Private Contractors Payment,143.64,0,VENDOR
03-07-2023,Adults & Health,Bio Luminuex Health Care Ltd,Home Care - Private Contractors Payment,395.01,0,VENDOR
03-07-2023,Adults & Health,Bio Luminuex Health Care Ltd,Home Care - Private Contractors Payment,20.52,0,VENDOR
03-07-2023,Adults & Health,Bio Luminuex Health Care Ltd,Home Care - Private Contractors Payment,51.3,0,VENDOR
03-07-2023,Adults & Health,Bio Luminuex Health Care Ltd,Home Care - Private Contractors Payment,251.37,0,VENDOR
03-07-2023,Adults & Health,Bio Luminuex Health Care Ltd,Home Care - Private Contractors Payment,861.84,0,VENDOR
03-07-2023,Adults & Health,Bio Luminuex Health Care Ltd,Home Care - Private Contractors Payment,323.19,0,VENDOR
03-07-2023,Adults & Health,Bio Luminuex Health Care Ltd,Home Care - Private Contractors Payment,143.64,0,VENDOR
03-07-2023,Adults & Health,Bio Luminuex Health Care Ltd,Home Care - Private Contractors Payment,610.47,0,VENDOR
03-07-2023,Adults & Health,Bio Luminuex Health Care Ltd,Home Care - Private Contractors Payment,646.38,0,VENDOR
03-07-2023,Adults & Health,Bio Luminuex Health Care Ltd,Home Care - Private Contractors Payment,466.83,0,VENDOR
03-07-2023,Adults & Health,Bio Luminuex Health Care Ltd,Home Care - Private Contractors Payment,395.01,0,VENDOR
03-07-2023,Adults & Health,Bio Luminuex Health Care Ltd,Home Care - Private Contractors Payment,430.92,0,VENDOR
03-07-2023,Adults & Health,Bio Luminuex Health Care Ltd,Home Care - Private Contractors Payment,30.78,0,VENDOR
03-07-2023,Adults & Health,Bio Luminuex Health Care Ltd,Daycare - Private Contractors Payment,82.08,0,VENDOR
03-07-2023,Adults & Health,Bio Luminuex Health Care Ltd,Home Care - Private Contractors Payment,20.52,0,VENDOR
03-07-2023,Adults & Health,Bio Luminuex Health Care Ltd,Home Care - Private Contractors Payment,143.64,0,VENDOR
03-07-2023,Adults & Health,Bio Luminuex Health Care Ltd,Home Care - Private Contractors Payment,251.37,0,VENDOR
03-07-2023,Adults & Health,Bio Luminuex Health Care Ltd,Home Care - Private Contractors Payment,215.46,0,VENDOR
03-07-2023,Adults & Health,Bio Luminuex Health Care Ltd,Home Care - Private Contractors Payment,20.52,0,VENDOR
03-07-2023,Adults & Health,Bio Luminuex Health Care Ltd,Home Care - Private Contractors Payment,179.55,0,VENDOR
03-07-2023,Adults & Health,Bio Luminuex Health Care Ltd,Home Care - Private Contractors Payment,179.55,0,VENDOR
03-07-2023,Adults & Health,Bio Luminuex Health Care Ltd,Home Care - Private Contractors Payment,61.56,0,VENDOR
03-07-2023,Adults & Health,Bio Luminuex Health Care Ltd,Home Care - Private Contractors Payment,143.64,0,VENDOR
03-07-2023,Adults & Health,Bio Luminuex Health Care Ltd,Daycare - Private Contractors Payment,205.2,0,VENDOR
03-07-2023,Adults & Health,Bio Luminuex Health Care Ltd,Home Care - Private Contractors Payment,861.84,0,VENDOR
03-07-2023,Adults & Health,Bio Luminuex Health Care Ltd,Home Care - Private Contractors Payment,323.19,0,VENDOR
03-07-2023,Adults & Health,Bio Luminuex Health Care Ltd,Home Care - Private Contractors Payment,153.9,0,VENDOR
03-07-2023,Adults & Health,Bio Luminuex Health Care Ltd,Home Care - Private Contractors Payment,615.6,0,VENDOR
03-07-2023,Adults & Health,Bio Luminuex Health Care Ltd,Respite Care - Private Contractors Payment,66.69,0,VENDOR
03-07-2023,Adults & Health,Bio Luminuex Health Care Ltd,Home Care - Private Contractors Payment,20.52,0,VENDOR
03-07-2023,Adults & Health,Bio Luminuex Health Care Ltd,Home Care - Private Contractors Payment,20.52,0,VENDOR
03-07-2023,Adults & Health,Bio Luminuex Health Care Ltd,Daycare - Private Contractors Payment,41.04,0,VENDOR
03-07-2023,Adults & Health,Bio Luminuex Health Care Ltd,Home Care - Private Contractors Payment,251.37,0,VENDOR
03-07-2023,Adults & Health,Bio Luminuex Health Care Ltd,Home Care - Private Contractors Payment,143.64,0,VENDOR
03-07-2023,Adults & Health,Bio Luminuex Health Care Ltd,Home Care - Private Contractors Payment,179.55,0,VENDOR
03-07-2023,Adults & Health,Bio Luminuex Health Care Ltd,Home Care - Private Contractors Payment,123.12,0,VENDOR
03-07-2023,Adults & Health,Bio Luminuex Health Care Ltd,Home Care - Private Contractors Payment,215.46,0,VENDOR
03-07-2023,Adults & Health,Bio Luminuex Health Care Ltd,Home Care - Private Contractors Payment,179.55,0,VENDOR
03-07-2023,Adults & Health,Bio Luminuex Health Care Ltd,Home Care - Private Contractors Payment,143.64,0,VENDOR
03-07-2023,Adults & Health,Bio Luminuex Health Care Ltd,Home Care - Private Contractors Payment,179.55,0,VENDOR
03-07-2023,Adults & Health,Bio Luminuex Health Care Ltd,Home Care - Private Contractors Payment,466.83,0,VENDOR
03-07-2023,Adults & Health,Bio Luminuex Health Care Ltd,Daycare - Private Contractors Payment,143.64,0,VENDOR
03-07-2023,Adults & Health,Bio Luminuex Health Care Ltd,Home Care - Private Contractors Payment,30.78,0,VENDOR
03-07-2023,Adults & Health,Bio Luminuex Health Care Ltd,Daycare - Private Contractors Payment,41.04,0,VENDOR
03-07-2023,Adults & Health,Bio Luminuex Health Care Ltd,Home Care - Private Contractors Payment,312.93,0,VENDOR
03-07-2023,Adults & Health,Bio Luminuex Health Care Ltd,Home Care - Private Contractors Payment,359.1,0,VENDOR
03-07-2023,Adults & Health,Bio Luminuex Health Care Ltd,Home Care - Private Contractors Payment,143.64,0,VENDOR
03-07-2023,Adults & Health,Bio Luminuex Health Care Ltd,Home Care - Private Contractors Payment,287.28,0,VENDOR
03-07-2023,Adults & Health,Bio Luminuex Health Care Ltd,Home Care - Private Contractors Payment,323.19,0,VENDOR
03-07-2023,Adults & Health,Bio Luminuex Health Care Ltd,Home Care - Private Contractors Payment,20.52,0,VENDOR
03-07-2023,Adults & Health,Bio Luminuex Health Care Ltd,Home Care - Private Contractors Payment,41.04,0,VENDOR
03-07-2023,Adults & Health,Bio Luminuex Health Care Ltd,Home Care - Private Contractors Payment,20.52,0,VENDOR
03-07-2023,Adults & Health,Bio Luminuex Health Care Ltd,Home Care - Private Contractors Payment,666.9,0,VENDOR
03-07-2023,Adults & Health,Bio Luminuex Health Care Ltd,Home Care - Private Contractors Payment,502.74,0,VENDOR
03-07-2023,Adults & Health,Bio Luminuex Health Care Ltd,Home Care - Private Contractors Payment,251.37,0,VENDOR
03-07-2023,Adults & Health,Bio Luminuex Health Care Ltd,Home Care - Private Contractors Payment,215.46,0,VENDOR
03-07-2023,Adults & Health,Bio Luminuex Health Care Ltd,Daycare - Private Contractors Payment,82.08,0,VENDOR
03-07-2023,Adults & Health,Bio Luminuex Health Care Ltd,Daycare - Private Contractors Payment,51.3,0,VENDOR
03-07-2023,Adults & Health,Bio Luminuex Health Care Ltd,Home Care - Private Contractors Payment,251.37,0,VENDOR
03-07-2023,Adults & Health,Bio Luminuex Health Care Ltd,Home Care - Private Contractors Payment,20.52,0,VENDOR
03-07-2023,Adults & Health,Bio Luminuex Health Care Ltd,Home Care - Private Contractors Payment,179.55,0,VENDOR
03-07-2023,Adults & Health,Bio Luminuex Health Care Ltd,Home Care - Private Contractors Payment,184.68,0,VENDOR
03-07-2023,Adults & Health,Bio Luminuex Health Care Ltd,Home Care - Private Contractors Payment,20.52,0,VENDOR
03-07-2023,Adults & Health,Bio Luminuex Health Care Ltd,Home Care - Private Contractors Payment,215.46,0,VENDOR
03-07-2023,Adults & Health,Bio Luminuex Health Care Ltd,Home Care - Private Contractors Payment,574.56,0,VENDOR
03-07-2023,Adults & Health,Bio Luminuex Health Care Ltd,Daycare - Private Contractors Payment,71.82,0,VENDOR
03-07-2023,Adults & Health,Bio Luminuex Health Care Ltd,Daycare - Private Contractors Payment,20.52,0,VENDOR
03-07-2023,Adults & Health,Bio Luminuex Health Care Ltd,Home Care - Private Contractors Payment,20.52,0,VENDOR
03-07-2023,Adults & Health,Bio Luminuex Health Care Ltd,Home Care - Private Contractors Payment,30.78,0,VENDOR
03-07-2023,Adults & Health,Bio Luminuex Health Care Ltd,Respite Care - Private Contractors Payment,123.12,0,VENDOR
03-07-2023,Adults & Health,Bio Luminuex Health Care Ltd,Home Care - Private Contractors Payment,41.04,0,VENDOR
03-07-2023,Adults & Health,Bio Luminuex Health Care Ltd,Daycare - Private Contractors Payment,82.08,0,VENDOR
03-07-2023,Adults & Health,Bio Luminuex Health Care Ltd,Home Care - Private Contractors Payment,179.55,0,VENDOR
03-07-2023,Adults & Health,Bio Luminuex Health Care Ltd,Home Care - Private Contractors Payment,287.28,0,VENDOR
03-07-2023,Adults & Health,Bio Luminuex Health Care Ltd,Home Care - Private Contractors Payment,287.28,0,VENDOR
03-07-2023,Adults & Health,Bio Luminuex Health Care Ltd,Home Care - Private Contractors Payment,359.1,0,VENDOR
03-07-2023,Adults & Health,Bio Luminuex Health Care Ltd,Home Care - Private Contractors Payment,246.24,0,VENDOR
03-07-2023,Adults & Health,Bio Luminuex Health Care Ltd,Home Care - Private Contractors Payment,610.47,0,VENDOR
03-07-2023,Adults & Health,Bio Luminuex Health Care Ltd,Home Care - Private Contractors Payment,430.92,0,VENDOR
03-07-2023,Adults & Health,Bio Luminuex Health Care Ltd,Home Care - Private Contractors Payment,574.56,0,VENDOR
03-07-2023,Adults & Health,Bio Luminuex Health Care Ltd,Home Care - Private Contractors Payment,897.75,0,VENDOR
03-07-2023,Adults & Health,Bio Luminuex Health Care Ltd,Home Care - Private Contractors Payment,20.52,0,VENDOR
03-07-2023,Adults & Health,Bio Luminuex Health Care Ltd,Home Care - Private Contractors Payment,179.55,0,VENDOR
03-07-2023,Adults & Health,Bio Luminuex Health Care Ltd,Home Care - Private Contractors Payment,107.73,0,VENDOR
03-07-2023,Adults & Health,Bio Luminuex Health Care Ltd,Home Care - Private Contractors Payment,41.04,0,VENDOR
03-07-2023,Adults & Health,Bio Luminuex Health Care Ltd,Home Care - Private Contractors Payment,287.28,0,VENDOR
03-07-2023,Adults & Health,Bio Luminuex Health Care Ltd,Home Care - Private Contractors Payment,215.46,0,VENDOR
03-07-2023,Adults & Health,Bio Luminuex Health Care Ltd,Home Care - Private Contractors Payment,30.78,0,VENDOR
03-07-2023,Adults & Health,Bio Luminuex Health Care Ltd,Home Care - Private Contractors Payment,143.64,0,VENDOR
03-07-2023,Adults & Health,Bio Luminuex Health Care Ltd,Home Care - Private Contractors Payment,323.19,0,VENDOR
03-07-2023,Adults & Health,Bio Luminuex Health Care Ltd,Home Care - Private Contractors Payment,61.56,0,VENDOR
03-07-2023,Adults & Health,Bio Luminuex Health Care Ltd,Home Care - Private Contractors Payment,20.52,0,VENDOR
03-07-2023,Adults & Health,Bio Luminuex Health Care Ltd,Daycare - Private Contractors Payment,41.04,0,VENDOR
03-07-2023,Adults & Health,Bio Luminuex Health Care Ltd,Home Care - Private Contractors Payment,251.37,0,VENDOR
03-07-2023,Adults & Health,Bio Luminuex Health Care Ltd,Home Care - Private Contractors Payment,30.78,0,VENDOR
03-07-2023,Adults & Health,Bio Luminuex Health Care Ltd,Home Care - Private Contractors Payment,20.52,0,VENDOR
03-07-2023,Adults & Health,Bio Luminuex Health Care Ltd,Home Care - Private Contractors Payment,395.01,0,VENDOR
03-07-2023,Adults & Health,Bio Luminuex Health Care Ltd,Home Care - Private Contractors Payment,287.28,0,VENDOR
03-07-2023,Adults & Health,Bio Luminuex Health Care Ltd,Home Care - Private Contractors Payment,251.37,0,VENDOR
03-07-2023,Adults & Health,Bio Luminuex Health Care Ltd,Home Care - Private Contractors Payment,179.55,0,VENDOR
03-07-2023,Adults & Health,Bio Luminuex Health Care Ltd,Home Care - Private Contractors Payment,41.04,0,VENDOR
03-07-2023,Adults & Health,Bio Luminuex Health Care Ltd,Home Care - Private Contractors Payment,143.64,0,VENDOR
03-07-2023,Adults & Health,Bio Luminuex Health Care Ltd,Daycare - Private Contractors Payment,82.08,0,VENDOR
03-07-2023,Adults & Health,Bio Luminuex Health Care Ltd,Home Care - Private Contractors Payment,179.55,0,VENDOR
03-07-2023,Adults & Health,Bio Luminuex Health Care Ltd,Home Care - Private Contractors Payment,251.37,0,VENDOR
03-07-2023,Adults & Health,Bio Luminuex Health Care Ltd,Home Care - Private Contractors Payment,61.56,0,VENDOR
03-07-2023,Adults & Health,Bio Luminuex Health Care Ltd,Home Care - Private Contractors Payment,861.84,0,VENDOR
03-07-2023,Adults & Health,Bio Luminuex Health Care Ltd,Home Care - Private Contractors Payment,71.82,0,VENDOR
03-07-2023,Adults & Health,Bio Luminuex Health Care Ltd,Home Care - Private Contractors Payment,395.01,0,VENDOR
03-07-2023,Adults & Health,Bio Luminuex Health Care Ltd,Home Care - Private Contractors Payment,466.83,0,VENDOR
03-07-2023,Adults & Health,Bio Luminuex Health Care Ltd,Home Care - Private Contractors Payment,107.73,0,VENDOR
03-07-2023,Adults & Health,Bio Luminuex Health Care Ltd,Daycare - Private Contractors Payment,82.08,0,VENDOR
03-07-2023,Adults & Health,Bio Luminuex Health Care Ltd,Home Care - Private Contractors Payment,179.55,0,VENDOR
03-07-2023,Adults & Health,Bio Luminuex Health Care Ltd,Home Care - Private Contractors Payment,646.38,0,VENDOR
03-07-2023,Adults & Health,Bio Luminuex Health Care Ltd,Home Care - Private Contractors Payment,153.9,0,VENDOR
03-07-2023,Adults & Health,Bio Luminuex Health Care Ltd,Home Care - Private Contractors Payment,323.19,0,VENDOR
03-07-2023,Adults & Health,Bio Luminuex Health Care Ltd,Daycare - Private Contractors Payment,41.04,0,VENDOR
03-07-2023,Adults & Health,Bio Luminuex Health Care Ltd,Daycare - Private Contractors Payment,41.04,0,VENDOR
03-07-2023,Adults & Health,Bio Luminuex Health Care Ltd,Home Care - Private Contractors Payment,251.37,0,VENDOR
03-07-2023,Adults & Health,Bio Luminuex Health Care Ltd,Daycare - Private Contractors Payment,123.12,0,VENDOR
03-07-2023,Adults & Health,Bio Luminuex Health Care Ltd,Home Care - Private Contractors Payment,41.04,0,VENDOR
03-07-2023,Adults & Health,Bio Luminuex Health Care Ltd,Home Care - Private Contractors Payment,87.21,0,VENDOR
03-07-2023,Adults & Health,Bio Luminuex Health Care Ltd,Daycare - Private Contractors Payment,102.6,0,VENDOR
03-07-2023,Adults & Health,Bio Luminuex Health Care Ltd,Home Care - Private Contractors Payment,395.01,0,VENDOR
03-07-2023,Adults & Health,Bio Luminuex Health Care Ltd,Daycare - Private Contractors Payment,123.12,0,VENDOR
03-07-2023,Adults & Health,Bio Luminuex Health Care Ltd,Home Care - Private Contractors Payment,179.55,0,VENDOR
03-07-2023,Adults & Health,Bio Luminuex Health Care Ltd,Home Care - Private Contractors Payment,323.19,0,VENDOR
03-07-2023,Adults & Health,Bio Luminuex Health Care Ltd,Home Care - Private Contractors Payment,395.01,0,VENDOR
03-07-2023,Adults & Health,Bio Luminuex Health Care Ltd,Home Care - Private Contractors Payment,71.82,0,VENDOR
03-07-2023,Adults & Health,Bio Luminuex Health Care Ltd,Home Care - Private Contractors Payment,430.92,0,VENDOR
03-07-2023,Adults & Health,Bio Luminuex Health Care Ltd,Home Care - Private Contractors Payment,861.84,0,VENDOR
03-07-2023,Adults & Health,Bio Luminuex Health Care Ltd,Home Care - Private Contractors Payment,123.12,0,VENDOR
03-07-2023,Adults & Health,Bio Luminuex Health Care Ltd,Home Care - Private Contractors Payment,20.52,0,VENDOR
03-07-2023,Adults & Health,Bio Luminuex Health Care Ltd,Home Care - Private Contractors Payment,251.37,0,VENDOR
03-07-2023,Adults & Health,Bio Luminuex Health Care Ltd,Home Care - Private Contractors Payment,395.01,0,VENDOR
03-07-2023,Adults & Health,Bio Luminuex Health Care Ltd,Home Care - Private Contractors Payment,554.04,0,VENDOR
03-07-2023,Adults & Health,Bio Luminuex Health Care Ltd,Home Care - Private Contractors Payment,51.3,0,VENDOR
03-07-2023,Adults & Health,Bio Luminuex Health Care Ltd,Daycare - Private Contractors Payment,61.56,0,VENDOR
03-07-2023,Adults & Health,Bio Luminuex Health Care Ltd,Home Care - Private Contractors Payment,610.47,0,VENDOR
03-07-2023,Adults & Health,Bio Luminuex Health Care Ltd,Home Care - Private Contractors Payment,251.37,0,VENDOR
03-07-2023,Adults & Health,Bio Luminuex Health Care Ltd,Home Care - Private Contractors Payment,107.73,0,VENDOR
03-07-2023,Adults & Health,Bio Luminuex Health Care Ltd,Home Care - Private Contractors Payment,215.46,0,VENDOR
03-07-2023,Adults & Health,Bio Luminuex Health Care Ltd,Home Care - Private Contractors Payment,359.1,0,VENDOR
03-07-2023,Adults & Health,Bio Luminuex Health Care Ltd,Home Care - Private Contractors Payment,179.55,0,VENDOR
03-07-2023,Adults & Health,Bio Luminuex Health Care Ltd,Home Care - Private Contractors Payment,215.46,0,VENDOR
03-07-2023,Adults & Health,Bio Luminuex Health Care Ltd,Home Care - Private Contractors Payment,323.19,0,VENDOR
03-07-2023,Adults & Health,Bio Luminuex Health Care Ltd,Home Care - Private Contractors Payment,20.52,0,VENDOR
03-07-2023,Adults & Health,Bio Luminuex Health Care Ltd,Respite Care - Private Contractors Payment,61.56,0,VENDOR
03-07-2023,Adults & Health,Bio Luminuex Health Care Ltd,Home Care - Private Contractors Payment,287.28,0,VENDOR
03-07-2023,Adults & Health,Bio Luminuex Health Care Ltd,Home Care - Private Contractors Payment,215.46,0,VENDOR
03-07-2023,Adults & Health,Bio Luminuex Health Care Ltd,Daycare - Private Contractors Payment,82.08,0,VENDOR
03-07-2023,Adults & Health,Bio Luminuex Health Care Ltd,Home Care - Private Contractors Payment,179.55,0,VENDOR
03-07-2023,Adults & Health,Bio Luminuex Health Care Ltd,Home Care - Private Contractors Payment,251.37,0,VENDOR
03-07-2023,Adults & Health,Bio Luminuex Health Care Ltd,Home Care - Private Contractors Payment,328.32,0,VENDOR
03-07-2023,Adults & Health,Bio Luminuex Health Care Ltd,Home Care - Private Contractors Payment,251.37,0,VENDOR
03-07-2023,Adults & Health,Bio Luminuex Health Care Ltd,Daycare - Private Contractors Payment,102.6,0,VENDOR
03-07-2023,Adults & Health,Bio Luminuex Health Care Ltd,Home Care - Private Contractors Payment,30.78,0,VENDOR
03-07-2023,Adults & Health,Bio Luminuex Health Care Ltd,Home Care - Private Contractors Payment,287.28,0,VENDOR
03-07-2023,Adults & Health,Bio Luminuex Health Care Ltd,Daycare - Private Contractors Payment,61.56,0,VENDOR
03-07-2023,Adults & Health,Bio Luminuex Health Care Ltd,Home Care - Private Contractors Payment,184.68,0,VENDOR
03-07-2023,Adults & Health,Bio Luminuex Health Care Ltd,Home Care - Private Contractors Payment,215.46,0,VENDOR
03-07-2023,Adults & Health,Bio Luminuex Health Care Ltd,Daycare - Private Contractors Payment,41.04,0,VENDOR
03-07-2023,Adults & Health,Bio Luminuex Health Care Ltd,Daycare - Private Contractors Payment,82.08,0,VENDOR
03-07-2023,Adults & Health,Bio Luminuex Health Care Ltd,Home Care - Private Contractors Payment,20.52,0,VENDOR
03-07-2023,Adults & Health,Bio Luminuex Health Care Ltd,Home Care - Private Contractors Payment,251.37,0,VENDOR
03-07-2023,Adults & Health,Bio Luminuex Health Care Ltd,Home Care - Private Contractors Payment,610.47,0,VENDOR
03-07-2023,Adults & Health,Bio Luminuex Health Care Ltd,Home Care - Private Contractors Payment,610.47,0,VENDOR
03-07-2023,Adults & Health,Bio Luminuex Health Care Ltd,Home Care - Private Contractors Payment,20.52,0,VENDOR
03-07-2023,Adults & Health,Bio Luminuex Health Care Ltd,Home Care - Private Contractors Payment,41.04,0,VENDOR
03-07-2023,Adults & Health,Bio Luminuex Health Care Ltd,Home Care - Private Contractors Payment,184.68,0,VENDOR
03-07-2023,Adults & Health,Bio Luminuex Health Care Ltd,Home Care - Private Contractors Payment,215.46,0,VENDOR
03-07-2023,Adults & Health,Bio Luminuex Health Care Ltd,Home Care - Private Contractors Payment,117.99,0,VENDOR
03-07-2023,Adults & Health,Bio Luminuex Health Care Ltd,Home Care - Private Contractors Payment,718.2,0,VENDOR
03-07-2023,Adults & Health,Bio Luminuex Health Care Ltd,Home Care - Private Contractors Payment,169.29,0,VENDOR
03-07-2023,Adults & Health,Bio Luminuex Health Care Ltd,Home Care - Private Contractors Payment,71.82,0,VENDOR
03-07-2023,Adults & Health,Bio Luminuex Health Care Ltd,Home Care - Private Contractors Payment,323.19,0,VENDOR
03-07-2023,Adults & Health,Bio Luminuex Health Care Ltd,Home Care - Private Contractors Payment,897.75,0,VENDOR
03-07-2023,Adults & Health,Bio Luminuex Health Care Ltd,Home Care - Private Contractors Payment,41.04,0,VENDOR
03-07-2023,Adults & Health,Bio Luminuex Health Care Ltd,Home Care - Private Contractors Payment,251.37,0,VENDOR
03-07-2023,Adults & Health,Bio Luminuex Health Care Ltd,Home Care - Private Contractors Payment,466.83,0,VENDOR
03-07-2023,Adults & Health,Bio Luminuex Health Care Ltd,Home Care - Private Contractors Payment,335.69,0,VENDOR
03-07-2023,Adults & Health,Bio Luminuex Health Care Ltd,Home Care - Private Contractors Payment,215.46,0,VENDOR
03-07-2023,Adults & Health,Bio Luminuex Health Care Ltd,Home Care - Private Contractors Payment,466.83,0,VENDOR
03-07-2023,Adults & Health,Bio Luminuex Health Care Ltd,Home Care - Private Contractors Payment,107.73,0,VENDOR
03-07-2023,Adults & Health,Bio Luminuex Health Care Ltd,Home Care - Private Contractors Payment,395.01,0,VENDOR
03-07-2023,Adults & Health,Bio Luminuex Health Care Ltd,Home Care - Private Contractors Payment,20.52,0,VENDOR
03-07-2023,Adults & Health,Bio Luminuex Health Care Ltd,Home Care - Private Contractors Payment,215.46,0,VENDOR
03-07-2023,Adults & Health,Bio Luminuex Health Care Ltd,Home Care - Private Contractors Payment,61.56,0,VENDOR
03-07-2023,oneSource,HALO Psychology Ltd,Staff Development And Training,280,0,COMMERCIAL SUPPLIER
03-07-2023,Environment and Sustainable Transport,Fast Fuel Services,Highway Services,400,0,COMMERCIAL SUPPLIER
03-07-2023,Environment and Sustainable Transport,Fast Fuel Services,Highway Services,800,0,COMMERCIAL SUPPLIER
03-07-2023,Environment and Sustainable Transport,Fast Fuel Services,Highway Services,256,0,COMMERCIAL SUPPLIER
03-07-2023,Environment and Sustainable Transport,Fast Fuel Services,Highway Services,50,0,COMMERCIAL SUPPLIER
03-07-2023,oneSource - Non Shared,CCS Media Limited.,Ict Hardware,448.5,0,COMMERCIAL SUPPLIER
03-07-2023,Inclusive Economy & Housing,Insurance Claims Accomodation Bureau Limited,Rents Payable,2784.74,0,COMMERCIAL SUPPLIER
03-07-2023,Inclusive Economy & Housing,Insurance Claims Accomodation Bureau Limited,Rents Payable,6673.87,0,COMMERCIAL SUPPLIER
03-07-2023,Inclusive Economy & Housing,Insurance Claims Accomodation Bureau Limited,Rents Payable,2682.87,0,COMMERCIAL SUPPLIER
03-07-2023,Inclusive Economy & Housing,Insurance Claims Accomodation Bureau Limited,Rents Payable,2710.26,0,COMMERCIAL SUPPLIER
03-07-2023,Inclusive Economy & Housing,Insurance Claims Accomodation Bureau Limited,Rents Payable,521.83,0,COMMERCIAL SUPPLIER
03-07-2023,Inclusive Economy & Housing,Insurance Claims Accomodation Bureau Limited,Rents Payable,819.6,0,COMMERCIAL SUPPLIER
03-07-2023,Inclusive Economy & Housing,Insurance Claims Accomodation Bureau Limited,Rents Payable,607.41,0,COMMERCIAL SUPPLIER
03-07-2023,Inclusive Economy & Housing,Insurance Claims Accomodation Bureau Limited,Rents Payable,434.21,0,COMMERCIAL SUPPLIER
03-07-2023,Inclusive Economy & Housing,Insurance Claims Accomodation Bureau Limited,Rents Payable,1412.74,0,COMMERCIAL SUPPLIER
03-07-2023,Inclusive Economy & Housing,Insurance Claims Accomodation Bureau Limited,Rents Payable,4351.43,0,COMMERCIAL SUPPLIER
03-07-2023,Inclusive Economy & Housing,Insurance Claims Accomodation Bureau Limited,Rents Payable,272.92,0,COMMERCIAL SUPPLIER
03-07-2023,Inclusive Economy & Housing,Insurance Claims Accomodation Bureau Limited,Rents Payable,3882.57,0,COMMERCIAL SUPPLIER
03-07-2023,Inclusive Economy & Housing,Insurance Claims Accomodation Bureau Limited,Rents Payable,324.95,0,COMMERCIAL SUPPLIER
03-07-2023,Inclusive Economy & Housing,Insurance Claims Accomodation Bureau Limited,Rents Payable,4051.85,0,COMMERCIAL SUPPLIER
03-07-2023,Environment and Sustainable Transport,Sparshatt Truck & Van Ltd,Highway Services,244.36,0,COMMERCIAL SUPPLIER
03-07-2023,RMS,Travis Perkins Trading Company Ltd,Building Alterations And Materials,269.7,0,COMMERCIAL SUPPLIER
03-07-2023,RMS,Travis Perkins Trading Company Ltd,Building Alterations And Materials,39.6,0,COMMERCIAL SUPPLIER
03-07-2023,RMS,Travis Perkins Trading Company Ltd,Building Alterations And Materials,590.1,0,COMMERCIAL SUPPLIER
03-07-2023,RMS,Travis Perkins Trading Company Ltd,Building Alterations And Materials,24.6,0,COMMERCIAL SUPPLIER
03-07-2023,RMS,Travis Perkins Trading Company Ltd,Building Alterations And Materials,392.8,0,COMMERCIAL SUPPLIER
03-07-2023,RMS,Travis Perkins Trading Company Ltd,Building Alterations And Materials,202.9,0,COMMERCIAL SUPPLIER
03-07-2023,RMS,Travis Perkins Trading Company Ltd,Building Alterations And Materials,865.6,0,COMMERCIAL SUPPLIER
03-07-2023,RMS,Travis Perkins Trading Company Ltd,Building Alterations And Materials,2302.08,0,COMMERCIAL SUPPLIER
03-07-2023,RMS,Travis Perkins Trading Company Ltd,Building Alterations And Materials,4394,0,COMMERCIAL SUPPLIER
03-07-2023,RMS,Travis Perkins Trading Company Ltd,Building Alterations And Materials,446.52,0,COMMERCIAL SUPPLIER
03-07-2023,RMS,Travis Perkins Trading Company Ltd,Building Alterations And Materials,3906,0,COMMERCIAL SUPPLIER
03-07-2023,RMS,Travis Perkins Trading Company Ltd,Building Alterations And Materials,244,0,COMMERCIAL SUPPLIER
03-07-2023,RMS,Travis Perkins Trading Company Ltd,Building Alterations And Materials,4039.2,0,COMMERCIAL SUPPLIER
03-07-2023,RMS,Travis Perkins Trading Company Ltd,Building Alterations And Materials,5223.2,0,COMMERCIAL SUPPLIER
03-07-2023,RMS,Travis Perkins Trading Company Ltd,Building Alterations And Materials,798.8,0,COMMERCIAL SUPPLIER
03-07-2023,RMS,Travis Perkins Trading Company Ltd,Building Alterations And Materials,1585.6,0,COMMERCIAL SUPPLIER
03-07-2023,RMS,Travis Perkins Trading Company Ltd,Building Alterations And Materials,2111.2,0,COMMERCIAL SUPPLIER
03-07-2023,RMS,Travis Perkins Trading Company Ltd,Building Alterations And Materials,3483.48,0,COMMERCIAL SUPPLIER
03-07-2023,RMS,Travis Perkins Trading Company Ltd,Building Alterations And Materials,256.35,0,COMMERCIAL SUPPLIER
03-07-2023,RMS,Travis Perkins Trading Company Ltd,Building Alterations And Materials,263.13,0,COMMERCIAL SUPPLIER
03-07-2023,RMS,Travis Perkins Trading Company Ltd,Building Alterations And Materials,474.5,0,COMMERCIAL SUPPLIER
03-07-2023,RMS,Travis Perkins Trading Company Ltd,Building Alterations And Materials,132.44,0,COMMERCIAL SUPPLIER
03-07-2023,RMS,Travis Perkins Trading Company Ltd,Building Alterations And Materials,321.25,0,COMMERCIAL SUPPLIER
03-07-2023,Children and Young People,Roe Environmental Ltd,Waste Disposal Costs,240,0,VENDOR
03-07-2023,Environment and Sustainable Transport,Storm Environmental Limited,Street Sweeping,210,0,VENDOR
03-07-2023,Adults & Health,Pulse Healthcare Ltd,Professional Services - General,72250,0,COMMERCIAL SUPPLIER
03-07-2023,Children and Young People,Nhs Property Services Ltd,Rents Payable,304.73,0,COMMERCIAL SUPPLIER
03-07-2023,Children and Young People,Nhs Property Services Ltd,Rents Payable,15232.87,0,COMMERCIAL SUPPLIER
03-07-2023,Children and Young People,Nhs Property Services Ltd,Rents Payable,5900.09,0,COMMERCIAL SUPPLIER
03-07-2023,Children and Young People,Nhs Property Services Ltd,Rents Payable,398.5,0,COMMERCIAL SUPPLIER
03-07-2023,Children and Young People,Nhs Property Services Ltd,Rents Payable,18423.22,0,COMMERCIAL SUPPLIER
03-07-2023,Children and Young People,Nhs Property Services Ltd,Rents Payable,7169.26,0,COMMERCIAL SUPPLIER
03-07-2023,Children and Young People,Sayers (Car Hire),Client Transport,3820,0,VENDOR
03-07-2023,Children and Young People,Sayers (Car Hire),Client Transport,4225,0,VENDOR
03-07-2023,Children and Young People,Sayers (Car Hire),Client Transport,3400,0,VENDOR
03-07-2023,Children and Young People,Sayers (Car Hire),Client Transport,2232,0,VENDOR
03-07-2023,Children and Young People,Sayers (Car Hire),Client Transport,4611,0,VENDOR
03-07-2023,Children and Young People,Sayers (Car Hire),Client Transport,1732.5,0,VENDOR
03-07-2023,Children and Young People,Sayers (Car Hire),Client Transport,2420,0,VENDOR
03-07-2023,Children and Young People,Sayers (Car Hire),Client Transport,720,0,VENDOR
03-07-2023,Children and Young People,Sayers (Car Hire),Client Transport,684,0,VENDOR
03-07-2023,Children and Young People,Sayers (Car Hire),Client Transport,990,0,VENDOR
03-07-2023,Children and Young People,Sayers (Car Hire),Client Transport,1435,0,VENDOR
03-07-2023,Children and Young People,Sayers (Car Hire),Client Transport,440,0,VENDOR
03-07-2023,Children and Young People,Sayers (Car Hire),Client Transport,3125,0,VENDOR
03-07-2023,Children and Young People,Sayers (Car Hire),Client Transport,5070,0,VENDOR
03-07-2023,Children and Young People,Sayers (Car Hire),Client Transport,980,0,VENDOR
03-07-2023,Children and Young People,Sayers (Car Hire),Client Transport,3800,0,VENDOR
03-07-2023,Children and Young People,Sayers (Car Hire),Client Transport,3700,0,VENDOR
03-07-2023,Children and Young People,Sayers (Car Hire),Client Transport,874,0,VENDOR
03-07-2023,Children and Young People,Sayers (Car Hire),Client Transport,593,0,VENDOR
03-07-2023,Children and Young People,Sayers (Car Hire),Client Transport,4235.5,0,VENDOR
03-07-2023,Children and Young People,Sayers (Car Hire),Client Transport,4262,0,VENDOR
03-07-2023,Children and Young People,Sayers (Car Hire),Client Transport,1400,0,VENDOR
03-07-2023,Children and Young People,Sayers (Car Hire),Client Transport,4000,0,VENDOR
03-07-2023,Children and Young People,Sayers (Car Hire),Client Transport,2975,0,VENDOR
03-07-2023,Children and Young People,Sayers (Car Hire),Client Transport,1269,0,VENDOR
03-07-2023,Children and Young People,Sayers (Car Hire),Client Transport,1124,0,VENDOR
